Organisation Name,Organisation Code,Unique Ref No,Effective Date,Directorate where expenditure incurred,Supplier Name,Payment Date,Net Amount,Purpose of Spend,Procurement Classification (Higher Level),Procurement Classification (Lower Level),Capital / Revenue
Walsall Council,http://opendatacommunities.org/id/metropolitan-district-council/walsall,WC123-1,28.02.2021,RESOURCES AND TRANSFORMATION,11KBW,04/02/2021,"38,450.00",6610-External Legal Fees,SUPPLIES & SERVICES,SERVICES,REVENUE
Walsall Council,http://opendatacommunities.org/id/metropolitan-district-council/walsall,WC123-2,28.02.2021,CENTRALLY HELD,11KBW,03/02/2021,"2,420.00",6635-School Only Payments - Catering,THIRD PARTY PAYMENTS,INDEPENDENT UNIT WITHIN COUNCIL,REVENUE
Walsall Council,http://opendatacommunities.org/id/metropolitan-district-council/walsall,WC123-3,28.02.2021,CHILDRENS,247 CARS (WILLENHALL) LIMITED,25/02/2021,"1,520.00",6241-Hire of Vehicle with Driver,TRANSPORT,DIRECT TRANSPORT COSTS,REVENUE
Walsall Council,http://opendatacommunities.org/id/metropolitan-district-council/walsall,WC123-4,28.02.2021,CHILDRENS,247 CARS (WILLENHALL) LIMITED,25/02/2021,"1,461.60",6241-Hire of Vehicle with Driver,TRANSPORT,DIRECT TRANSPORT COSTS,REVENUE
Walsall Council,http://opendatacommunities.org/id/metropolitan-district-council/walsall,WC123-5,28.02.2021,RESOURCES AND TRANSFORMATION,2BM LIMITED,09/02/2021,259.00,6623-Computer Equipment,SUPPLIES & SERVICES,COMMUNICATIONS & COMPUTING,REVENUE
Walsall Council,http://opendatacommunities.org/id/metropolitan-district-council/walsall,WC123-6,28.02.2021,ECONOMY & ENVIRONMENT,2HILLS CONSULTANCY,03/02/2021,"1,250.00",6430-Professional Fees & Services,SUPPLIES & SERVICES,SERVICES,REVENUE
Walsall Council,http://opendatacommunities.org/id/metropolitan-district-council/walsall,WC123-7,28.02.2021,RESOURCES AND TRANSFORMATION,3 SPIRIT UK TRAINING & CONSULTANCY,15/02/2021,725.00,6625-Consultant Fees,SUPPLIES & SERVICES,SERVICES,REVENUE
Walsall Council,http://opendatacommunities.org/id/metropolitan-district-council/walsall,WC123-8,28.02.2021,ADULT SOCIAL CARE,5 CARE SERVICES LTD,08/02/2021,"16,823.26",6550-Professional Services-Priv Contractor & Other Agencies,THIRD PARTY PAYMENTS,PRIVATE CONTRACTOR,REVENUE
Walsall Council,http://opendatacommunities.org/id/metropolitan-district-council/walsall,WC123-9,28.02.2021,ADULT SOCIAL CARE,5 CARE SERVICES LTD,01/02/2021,485.80,6541-Domiciliary Care,THIRD PARTY PAYMENTS,PRIVATE CONTRACTOR,REVENUE
Walsall Council,http://opendatacommunities.org/id/metropolitan-district-council/walsall,WC123-10,28.02.2021,ADULT SOCIAL CARE,5 CARE SERVICES LTD,01/02/2021,377.79,6541-Domiciliary Care,THIRD PARTY PAYMENTS,PRIVATE CONTRACTOR,REVENUE
Walsall Council,http://opendatacommunities.org/id/metropolitan-district-council/walsall,WC123-11,28.02.2021,ADULT SOCIAL CARE,5 CARE SERVICES LTD,01/02/2021,308.40,6541-Domiciliary Care,THIRD PARTY PAYMENTS,PRIVATE CONTRACTOR,REVENUE
Walsall Council,http://opendatacommunities.org/id/metropolitan-district-council/walsall,WC123-12,28.02.2021,ADULT SOCIAL CARE,5 CARE SERVICES LTD,01/02/2021,431.76,6541-Domiciliary Care,THIRD PARTY PAYMENTS,PRIVATE CONTRACTOR,REVENUE
Walsall Council,http://opendatacommunities.org/id/metropolitan-district-council/walsall,WC123-13,28.02.2021,ADULT SOCIAL CARE,5 CARE SERVICES LTD,01/02/2021,304.58,6541-Domiciliary Care,THIRD PARTY PAYMENTS,PRIVATE CONTRACTOR,REVENUE
Walsall Council,http://opendatacommunities.org/id/metropolitan-district-council/walsall,WC123-14,28.02.2021,ADULT SOCIAL CARE,5 CARE SERVICES LTD,01/02/2021,370.08,6541-Domiciliary Care,THIRD PARTY PAYMENTS,PRIVATE CONTRACTOR,REVENUE
Walsall Council,http://opendatacommunities.org/id/metropolitan-district-council/walsall,WC123-15,28.02.2021,ADULT SOCIAL CARE,5 CARE SERVICES LTD,01/02/2021,251.93,6541-Domiciliary Care,THIRD PARTY PAYMENTS,PRIVATE CONTRACTOR,REVENUE
Walsall Council,http://opendatacommunities.org/id/metropolitan-district-council/walsall,WC123-16,28.02.2021,ADULT SOCIAL CARE,5 CARE SERVICES LTD,01/02/2021,393.21,6541-Domiciliary Care,THIRD PARTY PAYMENTS,PRIVATE CONTRACTOR,REVENUE
Walsall Council,http://opendatacommunities.org/id/metropolitan-district-council/walsall,WC123-17,28.02.2021,ADULT SOCIAL CARE,5 CARE SERVICES LTD,01/02/2021,647.64,6541-Domiciliary Care,THIRD PARTY PAYMENTS,PRIVATE CONTRACTOR,REVENUE
Walsall Council,http://opendatacommunities.org/id/metropolitan-district-council/walsall,WC123-18,28.02.2021,ADULT SOCIAL CARE,5 CARE SERVICES LTD,01/02/2021,323.82,6541-Domiciliary Care,THIRD PARTY PAYMENTS,PRIVATE CONTRACTOR,REVENUE
Walsall Council,http://opendatacommunities.org/id/metropolitan-district-council/walsall,WC123-19,28.02.2021,ADULT SOCIAL CARE,5 CARE SERVICES LTD,01/02/2021,377.79,6541-Domiciliary Care,THIRD PARTY PAYMENTS,PRIVATE CONTRACTOR,REVENUE
Walsall Council,http://opendatacommunities.org/id/metropolitan-district-council/walsall,WC123-20,28.02.2021,ADULT SOCIAL CARE,5 CARE SERVICES LTD,01/02/2021,539.70,6541-Domiciliary Care,THIRD PARTY PAYMENTS,PRIVATE CONTRACTOR,REVENUE
Walsall Council,http://opendatacommunities.org/id/metropolitan-district-council/walsall,WC123-21,28.02.2021,ADULT SOCIAL CARE,5 CARE SERVICES LTD,01/02/2021,485.73,6541-Domiciliary Care,THIRD PARTY PAYMENTS,PRIVATE CONTRACTOR,REVENUE
Walsall Council,http://opendatacommunities.org/id/metropolitan-district-council/walsall,WC123-22,28.02.2021,ADULT SOCIAL CARE,5 CARE SERVICES LTD,01/02/2021,431.76,6541-Domiciliary Care,THIRD PARTY PAYMENTS,PRIVATE CONTRACTOR,REVENUE
Walsall Council,http://opendatacommunities.org/id/metropolitan-district-council/walsall,WC123-23,28.02.2021,ADULT SOCIAL CARE,5 CARE SERVICES LTD,01/02/2021,269.85,6541-Domiciliary Care,THIRD PARTY PAYMENTS,PRIVATE CONTRACTOR,REVENUE
Walsall Council,http://opendatacommunities.org/id/metropolitan-district-council/walsall,WC123-24,28.02.2021,ADULT SOCIAL CARE,5 CARE SERVICES LTD,01/02/2021,932.91,6541-Domiciliary Care,THIRD PARTY PAYMENTS,PRIVATE CONTRACTOR,REVENUE
Walsall Council,http://opendatacommunities.org/id/metropolitan-district-council/walsall,WC123-25,28.02.2021,ADULT SOCIAL CARE,5 CARE SERVICES LTD,01/02/2021,755.58,6541-Domiciliary Care,THIRD PARTY PAYMENTS,PRIVATE CONTRACTOR,REVENUE
Walsall Council,http://opendatacommunities.org/id/metropolitan-district-council/walsall,WC123-26,28.02.2021,ADULT SOCIAL CARE,5 CARE SERVICES LTD,01/02/2021,593.67,6541-Domiciliary Care,THIRD PARTY PAYMENTS,PRIVATE CONTRACTOR,REVENUE
Walsall Council,http://opendatacommunities.org/id/metropolitan-district-council/walsall,WC123-27,28.02.2021,ADULT SOCIAL CARE,5 CARE SERVICES LTD,01/02/2021,"1,110.24",6541-Domiciliary Care,THIRD PARTY PAYMENTS,PRIVATE CONTRACTOR,REVENUE
Walsall Council,http://opendatacommunities.org/id/metropolitan-district-council/walsall,WC123-28,28.02.2021,ADULT SOCIAL CARE,5 CARE SERVICES LTD,01/02/2021,308.40,6541-Domiciliary Care,THIRD PARTY PAYMENTS,PRIVATE CONTRACTOR,REVENUE
Walsall Council,http://opendatacommunities.org/id/metropolitan-district-council/walsall,WC123-29,28.02.2021,ADULT SOCIAL CARE,5 CARE SERVICES LTD,01/02/2021,323.82,6541-Domiciliary Care,THIRD PARTY PAYMENTS,PRIVATE CONTRACTOR,REVENUE
Walsall Council,http://opendatacommunities.org/id/metropolitan-district-council/walsall,WC123-30,28.02.2021,ADULT SOCIAL CARE,5 CARE SERVICES LTD,01/02/2021,555.12,6541-Domiciliary Care,THIRD PARTY PAYMENTS,PRIVATE CONTRACTOR,REVENUE
Walsall Council,http://opendatacommunities.org/id/metropolitan-district-council/walsall,WC123-31,28.02.2021,ADULT SOCIAL CARE,5 CARE SERVICES LTD,01/02/2021,377.79,6541-Domiciliary Care,THIRD PARTY PAYMENTS,PRIVATE CONTRACTOR,REVENUE
Walsall Council,http://opendatacommunities.org/id/metropolitan-district-council/walsall,WC123-32,28.02.2021,ADULT SOCIAL CARE,5 CARE SERVICES LTD,01/02/2021,377.79,6541-Domiciliary Care,THIRD PARTY PAYMENTS,PRIVATE CONTRACTOR,REVENUE
Walsall Council,http://opendatacommunities.org/id/metropolitan-district-council/walsall,WC123-33,28.02.2021,ADULT SOCIAL CARE,5 CARE SERVICES LTD,01/02/2021,755.58,6541-Domiciliary Care,THIRD PARTY PAYMENTS,PRIVATE CONTRACTOR,REVENUE
Walsall Council,http://opendatacommunities.org/id/metropolitan-district-council/walsall,WC123-34,28.02.2021,ADULT SOCIAL CARE,5 CARE SERVICES LTD,01/02/2021,539.70,6541-Domiciliary Care,THIRD PARTY PAYMENTS,PRIVATE CONTRACTOR,REVENUE
Walsall Council,http://opendatacommunities.org/id/metropolitan-district-council/walsall,WC123-35,28.02.2021,ADULT SOCIAL CARE,5 CARE SERVICES LTD,01/02/2021,485.73,6541-Domiciliary Care,THIRD PARTY PAYMENTS,PRIVATE CONTRACTOR,REVENUE
Walsall Council,http://opendatacommunities.org/id/metropolitan-district-council/walsall,WC123-36,28.02.2021,ADULT SOCIAL CARE,5 CARE SERVICES LTD,01/02/2021,251.93,6541-Domiciliary Care,THIRD PARTY PAYMENTS,PRIVATE CONTRACTOR,REVENUE
Walsall Council,http://opendatacommunities.org/id/metropolitan-district-council/walsall,WC123-37,28.02.2021,ADULT SOCIAL CARE,5 CARE SERVICES LTD,01/02/2021,308.40,6541-Domiciliary Care,THIRD PARTY PAYMENTS,PRIVATE CONTRACTOR,REVENUE
Walsall Council,http://opendatacommunities.org/id/metropolitan-district-council/walsall,WC123-38,28.02.2021,ADULT SOCIAL CARE,5 CARE SERVICES LTD,01/02/2021,323.82,6541-Domiciliary Care,THIRD PARTY PAYMENTS,PRIVATE CONTRACTOR,REVENUE
Walsall Council,http://opendatacommunities.org/id/metropolitan-district-council/walsall,WC123-39,28.02.2021,ADULT SOCIAL CARE,5 CARE SERVICES LTD,01/02/2021,585.96,6541-Domiciliary Care,THIRD PARTY PAYMENTS,PRIVATE CONTRACTOR,REVENUE
Walsall Council,http://opendatacommunities.org/id/metropolitan-district-council/walsall,WC123-40,28.02.2021,ADULT SOCIAL CARE,5 CARE SERVICES LTD,01/02/2021,269.85,6541-Domiciliary Care,THIRD PARTY PAYMENTS,PRIVATE CONTRACTOR,REVENUE
Walsall Council,http://opendatacommunities.org/id/metropolitan-district-council/walsall,WC123-41,28.02.2021,ADULT SOCIAL CARE,5 CARE SERVICES LTD,01/02/2021,485.80,6541-Domiciliary Care,THIRD PARTY PAYMENTS,PRIVATE CONTRACTOR,REVENUE
Walsall Council,http://opendatacommunities.org/id/metropolitan-district-council/walsall,WC123-42,28.02.2021,ADULT SOCIAL CARE,5 CARE SERVICES LTD,01/02/2021,254.43,6541-Domiciliary Care,THIRD PARTY PAYMENTS,PRIVATE CONTRACTOR,REVENUE
Walsall Council,http://opendatacommunities.org/id/metropolitan-district-council/walsall,WC123-43,28.02.2021,ADULT SOCIAL CARE,5 CARE SERVICES LTD,01/02/2021,357.23,6541-Domiciliary Care,THIRD PARTY PAYMENTS,PRIVATE CONTRACTOR,REVENUE
Walsall Council,http://opendatacommunities.org/id/metropolitan-district-council/walsall,WC123-44,28.02.2021,ADULT SOCIAL CARE,5 CARE SERVICES LTD,01/02/2021,308.40,6541-Domiciliary Care,THIRD PARTY PAYMENTS,PRIVATE CONTRACTOR,REVENUE
Walsall Council,http://opendatacommunities.org/id/metropolitan-district-council/walsall,WC123-45,28.02.2021,ADULT SOCIAL CARE,5 CARE SERVICES LTD,01/02/2021,431.76,6541-Domiciliary Care,THIRD PARTY PAYMENTS,PRIVATE CONTRACTOR,REVENUE
Walsall Council,http://opendatacommunities.org/id/metropolitan-district-council/walsall,WC123-46,28.02.2021,ADULT SOCIAL CARE,5 CARE SERVICES LTD,01/02/2021,304.58,6541-Domiciliary Care,THIRD PARTY PAYMENTS,PRIVATE CONTRACTOR,REVENUE
Walsall Council,http://opendatacommunities.org/id/metropolitan-district-council/walsall,WC123-47,28.02.2021,ADULT SOCIAL CARE,5 CARE SERVICES LTD,01/02/2021,647.64,6541-Domiciliary Care,THIRD PARTY PAYMENTS,PRIVATE CONTRACTOR,REVENUE
Walsall Council,http://opendatacommunities.org/id/metropolitan-district-council/walsall,WC123-48,28.02.2021,ADULT SOCIAL CARE,5 CARE SERVICES LTD,01/02/2021,323.82,6541-Domiciliary Care,THIRD PARTY PAYMENTS,PRIVATE CONTRACTOR,REVENUE
Walsall Council,http://opendatacommunities.org/id/metropolitan-district-council/walsall,WC123-49,28.02.2021,ADULT SOCIAL CARE,5 CARE SERVICES LTD,01/02/2021,593.67,6541-Domiciliary Care,THIRD PARTY PAYMENTS,PRIVATE CONTRACTOR,REVENUE
Walsall Council,http://opendatacommunities.org/id/metropolitan-district-council/walsall,WC123-50,28.02.2021,ADULT SOCIAL CARE,5 CARE SERVICES LTD,01/02/2021,532.02,6541-Domiciliary Care,THIRD PARTY PAYMENTS,PRIVATE CONTRACTOR,REVENUE
Walsall Council,http://opendatacommunities.org/id/metropolitan-district-council/walsall,WC123-51,28.02.2021,ADULT SOCIAL CARE,5 CARE SERVICES LTD,15/02/2021,377.79,6541-Domiciliary Care,THIRD PARTY PAYMENTS,PRIVATE CONTRACTOR,REVENUE
Walsall Council,http://opendatacommunities.org/id/metropolitan-district-council/walsall,WC123-52,28.02.2021,ADULT SOCIAL CARE,5 CARE SERVICES LTD,15/02/2021,555.12,6541-Domiciliary Care,THIRD PARTY PAYMENTS,PRIVATE CONTRACTOR,REVENUE
Walsall Council,http://opendatacommunities.org/id/metropolitan-district-council/walsall,WC123-53,28.02.2021,ADULT SOCIAL CARE,5 CARE SERVICES LTD,15/02/2021,377.79,6541-Domiciliary Care,THIRD PARTY PAYMENTS,PRIVATE CONTRACTOR,REVENUE
Walsall Council,http://opendatacommunities.org/id/metropolitan-district-council/walsall,WC123-54,28.02.2021,ADULT SOCIAL CARE,5 CARE SERVICES LTD,15/02/2021,-493.44,6541-Domiciliary Care,THIRD PARTY PAYMENTS,PRIVATE CONTRACTOR,REVENUE
Walsall Council,http://opendatacommunities.org/id/metropolitan-district-council/walsall,WC123-55,28.02.2021,ADULT SOCIAL CARE,5 CARE SERVICES LTD,15/02/2021,539.70,6541-Domiciliary Care,THIRD PARTY PAYMENTS,PRIVATE CONTRACTOR,REVENUE
Walsall Council,http://opendatacommunities.org/id/metropolitan-district-council/walsall,WC123-56,28.02.2021,ADULT SOCIAL CARE,5 CARE SERVICES LTD,15/02/2021,485.73,6541-Domiciliary Care,THIRD PARTY PAYMENTS,PRIVATE CONTRACTOR,REVENUE
Walsall Council,http://opendatacommunities.org/id/metropolitan-district-council/walsall,WC123-57,28.02.2021,ADULT SOCIAL CARE,5 CARE SERVICES LTD,15/02/2021,755.58,6541-Domiciliary Care,THIRD PARTY PAYMENTS,PRIVATE CONTRACTOR,REVENUE
Walsall Council,http://opendatacommunities.org/id/metropolitan-district-council/walsall,WC123-58,28.02.2021,ADULT SOCIAL CARE,5 CARE SERVICES LTD,15/02/2021,585.96,6541-Domiciliary Care,THIRD PARTY PAYMENTS,PRIVATE CONTRACTOR,REVENUE
Walsall Council,http://opendatacommunities.org/id/metropolitan-district-council/walsall,WC123-59,28.02.2021,ADULT SOCIAL CARE,5 CARE SERVICES LTD,15/02/2021,269.85,6541-Domiciliary Care,THIRD PARTY PAYMENTS,PRIVATE CONTRACTOR,REVENUE
Walsall Council,http://opendatacommunities.org/id/metropolitan-district-council/walsall,WC123-60,28.02.2021,ADULT SOCIAL CARE,5 CARE SERVICES LTD,15/02/2021,251.93,6541-Domiciliary Care,THIRD PARTY PAYMENTS,PRIVATE CONTRACTOR,REVENUE
Walsall Council,http://opendatacommunities.org/id/metropolitan-district-council/walsall,WC123-61,28.02.2021,ADULT SOCIAL CARE,5 CARE SERVICES LTD,15/02/2021,485.80,6541-Domiciliary Care,THIRD PARTY PAYMENTS,PRIVATE CONTRACTOR,REVENUE
Walsall Council,http://opendatacommunities.org/id/metropolitan-district-council/walsall,WC123-62,28.02.2021,ADULT SOCIAL CARE,5 CARE SERVICES LTD,15/02/2021,308.40,6541-Domiciliary Care,THIRD PARTY PAYMENTS,PRIVATE CONTRACTOR,REVENUE
Walsall Council,http://opendatacommunities.org/id/metropolitan-district-council/walsall,WC123-63,28.02.2021,ADULT SOCIAL CARE,5 CARE SERVICES LTD,15/02/2021,323.82,6541-Domiciliary Care,THIRD PARTY PAYMENTS,PRIVATE CONTRACTOR,REVENUE
Walsall Council,http://opendatacommunities.org/id/metropolitan-district-council/walsall,WC123-64,28.02.2021,ADULT SOCIAL CARE,5 CARE SERVICES LTD,15/02/2021,"-1,002.30",6541-Domiciliary Care,THIRD PARTY PAYMENTS,PRIVATE CONTRACTOR,REVENUE
Walsall Council,http://opendatacommunities.org/id/metropolitan-district-council/walsall,WC123-65,28.02.2021,ADULT SOCIAL CARE,5 CARE SERVICES LTD,15/02/2021,308.40,6541-Domiciliary Care,THIRD PARTY PAYMENTS,PRIVATE CONTRACTOR,REVENUE
Walsall Council,http://opendatacommunities.org/id/metropolitan-district-council/walsall,WC123-66,28.02.2021,ADULT SOCIAL CARE,5 CARE SERVICES LTD,15/02/2021,431.76,6541-Domiciliary Care,THIRD PARTY PAYMENTS,PRIVATE CONTRACTOR,REVENUE
Walsall Council,http://opendatacommunities.org/id/metropolitan-district-council/walsall,WC123-67,28.02.2021,ADULT SOCIAL CARE,5 CARE SERVICES LTD,15/02/2021,304.58,6541-Domiciliary Care,THIRD PARTY PAYMENTS,PRIVATE CONTRACTOR,REVENUE
Walsall Council,http://opendatacommunities.org/id/metropolitan-district-council/walsall,WC123-68,28.02.2021,ADULT SOCIAL CARE,5 CARE SERVICES LTD,15/02/2021,647.64,6541-Domiciliary Care,THIRD PARTY PAYMENTS,PRIVATE CONTRACTOR,REVENUE
Walsall Council,http://opendatacommunities.org/id/metropolitan-district-council/walsall,WC123-69,28.02.2021,ADULT SOCIAL CARE,5 CARE SERVICES LTD,15/02/2021,323.82,6541-Domiciliary Care,THIRD PARTY PAYMENTS,PRIVATE CONTRACTOR,REVENUE
Walsall Council,http://opendatacommunities.org/id/metropolitan-district-council/walsall,WC123-70,28.02.2021,ADULT SOCIAL CARE,5 CARE SERVICES LTD,15/02/2021,277.60,6541-Domiciliary Care,THIRD PARTY PAYMENTS,PRIVATE CONTRACTOR,REVENUE
Walsall Council,http://opendatacommunities.org/id/metropolitan-district-council/walsall,WC123-71,28.02.2021,ADULT SOCIAL CARE,5 CARE SERVICES LTD,15/02/2021,593.67,6541-Domiciliary Care,THIRD PARTY PAYMENTS,PRIVATE CONTRACTOR,REVENUE
Walsall Council,http://opendatacommunities.org/id/metropolitan-district-council/walsall,WC123-72,28.02.2021,ADULT SOCIAL CARE,5 CARE SERVICES LTD,15/02/2021,254.43,6541-Domiciliary Care,THIRD PARTY PAYMENTS,PRIVATE CONTRACTOR,REVENUE
Walsall Council,http://opendatacommunities.org/id/metropolitan-district-council/walsall,WC123-73,28.02.2021,ADULT SOCIAL CARE,5 CARE SERVICES LTD,15/02/2021,"1,110.24",6541-Domiciliary Care,THIRD PARTY PAYMENTS,PRIVATE CONTRACTOR,REVENUE
Walsall Council,http://opendatacommunities.org/id/metropolitan-district-council/walsall,WC123-74,28.02.2021,ADULT SOCIAL CARE,5 CARE SERVICES LTD,15/02/2021,377.79,6541-Domiciliary Care,THIRD PARTY PAYMENTS,PRIVATE CONTRACTOR,REVENUE
Walsall Council,http://opendatacommunities.org/id/metropolitan-district-council/walsall,WC123-75,28.02.2021,ADULT SOCIAL CARE,5 CARE SERVICES LTD,15/02/2021,377.79,6541-Domiciliary Care,THIRD PARTY PAYMENTS,PRIVATE CONTRACTOR,REVENUE
Walsall Council,http://opendatacommunities.org/id/metropolitan-district-council/walsall,WC123-76,28.02.2021,ADULT SOCIAL CARE,5 CARE SERVICES LTD,15/02/2021,503.72,6541-Domiciliary Care,THIRD PARTY PAYMENTS,PRIVATE CONTRACTOR,REVENUE
Walsall Council,http://opendatacommunities.org/id/metropolitan-district-council/walsall,WC123-77,28.02.2021,ADULT SOCIAL CARE,5 CARE SERVICES LTD,15/02/2021,539.70,6541-Domiciliary Care,THIRD PARTY PAYMENTS,PRIVATE CONTRACTOR,REVENUE
Walsall Council,http://opendatacommunities.org/id/metropolitan-district-council/walsall,WC123-78,28.02.2021,ADULT SOCIAL CARE,5 CARE SERVICES LTD,15/02/2021,485.73,6541-Domiciliary Care,THIRD PARTY PAYMENTS,PRIVATE CONTRACTOR,REVENUE
Walsall Council,http://opendatacommunities.org/id/metropolitan-district-council/walsall,WC123-79,28.02.2021,ADULT SOCIAL CARE,5 CARE SERVICES LTD,15/02/2021,485.80,6541-Domiciliary Care,THIRD PARTY PAYMENTS,PRIVATE CONTRACTOR,REVENUE
Walsall Council,http://opendatacommunities.org/id/metropolitan-district-council/walsall,WC123-80,28.02.2021,ADULT SOCIAL CARE,5 CARE SERVICES LTD,15/02/2021,585.96,6541-Domiciliary Care,THIRD PARTY PAYMENTS,PRIVATE CONTRACTOR,REVENUE
Walsall Council,http://opendatacommunities.org/id/metropolitan-district-council/walsall,WC123-81,28.02.2021,ADULT SOCIAL CARE,5 CARE SERVICES LTD,15/02/2021,269.85,6541-Domiciliary Care,THIRD PARTY PAYMENTS,PRIVATE CONTRACTOR,REVENUE
Walsall Council,http://opendatacommunities.org/id/metropolitan-district-council/walsall,WC123-82,28.02.2021,ADULT SOCIAL CARE,5 CARE SERVICES LTD,15/02/2021,269.85,6541-Domiciliary Care,THIRD PARTY PAYMENTS,PRIVATE CONTRACTOR,REVENUE
Walsall Council,http://opendatacommunities.org/id/metropolitan-district-council/walsall,WC123-83,28.02.2021,ADULT SOCIAL CARE,5 CARE SERVICES LTD,15/02/2021,"1,850.40",6541-Domiciliary Care,THIRD PARTY PAYMENTS,PRIVATE CONTRACTOR,REVENUE
Walsall Council,http://opendatacommunities.org/id/metropolitan-district-council/walsall,WC123-84,28.02.2021,ADULT SOCIAL CARE,5 CARE SERVICES LTD,15/02/2021,251.93,6541-Domiciliary Care,THIRD PARTY PAYMENTS,PRIVATE CONTRACTOR,REVENUE
Walsall Council,http://opendatacommunities.org/id/metropolitan-district-council/walsall,WC123-85,28.02.2021,ADULT SOCIAL CARE,5 CARE SERVICES LTD,15/02/2021,308.40,6541-Domiciliary Care,THIRD PARTY PAYMENTS,PRIVATE CONTRACTOR,REVENUE
Walsall Council,http://opendatacommunities.org/id/metropolitan-district-council/walsall,WC123-86,28.02.2021,ADULT SOCIAL CARE,5 CARE SERVICES LTD,15/02/2021,323.82,6541-Domiciliary Care,THIRD PARTY PAYMENTS,PRIVATE CONTRACTOR,REVENUE
Walsall Council,http://opendatacommunities.org/id/metropolitan-district-council/walsall,WC123-87,28.02.2021,ADULT SOCIAL CARE,5 CARE SERVICES LTD,15/02/2021,308.40,6541-Domiciliary Care,THIRD PARTY PAYMENTS,PRIVATE CONTRACTOR,REVENUE
Walsall Council,http://opendatacommunities.org/id/metropolitan-district-council/walsall,WC123-88,28.02.2021,ADULT SOCIAL CARE,5 CARE SERVICES LTD,15/02/2021,431.76,6541-Domiciliary Care,THIRD PARTY PAYMENTS,PRIVATE CONTRACTOR,REVENUE
Walsall Council,http://opendatacommunities.org/id/metropolitan-district-council/walsall,WC123-89,28.02.2021,ADULT SOCIAL CARE,5 CARE SERVICES LTD,15/02/2021,304.58,6541-Domiciliary Care,THIRD PARTY PAYMENTS,PRIVATE CONTRACTOR,REVENUE
Walsall Council,http://opendatacommunities.org/id/metropolitan-district-council/walsall,WC123-90,28.02.2021,ADULT SOCIAL CARE,5 CARE SERVICES LTD,15/02/2021,647.64,6541-Domiciliary Care,THIRD PARTY PAYMENTS,PRIVATE CONTRACTOR,REVENUE
Walsall Council,http://opendatacommunities.org/id/metropolitan-district-council/walsall,WC123-91,28.02.2021,ADULT SOCIAL CARE,5 CARE SERVICES LTD,15/02/2021,323.82,6541-Domiciliary Care,THIRD PARTY PAYMENTS,PRIVATE CONTRACTOR,REVENUE
Walsall Council,http://opendatacommunities.org/id/metropolitan-district-council/walsall,WC123-92,28.02.2021,ADULT SOCIAL CARE,5 CARE SERVICES LTD,15/02/2021,593.67,6541-Domiciliary Care,THIRD PARTY PAYMENTS,PRIVATE CONTRACTOR,REVENUE
Walsall Council,http://opendatacommunities.org/id/metropolitan-district-council/walsall,WC123-93,28.02.2021,ADULT SOCIAL CARE,5 CARE SERVICES LTD,15/02/2021,485.73,6541-Domiciliary Care,THIRD PARTY PAYMENTS,PRIVATE CONTRACTOR,REVENUE
Walsall Council,http://opendatacommunities.org/id/metropolitan-district-council/walsall,WC123-94,28.02.2021,ADULT SOCIAL CARE,5 CARE SERVICES LTD,15/02/2021,755.58,6541-Domiciliary Care,THIRD PARTY PAYMENTS,PRIVATE CONTRACTOR,REVENUE
Walsall Council,http://opendatacommunities.org/id/metropolitan-district-council/walsall,WC123-95,28.02.2021,ADULT SOCIAL CARE,5 CARE SERVICES LTD,10/02/2021,"8,666.04",6541-Domiciliary Care,THIRD PARTY PAYMENTS,PRIVATE CONTRACTOR,REVENUE
Walsall Council,http://opendatacommunities.org/id/metropolitan-district-council/walsall,WC123-96,28.02.2021,ADULT SOCIAL CARE,5 CARE SERVICES LTD,09/02/2021,353.46,6554-Professional Services-Priv Contractor & Other Agencies,THIRD PARTY PAYMENTS,PRIVATE CONTRACTOR,REVENUE
Walsall Council,http://opendatacommunities.org/id/metropolitan-district-council/walsall,WC123-97,28.02.2021,CHILDRENS,5 CARE SERVICES LTD,18/02/2021,"1,738.55",6220-Professional Fees & Services,SUPPLIES & SERVICES,SERVICES,REVENUE
Walsall Council,http://opendatacommunities.org/id/metropolitan-district-council/walsall,WC123-98,28.02.2021,ADULT SOCIAL CARE,5 CARE SERVICES LTD,09/02/2021,831.40,6554-Professional Services-Priv Contractor & Other Agencies,THIRD PARTY PAYMENTS,PRIVATE CONTRACTOR,REVENUE
Walsall Council,http://opendatacommunities.org/id/metropolitan-district-council/walsall,WC123-99,28.02.2021,ADULT SOCIAL CARE,5 CARE SERVICES LTD,09/02/2021,539.84,6554-Professional Services-Priv Contractor & Other Agencies,THIRD PARTY PAYMENTS,PRIVATE CONTRACTOR,REVENUE
Walsall Council,http://opendatacommunities.org/id/metropolitan-district-council/walsall,WC123-100,28.02.2021,ADULT SOCIAL CARE,5 CARE SERVICES LTD,09/02/2021,986.88,6554-Professional Services-Priv Contractor & Other Agencies,THIRD PARTY PAYMENTS,PRIVATE CONTRACTOR,REVENUE
Walsall Council,http://opendatacommunities.org/id/metropolitan-district-council/walsall,WC123-101,28.02.2021,ADULT SOCIAL CARE,5 CARE SERVICES LTD,10/02/2021,"1,480.32",6541-Domiciliary Care,THIRD PARTY PAYMENTS,PRIVATE CONTRACTOR,REVENUE
Walsall Council,http://opendatacommunities.org/id/metropolitan-district-council/walsall,WC123-102,28.02.2021,ADULT SOCIAL CARE,5 CARE SERVICES LTD,10/02/2021,878.94,6541-Domiciliary Care,THIRD PARTY PAYMENTS,PRIVATE CONTRACTOR,REVENUE
Walsall Council,http://opendatacommunities.org/id/metropolitan-district-council/walsall,WC123-103,28.02.2021,ADULT SOCIAL CARE,5 CARE SERVICES LTD,10/02/2021,"1,480.32",6541-Domiciliary Care,THIRD PARTY PAYMENTS,PRIVATE CONTRACTOR,REVENUE
Walsall Council,http://opendatacommunities.org/id/metropolitan-district-council/walsall,WC123-104,28.02.2021,ADULT SOCIAL CARE,5 CARE SERVICES LTD,04/02/2021,"1,241.31",6554-Professional Services-Priv Contractor & Other Agencies,THIRD PARTY PAYMENTS,PRIVATE CONTRACTOR,REVENUE
Walsall Council,http://opendatacommunities.org/id/metropolitan-district-council/walsall,WC123-105,28.02.2021,CHILDRENS,5 CARE SERVICES LTD,24/02/2021,"4,306.50",6220-Professional Fees & Services,SUPPLIES & SERVICES,SERVICES,REVENUE
Walsall Council,http://opendatacommunities.org/id/metropolitan-district-council/walsall,WC123-106,28.02.2021,ADULT SOCIAL CARE,5 CARE SERVICES LTD,04/02/2021,575.68,6554-Professional Services-Priv Contractor & Other Agencies,THIRD PARTY PAYMENTS,PRIVATE CONTRACTOR,REVENUE
Walsall Council,http://opendatacommunities.org/id/metropolitan-district-council/walsall,WC123-107,28.02.2021,ADULT SOCIAL CARE,5 CARE SERVICES LTD,04/02/2021,539.84,6554-Professional Services-Priv Contractor & Other Agencies,THIRD PARTY PAYMENTS,PRIVATE CONTRACTOR,REVENUE
Walsall Council,http://opendatacommunities.org/id/metropolitan-district-council/walsall,WC123-108,28.02.2021,ADULT SOCIAL CARE,5 CARE SERVICES LTD,10/02/2021,"1,214.34",6554-Professional Services-Priv Contractor & Other Agencies,THIRD PARTY PAYMENTS,PRIVATE CONTRACTOR,REVENUE
Walsall Council,http://opendatacommunities.org/id/metropolitan-district-council/walsall,WC123-109,28.02.2021,ECONOMY & ENVIRONMENT,A ASHTON,09/02/2021,300.00,6410-Materials,SUPPLIES & SERVICES,EQUIPMENT FURNITURE & MATERIALS,REVENUE
Walsall Council,http://opendatacommunities.org/id/metropolitan-district-council/walsall,WC123-110,28.02.2021,CHILDRENS,A D T FIRE AND SECURITY PLC,16/02/2021,868.18,6223-Professional Services-Priv Contractor & Other Agencies,THIRD PARTY PAYMENTS,PRIVATE CONTRACTOR,REVENUE
Walsall Council,http://opendatacommunities.org/id/metropolitan-district-council/walsall,WC123-111,28.02.2021,RESOURCES AND TRANSFORMATION,A D T FIRE AND SECURITY PLC,02/02/2021,"1,276.81",6310-Repair & Maintenance of Furniture & Equipment,SUPPLIES & SERVICES,EQUIPMENT FURNITURE & MATERIALS,REVENUE
Walsall Council,http://opendatacommunities.org/id/metropolitan-district-council/walsall,WC123-112,28.02.2021,RESOURCES AND TRANSFORMATION,A D T FIRE AND SECURITY PLC,26/02/2021,347.38,6310-Repair & Maintenance of Furniture & Equipment,SUPPLIES & SERVICES,EQUIPMENT FURNITURE & MATERIALS,REVENUE
Walsall Council,http://opendatacommunities.org/id/metropolitan-district-council/walsall,WC123-113,28.02.2021,ECONOMY & ENVIRONMENT,AAINA COMMUNITY HUB,10/02/2021,"1,319.91",6430-Grants to Other Orgs,SUPPLIES & SERVICES,GRANTS (EXP) & SUBSCRIPTIONS,REVENUE
Walsall Council,http://opendatacommunities.org/id/metropolitan-district-council/walsall,WC123-114,28.02.2021,ADULT SOCIAL CARE,ABBEY COURT NURSING & RESIDEN,15/02/2021,"2,308.00",6541-Residential EMI,THIRD PARTY PAYMENTS,PRIVATE CONTRACTOR,REVENUE
Walsall Council,http://opendatacommunities.org/id/metropolitan-district-council/walsall,WC123-115,28.02.2021,ADULT SOCIAL CARE,ABBEY COURT NURSING & RESIDEN,15/02/2021,"2,548.00",6541-Residential EMI,THIRD PARTY PAYMENTS,PRIVATE CONTRACTOR,REVENUE
Walsall Council,http://opendatacommunities.org/id/metropolitan-district-council/walsall,WC123-116,28.02.2021,ADULT SOCIAL CARE,ABBEY COURT NURSING & RESIDEN,15/02/2021,"2,044.00",6541-Residential,THIRD PARTY PAYMENTS,PRIVATE CONTRACTOR,REVENUE
Walsall Council,http://opendatacommunities.org/id/metropolitan-district-council/walsall,WC123-117,28.02.2021,ADULT SOCIAL CARE,ABBEY HEALTHCARE HOMES LTD,15/02/2021,"2,372.64",6541-Residential,THIRD PARTY PAYMENTS,PRIVATE CONTRACTOR,REVENUE
Walsall Council,http://opendatacommunities.org/id/metropolitan-district-council/walsall,WC123-118,28.02.2021,ADULT SOCIAL CARE,ABBEY HEALTHCARE HOMES LTD,15/02/2021,"3,102.72",6541-Residential,THIRD PARTY PAYMENTS,PRIVATE CONTRACTOR,REVENUE
Walsall Council,http://opendatacommunities.org/id/metropolitan-district-council/walsall,WC123-119,28.02.2021,ADULT SOCIAL CARE,ABBEY HEALTHCARE HOMES LTD,15/02/2021,"3,102.72",6541-Residential,THIRD PARTY PAYMENTS,PRIVATE CONTRACTOR,REVENUE
Walsall Council,http://opendatacommunities.org/id/metropolitan-district-council/walsall,WC123-120,28.02.2021,ADULT SOCIAL CARE,ABBEY HEALTHCARE HOMES LTD,15/02/2021,"3,516.40",6541-Residential,THIRD PARTY PAYMENTS,PRIVATE CONTRACTOR,REVENUE
Walsall Council,http://opendatacommunities.org/id/metropolitan-district-council/walsall,WC123-121,28.02.2021,CHILDRENS,ABC DAY NURSERY (WILLENHALL) LIMITED,09/02/2021,"3,511.20",1184-Other-Grants to Other Orgs,SUPPLIES & SERVICES,GRANTS (EXP) & SUBSCRIPTIONS,REVENUE
Walsall Council,http://opendatacommunities.org/id/metropolitan-district-council/walsall,WC123-122,28.02.2021,CHILDRENS,ABC DAY NURSERY (WILLENHALL) LIMITED,09/02/2021,"4,933.91",1184-Other-Grants to Other Orgs,SUPPLIES & SERVICES,GRANTS (EXP) & SUBSCRIPTIONS,REVENUE
Walsall Council,http://opendatacommunities.org/id/metropolitan-district-council/walsall,WC123-123,28.02.2021,ADULT SOCIAL CARE,REDACTED,04/02/2021,"2,110.92",6541-Direct Payment,THIRD PARTY PAYMENTS,PRIVATE CONTRACTOR,REVENUE
Walsall Council,http://opendatacommunities.org/id/metropolitan-district-council/walsall,WC123-124,28.02.2021,CHILDRENS,ABLEWELL CARS,25/02/2021,"1,882.40",6241-Hire of Vehicle with Driver,TRANSPORT,DIRECT TRANSPORT COSTS,REVENUE
Walsall Council,http://opendatacommunities.org/id/metropolitan-district-council/walsall,WC123-125,28.02.2021,CHILDRENS,ABLEWELL CARS,25/02/2021,844.80,6241-Hire of Vehicle with Driver,TRANSPORT,DIRECT TRANSPORT COSTS,REVENUE
Walsall Council,http://opendatacommunities.org/id/metropolitan-district-council/walsall,WC123-126,28.02.2021,CHILDRENS,ABLEWELL CARS,25/02/2021,"1,868.80",6241-Hire of Vehicle with Driver,TRANSPORT,DIRECT TRANSPORT COSTS,REVENUE
Walsall Council,http://opendatacommunities.org/id/metropolitan-district-council/walsall,WC123-127,28.02.2021,CHILDRENS,ABLEWELL CARS,25/02/2021,"1,244.16",6241-Hire of Vehicle with Driver,TRANSPORT,DIRECT TRANSPORT COSTS,REVENUE
Walsall Council,http://opendatacommunities.org/id/metropolitan-district-council/walsall,WC123-128,28.02.2021,CHILDRENS,ABLEWELL CARS,25/02/2021,787.20,6241-Hire of Vehicle with Driver,TRANSPORT,DIRECT TRANSPORT COSTS,REVENUE
Walsall Council,http://opendatacommunities.org/id/metropolitan-district-council/walsall,WC123-129,28.02.2021,CHILDRENS,ABLEWELL CARS,25/02/2021,"1,161.60",6241-Hire of Vehicle with Driver,TRANSPORT,DIRECT TRANSPORT COSTS,REVENUE
Walsall Council,http://opendatacommunities.org/id/metropolitan-district-council/walsall,WC123-130,28.02.2021,CHILDRENS,ABLEWELL CARS,25/02/2021,"1,664.00",6241-Hire of Vehicle with Driver,TRANSPORT,DIRECT TRANSPORT COSTS,REVENUE
Walsall Council,http://opendatacommunities.org/id/metropolitan-district-council/walsall,WC123-131,28.02.2021,CHILDRENS,ABS TAXIS (ALDRIDGE),25/02/2021,784.00,6241-Hire of Vehicle with Driver,TRANSPORT,DIRECT TRANSPORT COSTS,REVENUE
Walsall Council,http://opendatacommunities.org/id/metropolitan-district-council/walsall,WC123-132,28.02.2021,CHILDRENS,ABS TAXIS (ALDRIDGE),25/02/2021,"2,079.00",6241-Hire of Vehicle with Driver,TRANSPORT,DIRECT TRANSPORT COSTS,REVENUE
Walsall Council,http://opendatacommunities.org/id/metropolitan-district-council/walsall,WC123-133,28.02.2021,CHILDRENS,ABS TAXIS (ALDRIDGE),25/02/2021,"2,105.80",6241-Hire of Vehicle with Driver,TRANSPORT,DIRECT TRANSPORT COSTS,REVENUE
Walsall Council,http://opendatacommunities.org/id/metropolitan-district-council/walsall,WC123-134,28.02.2021,CHILDRENS,ABU BAKR NURSERY,09/02/2021,"9,216.90",1184-Other-Grants to Other Orgs,SUPPLIES & SERVICES,GRANTS (EXP) & SUBSCRIPTIONS,REVENUE
Walsall Council,http://opendatacommunities.org/id/metropolitan-district-council/walsall,WC123-135,28.02.2021,CHILDRENS,ABU BAKR NURSERY,09/02/2021,"12,608.89",1184-Other-Grants to Other Orgs,SUPPLIES & SERVICES,GRANTS (EXP) & SUBSCRIPTIONS,REVENUE
Walsall Council,http://opendatacommunities.org/id/metropolitan-district-council/walsall,WC123-136,28.02.2021,CHILDRENS,ACCALIA CARE SERVICES LTD,19/02/2021,"19,980.00",6223-External Residential Care-Oth Agency Provision,THIRD PARTY PAYMENTS,PRIVATE CONTRACTOR,REVENUE
Walsall Council,http://opendatacommunities.org/id/metropolitan-district-council/walsall,WC123-137,28.02.2021,CHILDRENS,ACCALIA CARE SERVICES LTD,19/02/2021,"19,980.00",6223-External Residential Care-Oth Agency Provision,THIRD PARTY PAYMENTS,PRIVATE CONTRACTOR,REVENUE
Walsall Council,http://opendatacommunities.org/id/metropolitan-district-council/walsall,WC123-138,28.02.2021,CHILDRENS,ACCOMPANIED CARE,19/02/2021,"3,681.27",6223-Accommodation and Related Costs-Assistance to S/S Clients,TRANSFER PAYMENTS,ADULT SOCIAL SERVICES CLIENT,REVENUE
Walsall Council,http://opendatacommunities.org/id/metropolitan-district-council/walsall,WC123-139,28.02.2021,ADULT SOCIAL CARE,ACCOMPLISH GROUP LTD,15/02/2021,"7,861.04",6541-Residential,THIRD PARTY PAYMENTS,PRIVATE CONTRACTOR,REVENUE
Walsall Council,http://opendatacommunities.org/id/metropolitan-district-council/walsall,WC123-140,28.02.2021,ADULT SOCIAL CARE,ACCORD HOUSING ASSOCIATION LIMITED - HOBS MEADOW,15/02/2021,"4,659.64",6541-Residential,THIRD PARTY PAYMENTS,PRIVATE CONTRACTOR,REVENUE
Walsall Council,http://opendatacommunities.org/id/metropolitan-district-council/walsall,WC123-141,28.02.2021,ADULT SOCIAL CARE,ACCORD HOUSING ASSOCIATION LIMITED - HOBS MEADOW,15/02/2021,"4,659.64",6541-Residential,THIRD PARTY PAYMENTS,PRIVATE CONTRACTOR,REVENUE
Walsall Council,http://opendatacommunities.org/id/metropolitan-district-council/walsall,WC123-142,28.02.2021,ADULT SOCIAL CARE,ACCORD HOUSING ASSOCIATION LIMITED - HOBS MEADOW,15/02/2021,"4,659.64",6541-Residential,THIRD PARTY PAYMENTS,PRIVATE CONTRACTOR,REVENUE
Walsall Council,http://opendatacommunities.org/id/metropolitan-district-council/walsall,WC123-143,28.02.2021,ADULT SOCIAL CARE,ACCORD HOUSING ASSOCIATION LIMITED - HOBS MEADOW,15/02/2021,"4,659.64",6541-Residential,THIRD PARTY PAYMENTS,PRIVATE CONTRACTOR,REVENUE
Walsall Council,http://opendatacommunities.org/id/metropolitan-district-council/walsall,WC123-144,28.02.2021,ADULT SOCIAL CARE,ACCORD HOUSING ASSOCIATION LTD#135,08/02/2021,"1,336.00",6550-Professional Services-Priv Contractor & Other Agencies,THIRD PARTY PAYMENTS,PRIVATE CONTRACTOR,REVENUE
Walsall Council,http://opendatacommunities.org/id/metropolitan-district-council/walsall,WC123-145,28.02.2021,ADULT SOCIAL CARE,ACCORD HOUSING ASSOCIATION LTD#135,08/02/2021,"2,851.40",6550-Professional Services-Priv Contractor & Other Agencies,THIRD PARTY PAYMENTS,PRIVATE CONTRACTOR,REVENUE
Walsall Council,http://opendatacommunities.org/id/metropolitan-district-council/walsall,WC123-146,28.02.2021,ADULT SOCIAL CARE,ACCORD HOUSING ASSOCIATION LTD#135,08/02/2021,"3,564.25",6550-Professional Services-Priv Contractor & Other Agencies,THIRD PARTY PAYMENTS,PRIVATE CONTRACTOR,REVENUE
Walsall Council,http://opendatacommunities.org/id/metropolitan-district-council/walsall,WC123-147,28.02.2021,ADULT SOCIAL CARE,ACCORD HOUSING ASSOCIATION LTD#135,15/02/2021,"6,503.40",6541-Residential,THIRD PARTY PAYMENTS,PRIVATE CONTRACTOR,REVENUE
Walsall Council,http://opendatacommunities.org/id/metropolitan-district-council/walsall,WC123-148,28.02.2021,ADULT SOCIAL CARE,ACCORD HOUSING ASSOCIATION LTD#135,15/02/2021,"6,503.40",6541-Residential,THIRD PARTY PAYMENTS,PRIVATE CONTRACTOR,REVENUE
Walsall Council,http://opendatacommunities.org/id/metropolitan-district-council/walsall,WC123-149,28.02.2021,ADULT SOCIAL CARE,ACCORD HOUSING ASSOCIATION LTD#135,15/02/2021,"5,807.56",6541-Residential,THIRD PARTY PAYMENTS,PRIVATE CONTRACTOR,REVENUE
Walsall Council,http://opendatacommunities.org/id/metropolitan-district-council/walsall,WC123-150,28.02.2021,ADULT SOCIAL CARE,ACCORD HOUSING ASSOCIATION LTD#135,08/02/2021,"5,987.94",6550-Professional Services-Priv Contractor & Other Agencies,THIRD PARTY PAYMENTS,PRIVATE CONTRACTOR,REVENUE
Walsall Council,http://opendatacommunities.org/id/metropolitan-district-council/walsall,WC123-151,28.02.2021,CHILDRENS,ACCORD HOUSING ASSOCIATION LTD#135,22/02/2021,396.59,6314-Rents,PREMISES,RENTS,REVENUE
Walsall Council,http://opendatacommunities.org/id/metropolitan-district-council/walsall,WC123-152,28.02.2021,ADULT SOCIAL CARE,ACCORD HOUSING ASSOCIATION LTD#135,19/02/2021,"1,022.40",6550-Professional Services-Priv Contractor & Other Agencies,THIRD PARTY PAYMENTS,PRIVATE CONTRACTOR,REVENUE
Walsall Council,http://opendatacommunities.org/id/metropolitan-district-council/walsall,WC123-153,28.02.2021,CHILDRENS,ACCORD HOUSING ASSOCIATION LTD#135,17/02/2021,"47,217.50",6314-Professional Services-Priv Contractor & Other Agencies,THIRD PARTY PAYMENTS,PRIVATE CONTRACTOR,REVENUE
Walsall Council,http://opendatacommunities.org/id/metropolitan-district-council/walsall,WC123-154,28.02.2021,CHILDRENS,ACCORD HOUSING ASSOCIATION LTD#135,18/02/2021,"28,771.00",6314-Professional Services-Priv Contractor & Other Agencies,THIRD PARTY PAYMENTS,PRIVATE CONTRACTOR,REVENUE
Walsall Council,http://opendatacommunities.org/id/metropolitan-district-council/walsall,WC123-155,28.02.2021,CHILDRENS CAPITAL,ACCORD HOUSING ASSOCIATION LTD#135,17/02/2021,"4,720.64",7300-Private Grants,CAPITAL,CAPITAL GRANTS,CAPITAL GRANTS
Walsall Council,http://opendatacommunities.org/id/metropolitan-district-council/walsall,WC123-156,28.02.2021,CHILDRENS CAPITAL,ACCORD HOUSING ASSOCIATION LTD#135,17/02/2021,"4,720.64",7300-Private Grants,CAPITAL,CAPITAL GRANTS,CAPITAL GRANTS
Walsall Council,http://opendatacommunities.org/id/metropolitan-district-council/walsall,WC123-157,28.02.2021,CHILDRENS CAPITAL,ACCORD HOUSING ASSOCIATION LTD#135,03/02/2021,"4,720.64",7300-Private Grants,CAPITAL,CAPITAL GRANTS,CAPITAL GRANTS
Walsall Council,http://opendatacommunities.org/id/metropolitan-district-council/walsall,WC123-158,28.02.2021,CHILDRENS CAPITAL,ACCORD HOUSING ASSOCIATION LTD#135,03/02/2021,"4,720.64",7300-Private Grants,CAPITAL,CAPITAL GRANTS,CAPITAL GRANTS
Walsall Council,http://opendatacommunities.org/id/metropolitan-district-council/walsall,WC123-159,28.02.2021,CHILDRENS CAPITAL,ACCORD HOUSING ASSOCIATION LTD#135,03/02/2021,"4,130.37",7300-Private Grants,CAPITAL,CAPITAL GRANTS,CAPITAL GRANTS
Walsall Council,http://opendatacommunities.org/id/metropolitan-district-council/walsall,WC123-160,28.02.2021,ADULT SOCIAL CARE,ACCORD HOUSING ASSOCIATION LTD#135,15/02/2021,"11,922.75",6420-Consultant Fees,SUPPLIES & SERVICES,SERVICES,REVENUE
Walsall Council,http://opendatacommunities.org/id/metropolitan-district-council/walsall,WC123-161,28.02.2021,CHILDRENS,ACCORD HOUSING ASSOCIATION LTD#135,23/02/2021,"28,502.83",6314-Professional Fees & Services,SUPPLIES & SERVICES,SERVICES,REVENUE
Walsall Council,http://opendatacommunities.org/id/metropolitan-district-council/walsall,WC123-162,28.02.2021,ADULT SOCIAL CARE,ACCORD HOUSING ASSOCIATION LTD#135,25/02/2021,"5,683.05",6552-Social Services-Fees to Voluntary Bodies,THIRD PARTY PAYMENTS,VOLUNTARY BODIES,REVENUE
Walsall Council,http://opendatacommunities.org/id/metropolitan-district-council/walsall,WC123-163,28.02.2021,ADULT SOCIAL CARE,ACCORD HOUSING ASSOCIATION LTD#135,25/02/2021,"5,099.18",6552-Social Services-Fees to Voluntary Bodies,THIRD PARTY PAYMENTS,VOLUNTARY BODIES,REVENUE
Walsall Council,http://opendatacommunities.org/id/metropolitan-district-council/walsall,WC123-164,28.02.2021,CHILDRENS,ACCORD HOUSING ASSOCIATION LTD#135,02/02/2021,"47,217.50",6314-Professional Services-Priv Contractor & Other Agencies,THIRD PARTY PAYMENTS,PRIVATE CONTRACTOR,REVENUE
Walsall Council,http://opendatacommunities.org/id/metropolitan-district-council/walsall,WC123-165,28.02.2021,ADULT SOCIAL CARE,ACE CARE AGENCY,08/02/2021,"1,995.98",6550-Professional Services-Priv Contractor & Other Agencies,THIRD PARTY PAYMENTS,PRIVATE CONTRACTOR,REVENUE
Walsall Council,http://opendatacommunities.org/id/metropolitan-district-council/walsall,WC123-166,28.02.2021,CHILDRENS,ACE CARS & MINIBUSES LTD,25/02/2021,"2,300.00",6241-Hire of Vehicle with Driver,TRANSPORT,DIRECT TRANSPORT COSTS,REVENUE
Walsall Council,http://opendatacommunities.org/id/metropolitan-district-council/walsall,WC123-167,28.02.2021,CHILDRENS,ACE CARS & MINIBUSES LTD,25/02/2021,"2,024.00",6241-Hire of Vehicle with Driver,TRANSPORT,DIRECT TRANSPORT COSTS,REVENUE
Walsall Council,http://opendatacommunities.org/id/metropolitan-district-council/walsall,WC123-168,28.02.2021,CHILDRENS,ACE CARS & MINIBUSES LTD,25/02/2021,"1,760.00",6241-Hire of Vehicle with Driver,TRANSPORT,DIRECT TRANSPORT COSTS,REVENUE
Walsall Council,http://opendatacommunities.org/id/metropolitan-district-council/walsall,WC123-169,28.02.2021,CHILDRENS,ACE CARS & MINIBUSES LTD,25/02/2021,"1,656.00",6241-Hire of Vehicle with Driver,TRANSPORT,DIRECT TRANSPORT COSTS,REVENUE
Walsall Council,http://opendatacommunities.org/id/metropolitan-district-council/walsall,WC123-170,28.02.2021,CHILDRENS,ACE CARS & MINIBUSES LTD,25/02/2021,"2,470.40",6241-Hire of Vehicle with Driver,TRANSPORT,DIRECT TRANSPORT COSTS,REVENUE
Walsall Council,http://opendatacommunities.org/id/metropolitan-district-council/walsall,WC123-171,28.02.2021,CHILDRENS,ACE CARS & MINIBUSES LTD,25/02/2021,"1,040.00",6241-Hire of Vehicle with Driver,TRANSPORT,DIRECT TRANSPORT COSTS,REVENUE
Walsall Council,http://opendatacommunities.org/id/metropolitan-district-council/walsall,WC123-172,28.02.2021,CHILDRENS,ACE CARS & MINIBUSES LTD,25/02/2021,"2,185.00",6241-Hire of Vehicle with Driver,TRANSPORT,DIRECT TRANSPORT COSTS,REVENUE
Walsall Council,http://opendatacommunities.org/id/metropolitan-district-council/walsall,WC123-173,28.02.2021,CHILDRENS,ACE CARS & MINIBUSES LTD,25/02/2021,"2,185.00",6241-Hire of Vehicle with Driver,TRANSPORT,DIRECT TRANSPORT COSTS,REVENUE
Walsall Council,http://opendatacommunities.org/id/metropolitan-district-council/walsall,WC123-174,28.02.2021,CHILDRENS,ACE CARS & MINIBUSES LTD,25/02/2021,"1,760.00",6241-Hire of Vehicle with Driver,TRANSPORT,DIRECT TRANSPORT COSTS,REVENUE
Walsall Council,http://opendatacommunities.org/id/metropolitan-district-council/walsall,WC123-175,28.02.2021,CHILDRENS,ACE CARS & MINIBUSES LTD,25/02/2021,"3,750.00",6241-Hire of Vehicle with Driver,TRANSPORT,DIRECT TRANSPORT COSTS,REVENUE
Walsall Council,http://opendatacommunities.org/id/metropolitan-district-council/walsall,WC123-176,28.02.2021,CHILDRENS,ACE CARS & MINIBUSES LTD,25/02/2021,"2,565.00",6241-Hire of Vehicle with Driver,TRANSPORT,DIRECT TRANSPORT COSTS,REVENUE
Walsall Council,http://opendatacommunities.org/id/metropolitan-district-council/walsall,WC123-177,28.02.2021,CHILDRENS,ACE CARS & MINIBUSES LTD,25/02/2021,"2,472.00",6241-Hire of Vehicle with Driver,TRANSPORT,DIRECT TRANSPORT COSTS,REVENUE
Walsall Council,http://opendatacommunities.org/id/metropolitan-district-council/walsall,WC123-178,28.02.2021,CHILDRENS,ACE CARS & MINIBUSES LTD,25/02/2021,"1,310.00",6241-Hire of Vehicle with Driver,TRANSPORT,DIRECT TRANSPORT COSTS,REVENUE
Walsall Council,http://opendatacommunities.org/id/metropolitan-district-council/walsall,WC123-179,28.02.2021,CHILDRENS,ACE CARS & MINIBUSES LTD,25/02/2021,"2,200.00",6241-Hire of Vehicle with Driver,TRANSPORT,DIRECT TRANSPORT COSTS,REVENUE
Walsall Council,http://opendatacommunities.org/id/metropolitan-district-council/walsall,WC123-180,28.02.2021,CHILDRENS,ACE CARS & MINIBUSES LTD,25/02/2021,"1,256.00",6241-Hire of Vehicle with Driver,TRANSPORT,DIRECT TRANSPORT COSTS,REVENUE
Walsall Council,http://opendatacommunities.org/id/metropolitan-district-council/walsall,WC123-181,28.02.2021,CHILDRENS,ACE CARS & MINIBUSES LTD,25/02/2021,"1,248.00",6241-Hire of Vehicle with Driver,TRANSPORT,DIRECT TRANSPORT COSTS,REVENUE
Walsall Council,http://opendatacommunities.org/id/metropolitan-district-council/walsall,WC123-182,28.02.2021,CHILDRENS,ACE CARS & MINIBUSES LTD,25/02/2021,"2,760.00",6241-Hire of Vehicle with Driver,TRANSPORT,DIRECT TRANSPORT COSTS,REVENUE
Walsall Council,http://opendatacommunities.org/id/metropolitan-district-council/walsall,WC123-183,28.02.2021,CHILDRENS,ACE CARS & MINIBUSES LTD,25/02/2021,"2,070.00",6241-Hire of Vehicle with Driver,TRANSPORT,DIRECT TRANSPORT COSTS,REVENUE
Walsall Council,http://opendatacommunities.org/id/metropolitan-district-council/walsall,WC123-184,28.02.2021,CHILDRENS,ACE CARS & MINIBUSES LTD,25/02/2021,"2,530.00",6241-Hire of Vehicle with Driver,TRANSPORT,DIRECT TRANSPORT COSTS,REVENUE
Walsall Council,http://opendatacommunities.org/id/metropolitan-district-council/walsall,WC123-185,28.02.2021,CHILDRENS,ACE CARS & MINIBUSES LTD,25/02/2021,"2,750.00",6241-Hire of Vehicle with Driver,TRANSPORT,DIRECT TRANSPORT COSTS,REVENUE
Walsall Council,http://opendatacommunities.org/id/metropolitan-district-council/walsall,WC123-186,28.02.2021,CHILDRENS,ACE CARS & MINIBUSES LTD,25/02/2021,"1,472.00",6241-Hire of Vehicle with Driver,TRANSPORT,DIRECT TRANSPORT COSTS,REVENUE
Walsall Council,http://opendatacommunities.org/id/metropolitan-district-council/walsall,WC123-187,28.02.2021,CHILDRENS,ACE CARS & MINIBUSES LTD,25/02/2021,"3,090.00",6241-Hire of Vehicle with Driver,TRANSPORT,DIRECT TRANSPORT COSTS,REVENUE
Walsall Council,http://opendatacommunities.org/id/metropolitan-district-council/walsall,WC123-188,28.02.2021,CHILDRENS,ACE CARS & MINIBUSES LTD,25/02/2021,"2,392.00",6241-Hire of Vehicle with Driver,TRANSPORT,DIRECT TRANSPORT COSTS,REVENUE
Walsall Council,http://opendatacommunities.org/id/metropolitan-district-council/walsall,WC123-189,28.02.2021,CHILDRENS,ACE CARS & MINIBUSES LTD,25/02/2021,480.00,6241-Hire of Vehicle with Driver,TRANSPORT,DIRECT TRANSPORT COSTS,REVENUE
Walsall Council,http://opendatacommunities.org/id/metropolitan-district-council/walsall,WC123-190,28.02.2021,CHILDRENS,ACE CARS & MINIBUSES LTD,25/02/2021,880.00,6241-Hire of Vehicle with Driver,TRANSPORT,DIRECT TRANSPORT COSTS,REVENUE
Walsall Council,http://opendatacommunities.org/id/metropolitan-district-council/walsall,WC123-191,28.02.2021,CHILDRENS,ACE CARS & MINIBUSES LTD,25/02/2021,"3,890.00",6241-Hire of Vehicle with Driver,TRANSPORT,DIRECT TRANSPORT COSTS,REVENUE
Walsall Council,http://opendatacommunities.org/id/metropolitan-district-council/walsall,WC123-192,28.02.2021,CHILDRENS,ACE CARS & MINIBUSES LTD,25/02/2021,800.00,6241-Hire of Vehicle with Driver,TRANSPORT,DIRECT TRANSPORT COSTS,REVENUE
Walsall Council,http://opendatacommunities.org/id/metropolitan-district-council/walsall,WC123-193,28.02.2021,CHILDRENS,ACE CARS & MINIBUSES LTD,25/02/2021,"3,310.00",6241-Hire of Vehicle with Driver,TRANSPORT,DIRECT TRANSPORT COSTS,REVENUE
Walsall Council,http://opendatacommunities.org/id/metropolitan-district-council/walsall,WC123-194,28.02.2021,CHILDRENS,ACE CARS & MINIBUSES LTD,25/02/2021,"1,280.00",6241-Hire of Vehicle with Driver,TRANSPORT,DIRECT TRANSPORT COSTS,REVENUE
Walsall Council,http://opendatacommunities.org/id/metropolitan-district-council/walsall,WC123-195,28.02.2021,ADULT SOCIAL CARE,ACEPAY LTD (COTTAGE NUR HOME),15/02/2021,"2,044.00",6541-Residential,THIRD PARTY PAYMENTS,PRIVATE CONTRACTOR,REVENUE
Walsall Council,http://opendatacommunities.org/id/metropolitan-district-council/walsall,WC123-196,28.02.2021,ADULT SOCIAL CARE,ACEPAY LTD (COTTAGE NUR HOME),15/02/2021,"2,396.00",6541-Nursing,THIRD PARTY PAYMENTS,PRIVATE CONTRACTOR,REVENUE
Walsall Council,http://opendatacommunities.org/id/metropolitan-district-council/walsall,WC123-197,28.02.2021,ADULT SOCIAL CARE,ACEPAY LTD (COTTAGE NUR HOME),15/02/2021,"2,396.00",6541-Nursing,THIRD PARTY PAYMENTS,PRIVATE CONTRACTOR,REVENUE
Walsall Council,http://opendatacommunities.org/id/metropolitan-district-council/walsall,WC123-198,28.02.2021,ADULT SOCIAL CARE,ACEPAY LTD (COTTAGE NUR HOME),15/02/2021,"2,396.00",6541-Nursing,THIRD PARTY PAYMENTS,PRIVATE CONTRACTOR,REVENUE
Walsall Council,http://opendatacommunities.org/id/metropolitan-district-council/walsall,WC123-199,28.02.2021,ADULT SOCIAL CARE,ACEPAY LTD (COTTAGE NUR HOME),15/02/2021,"2,396.00",6541-Nursing,THIRD PARTY PAYMENTS,PRIVATE CONTRACTOR,REVENUE
Walsall Council,http://opendatacommunities.org/id/metropolitan-district-council/walsall,WC123-200,28.02.2021,ADULT SOCIAL CARE,ACEPAY LTD (COTTAGE NUR HOME),15/02/2021,"2,396.00",6541-Nursing,THIRD PARTY PAYMENTS,PRIVATE CONTRACTOR,REVENUE
Walsall Council,http://opendatacommunities.org/id/metropolitan-district-council/walsall,WC123-201,28.02.2021,ADULT SOCIAL CARE,ACEPAY LTD (COTTAGE NUR HOME),15/02/2021,"2,396.00",6541-Nursing,THIRD PARTY PAYMENTS,PRIVATE CONTRACTOR,REVENUE
Walsall Council,http://opendatacommunities.org/id/metropolitan-district-council/walsall,WC123-202,28.02.2021,ADULT SOCIAL CARE,ACEPAY LTD (COTTAGE NUR HOME),15/02/2021,"2,396.00",6541-Nursing,THIRD PARTY PAYMENTS,PRIVATE CONTRACTOR,REVENUE
Walsall Council,http://opendatacommunities.org/id/metropolitan-district-council/walsall,WC123-203,28.02.2021,ADULT SOCIAL CARE,ACEPAY LTD (COTTAGE NUR HOME),15/02/2021,"-6,924.00",6541-Residential EMI,THIRD PARTY PAYMENTS,PRIVATE CONTRACTOR,REVENUE
Walsall Council,http://opendatacommunities.org/id/metropolitan-district-council/walsall,WC123-204,28.02.2021,ADULT SOCIAL CARE,ACEPAY LTD (COTTAGE NUR HOME),15/02/2021,"2,308.00",6541-Residential EMI,THIRD PARTY PAYMENTS,PRIVATE CONTRACTOR,REVENUE
Walsall Council,http://opendatacommunities.org/id/metropolitan-district-council/walsall,WC123-205,28.02.2021,ADULT SOCIAL CARE,ACEPAY LTD (COTTAGE NUR HOME),15/02/2021,"2,053.71",6541-Nursing,THIRD PARTY PAYMENTS,PRIVATE CONTRACTOR,REVENUE
Walsall Council,http://opendatacommunities.org/id/metropolitan-district-council/walsall,WC123-206,28.02.2021,ADULT SOCIAL CARE,ACEPAY LTD (COTTAGE NUR HOME),15/02/2021,"2,396.00",6541-Nursing,THIRD PARTY PAYMENTS,PRIVATE CONTRACTOR,REVENUE
Walsall Council,http://opendatacommunities.org/id/metropolitan-district-council/walsall,WC123-207,28.02.2021,ADULT SOCIAL CARE,ACEPAY LTD (COTTAGE NUR HOME),15/02/2021,"2,396.00",6541-Nursing,THIRD PARTY PAYMENTS,PRIVATE CONTRACTOR,REVENUE
Walsall Council,http://opendatacommunities.org/id/metropolitan-district-council/walsall,WC123-208,28.02.2021,ADULT SOCIAL CARE,ACEPAY LTD (COTTAGE NUR HOME),15/02/2021,"2,396.00",6541-Nursing,THIRD PARTY PAYMENTS,PRIVATE CONTRACTOR,REVENUE
Walsall Council,http://opendatacommunities.org/id/metropolitan-district-council/walsall,WC123-209,28.02.2021,ADULT SOCIAL CARE,ACEPAY LTD (COTTAGE NUR HOME),15/02/2021,"2,396.00",6541-Nursing,THIRD PARTY PAYMENTS,PRIVATE CONTRACTOR,REVENUE
Walsall Council,http://opendatacommunities.org/id/metropolitan-district-council/walsall,WC123-210,28.02.2021,ADULT SOCIAL CARE,ACEPAY LTD (COTTAGE NUR HOME),15/02/2021,"2,596.00",6541-Nursing,THIRD PARTY PAYMENTS,PRIVATE CONTRACTOR,REVENUE
Walsall Council,http://opendatacommunities.org/id/metropolitan-district-council/walsall,WC123-211,28.02.2021,ADULT SOCIAL CARE,ACEPAY LTD (COTTAGE NUR HOME),15/02/2021,"2,396.00",6541-Nursing,THIRD PARTY PAYMENTS,PRIVATE CONTRACTOR,REVENUE
Walsall Council,http://opendatacommunities.org/id/metropolitan-district-council/walsall,WC123-212,28.02.2021,ADULT SOCIAL CARE,ACEPAY LTD (COTTAGE NUR HOME),15/02/2021,"2,396.00",6541-Nursing,THIRD PARTY PAYMENTS,PRIVATE CONTRACTOR,REVENUE
Walsall Council,http://opendatacommunities.org/id/metropolitan-district-council/walsall,WC123-213,28.02.2021,ADULT SOCIAL CARE,ACEPAY LTD (COTTAGE NUR HOME),15/02/2021,"2,396.00",6541-Nursing,THIRD PARTY PAYMENTS,PRIVATE CONTRACTOR,REVENUE
Walsall Council,http://opendatacommunities.org/id/metropolitan-district-council/walsall,WC123-214,28.02.2021,ADULT SOCIAL CARE,ACEPAY LTD (COTTAGE NUR HOME),15/02/2021,"1,882.57",6541-Nursing,THIRD PARTY PAYMENTS,PRIVATE CONTRACTOR,REVENUE
Walsall Council,http://opendatacommunities.org/id/metropolitan-district-council/walsall,WC123-215,28.02.2021,ADULT SOCIAL CARE,ACEPAY LTD (COTTAGE NUR HOME),08/02/2021,"11,022.00",6550-Professional Services-Priv Contractor & Other Agencies,THIRD PARTY PAYMENTS,PRIVATE CONTRACTOR,REVENUE
Walsall Council,http://opendatacommunities.org/id/metropolitan-district-council/walsall,WC123-216,28.02.2021,ADULT SOCIAL CARE,ACEPAY LTD (COTTAGE NUR HOME),19/02/2021,"8,434.80",6550-Professional Services-Priv Contractor & Other Agencies,THIRD PARTY PAYMENTS,PRIVATE CONTRACTOR,REVENUE
Walsall Council,http://opendatacommunities.org/id/metropolitan-district-council/walsall,WC123-217,28.02.2021,CHILDRENS,ACORN CARE & EDUCATION LTD (SALES),18/02/2021,"25,960.02",1220-Professional Fees & Services,SUPPLIES & SERVICES,SERVICES,REVENUE
Walsall Council,http://opendatacommunities.org/id/metropolitan-district-council/walsall,WC123-218,28.02.2021,CHILDRENS,ACORN CARE & EDUCATION LTD (SALES),11/02/2021,"7,516.44",1220-Professional Fees & Services,SUPPLIES & SERVICES,SERVICES,REVENUE
Walsall Council,http://opendatacommunities.org/id/metropolitan-district-council/walsall,WC123-219,28.02.2021,CHILDRENS,ACORN CARE & EDUCATION LTD (SALES),11/02/2021,"17,302.00",1220-Professional Fees & Services,SUPPLIES & SERVICES,SERVICES,REVENUE
Walsall Council,http://opendatacommunities.org/id/metropolitan-district-council/walsall,WC123-220,28.02.2021,CHILDRENS,ACORN CARE & EDUCATION LTD (SALES),24/02/2021,"14,040.15",1220-Professional Fees & Services,SUPPLIES & SERVICES,SERVICES,REVENUE
Walsall Council,http://opendatacommunities.org/id/metropolitan-district-council/walsall,WC123-221,28.02.2021,CHILDRENS,ACORN CARE & EDUCATION LTD (SALES),24/02/2021,"17,302.00",1220-Professional Fees & Services,SUPPLIES & SERVICES,SERVICES,REVENUE
Walsall Council,http://opendatacommunities.org/id/metropolitan-district-council/walsall,WC123-222,28.02.2021,CHILDRENS,ACORN FOSTERING SERVICES LTD,19/02/2021,"3,380.00",6223-Independent Foster Care-Oth Agency Provision,THIRD PARTY PAYMENTS,PRIVATE CONTRACTOR,REVENUE
Walsall Council,http://opendatacommunities.org/id/metropolitan-district-council/walsall,WC123-223,28.02.2021,CHILDRENS,ACORNS CHILDRENS HOSPICE TRUST,16/02/2021,"1,700.00",6220-Professional Fees & Services,SUPPLIES & SERVICES,SERVICES,REVENUE
Walsall Council,http://opendatacommunities.org/id/metropolitan-district-council/walsall,WC123-224,28.02.2021,CHILDRENS,ACORNS CHILDRENS HOSPICE TRUST,16/02/2021,850.00,6220-Professional Fees & Services,SUPPLIES & SERVICES,SERVICES,REVENUE
Walsall Council,http://opendatacommunities.org/id/metropolitan-district-council/walsall,WC123-225,28.02.2021,CHILDRENS,ACORNS CHILDRENS HOSPICE TRUST,11/02/2021,850.00,6220-Professional Fees & Services,SUPPLIES & SERVICES,SERVICES,REVENUE
Walsall Council,http://opendatacommunities.org/id/metropolitan-district-council/walsall,WC123-226,28.02.2021,CHILDRENS,ACORNS CHILDRENS HOSPICE TRUST,11/02/2021,"1,700.00",6220-Professional Fees & Services,SUPPLIES & SERVICES,SERVICES,REVENUE
Walsall Council,http://opendatacommunities.org/id/metropolitan-district-council/walsall,WC123-227,28.02.2021,CHILDRENS,ACTIVE CARE SOLUTIONS LTD,19/02/2021,"2,596.36",6223-Independent Foster Care-Oth Agency Provision,THIRD PARTY PAYMENTS,PRIVATE CONTRACTOR,REVENUE
Walsall Council,http://opendatacommunities.org/id/metropolitan-district-council/walsall,WC123-228,28.02.2021,CHILDRENS,ACTIVE CARE SOLUTIONS LTD,19/02/2021,"1,397.04",6223-Independent Foster Care-Oth Agency Provision,THIRD PARTY PAYMENTS,PRIVATE CONTRACTOR,REVENUE
Walsall Council,http://opendatacommunities.org/id/metropolitan-district-council/walsall,WC123-229,28.02.2021,ADULT SOCIAL CARE,REDACTED,04/02/2021,782.88,6541-Direct Payment,THIRD PARTY PAYMENTS,PRIVATE CONTRACTOR,REVENUE
Walsall Council,http://opendatacommunities.org/id/metropolitan-district-council/walsall,WC123-230,28.02.2021,ECONOMY & ENVIRONMENT,ADEPT,12/02/2021,"1,250.00",6315-Subscriptions,SUPPLIES & SERVICES,GRANTS (EXP) & SUBSCRIPTIONS,REVENUE
Walsall Council,http://opendatacommunities.org/id/metropolitan-district-council/walsall,WC123-231,28.02.2021,CHILDRENS,REDACTED,05/02/2021,361.12,6223-Residents Orders,TRANSFER PAYMENTS,CHILDREN SOCIAL SERVICES CLIENT,REVENUE
Walsall Council,http://opendatacommunities.org/id/metropolitan-district-council/walsall,WC123-232,28.02.2021,CHILDRENS,REDACTED,05/02/2021,333.12,6223-Residents Orders,TRANSFER PAYMENTS,CHILDREN SOCIAL SERVICES CLIENT,REVENUE
Walsall Council,http://opendatacommunities.org/id/metropolitan-district-council/walsall,WC123-233,28.02.2021,ADULT SOCIAL CARE,REDACTED,04/02/2021,"2,083.20",6541-Direct Payment,THIRD PARTY PAYMENTS,PRIVATE CONTRACTOR,REVENUE
Walsall Council,http://opendatacommunities.org/id/metropolitan-district-council/walsall,WC123-234,28.02.2021,ADULT SOCIAL CARE,ADVANCE HEALTH CARE (UK) LTD,01/02/2021,359.80,6541-Domiciliary Care,THIRD PARTY PAYMENTS,PRIVATE CONTRACTOR,REVENUE
Walsall Council,http://opendatacommunities.org/id/metropolitan-district-council/walsall,WC123-235,28.02.2021,ADULT SOCIAL CARE,ADVANCE HEALTH CARE (UK) LTD,01/02/2021,485.80,6541-Domiciliary Care,THIRD PARTY PAYMENTS,PRIVATE CONTRACTOR,REVENUE
Walsall Council,http://opendatacommunities.org/id/metropolitan-district-council/walsall,WC123-236,28.02.2021,ADULT SOCIAL CARE,ADVANCE HEALTH CARE (UK) LTD,01/02/2021,501.15,6541-Domiciliary Care,THIRD PARTY PAYMENTS,PRIVATE CONTRACTOR,REVENUE
Walsall Council,http://opendatacommunities.org/id/metropolitan-district-council/walsall,WC123-237,28.02.2021,ADULT SOCIAL CARE,ADVANCE HEALTH CARE (UK) LTD,01/02/2021,431.76,6541-Domiciliary Care,THIRD PARTY PAYMENTS,PRIVATE CONTRACTOR,REVENUE
Walsall Council,http://opendatacommunities.org/id/metropolitan-district-council/walsall,WC123-238,28.02.2021,ADULT SOCIAL CARE,ADVANCE HEALTH CARE (UK) LTD,01/02/2021,485.73,6541-Domiciliary Care,THIRD PARTY PAYMENTS,PRIVATE CONTRACTOR,REVENUE
Walsall Council,http://opendatacommunities.org/id/metropolitan-district-council/walsall,WC123-239,28.02.2021,ADULT SOCIAL CARE,ADVANCE HEALTH CARE (UK) LTD,01/02/2021,824.97,6541-Domiciliary Care,THIRD PARTY PAYMENTS,PRIVATE CONTRACTOR,REVENUE
Walsall Council,http://opendatacommunities.org/id/metropolitan-district-council/walsall,WC123-240,28.02.2021,ADULT SOCIAL CARE,ADVANCE HEALTH CARE (UK) LTD,01/02/2021,485.73,6541-Domiciliary Care,THIRD PARTY PAYMENTS,PRIVATE CONTRACTOR,REVENUE
Walsall Council,http://opendatacommunities.org/id/metropolitan-district-council/walsall,WC123-241,28.02.2021,ADULT SOCIAL CARE,ADVANCE HEALTH CARE (UK) LTD,01/02/2021,485.73,6541-Domiciliary Care,THIRD PARTY PAYMENTS,PRIVATE CONTRACTOR,REVENUE
Walsall Council,http://opendatacommunities.org/id/metropolitan-district-council/walsall,WC123-242,28.02.2021,ADULT SOCIAL CARE,ADVANCE HEALTH CARE (UK) LTD,01/02/2021,431.76,6541-Domiciliary Care,THIRD PARTY PAYMENTS,PRIVATE CONTRACTOR,REVENUE
Walsall Council,http://opendatacommunities.org/id/metropolitan-district-council/walsall,WC123-243,28.02.2021,ADULT SOCIAL CARE,ADVANCE HEALTH CARE (UK) LTD,01/02/2021,439.47,6541-Domiciliary Care,THIRD PARTY PAYMENTS,PRIVATE CONTRACTOR,REVENUE
Walsall Council,http://opendatacommunities.org/id/metropolitan-district-council/walsall,WC123-244,28.02.2021,ADULT SOCIAL CARE,ADVANCE HEALTH CARE (UK) LTD,01/02/2021,593.88,6541-Domiciliary Care,THIRD PARTY PAYMENTS,PRIVATE CONTRACTOR,REVENUE
Walsall Council,http://opendatacommunities.org/id/metropolitan-district-council/walsall,WC123-245,28.02.2021,ADULT SOCIAL CARE,ADVANCE HEALTH CARE (UK) LTD,01/02/2021,485.73,6541-Domiciliary Care,THIRD PARTY PAYMENTS,PRIVATE CONTRACTOR,REVENUE
Walsall Council,http://opendatacommunities.org/id/metropolitan-district-council/walsall,WC123-246,28.02.2021,ADULT SOCIAL CARE,ADVANCE HEALTH CARE (UK) LTD,01/02/2021,863.52,6541-Domiciliary Care,THIRD PARTY PAYMENTS,PRIVATE CONTRACTOR,REVENUE
Walsall Council,http://opendatacommunities.org/id/metropolitan-district-council/walsall,WC123-247,28.02.2021,ADULT SOCIAL CARE,ADVANCE HEALTH CARE (UK) LTD,01/02/2021,323.82,6541-Domiciliary Care,THIRD PARTY PAYMENTS,PRIVATE CONTRACTOR,REVENUE
Walsall Council,http://opendatacommunities.org/id/metropolitan-district-council/walsall,WC123-248,28.02.2021,ADULT SOCIAL CARE,ADVANCE HEALTH CARE (UK) LTD,01/02/2021,377.79,6541-Domiciliary Care,THIRD PARTY PAYMENTS,PRIVATE CONTRACTOR,REVENUE
Walsall Council,http://opendatacommunities.org/id/metropolitan-district-council/walsall,WC123-249,28.02.2021,ADULT SOCIAL CARE,ADVANCE HEALTH CARE (UK) LTD,01/02/2021,377.79,6541-Domiciliary Care,THIRD PARTY PAYMENTS,PRIVATE CONTRACTOR,REVENUE
Walsall Council,http://opendatacommunities.org/id/metropolitan-district-council/walsall,WC123-250,28.02.2021,ADULT SOCIAL CARE,ADVANCE HEALTH CARE (UK) LTD,01/02/2021,431.76,6541-Domiciliary Care,THIRD PARTY PAYMENTS,PRIVATE CONTRACTOR,REVENUE
Walsall Council,http://opendatacommunities.org/id/metropolitan-district-council/walsall,WC123-251,28.02.2021,ADULT SOCIAL CARE,ADVANCE HEALTH CARE (UK) LTD,01/02/2021,539.70,6541-Domiciliary Care,THIRD PARTY PAYMENTS,PRIVATE CONTRACTOR,REVENUE
Walsall Council,http://opendatacommunities.org/id/metropolitan-district-council/walsall,WC123-252,28.02.2021,ADULT SOCIAL CARE,ADVANCE HEALTH CARE (UK) LTD,01/02/2021,431.76,6541-Domiciliary Care,THIRD PARTY PAYMENTS,PRIVATE CONTRACTOR,REVENUE
Walsall Council,http://opendatacommunities.org/id/metropolitan-district-council/walsall,WC123-253,28.02.2021,ADULT SOCIAL CARE,ADVANCE HEALTH CARE (UK) LTD,01/02/2021,-277.56,6541-Domiciliary Care,THIRD PARTY PAYMENTS,PRIVATE CONTRACTOR,REVENUE
Walsall Council,http://opendatacommunities.org/id/metropolitan-district-council/walsall,WC123-254,28.02.2021,ADULT SOCIAL CARE,ADVANCE HEALTH CARE (UK) LTD,01/02/2021,524.28,6541-Domiciliary Care,THIRD PARTY PAYMENTS,PRIVATE CONTRACTOR,REVENUE
Walsall Council,http://opendatacommunities.org/id/metropolitan-district-council/walsall,WC123-255,28.02.2021,ADULT SOCIAL CARE,ADVANCE HEALTH CARE (UK) LTD,01/02/2021,485.73,6541-Domiciliary Care,THIRD PARTY PAYMENTS,PRIVATE CONTRACTOR,REVENUE
Walsall Council,http://opendatacommunities.org/id/metropolitan-district-council/walsall,WC123-256,28.02.2021,ADULT SOCIAL CARE,ADVANCE HEALTH CARE (UK) LTD,01/02/2021,485.73,6541-Domiciliary Care,THIRD PARTY PAYMENTS,PRIVATE CONTRACTOR,REVENUE
Walsall Council,http://opendatacommunities.org/id/metropolitan-district-council/walsall,WC123-257,28.02.2021,ADULT SOCIAL CARE,ADVANCE HEALTH CARE (UK) LTD,01/02/2021,323.82,6541-Domiciliary Care,THIRD PARTY PAYMENTS,PRIVATE CONTRACTOR,REVENUE
Walsall Council,http://opendatacommunities.org/id/metropolitan-district-council/walsall,WC123-258,28.02.2021,ADULT SOCIAL CARE,ADVANCE HEALTH CARE (UK) LTD,01/02/2021,701.61,6541-Domiciliary Care,THIRD PARTY PAYMENTS,PRIVATE CONTRACTOR,REVENUE
Walsall Council,http://opendatacommunities.org/id/metropolitan-district-council/walsall,WC123-259,28.02.2021,ADULT SOCIAL CARE,ADVANCE HEALTH CARE (UK) LTD,01/02/2021,377.79,6541-Domiciliary Care,THIRD PARTY PAYMENTS,PRIVATE CONTRACTOR,REVENUE
Walsall Council,http://opendatacommunities.org/id/metropolitan-district-council/walsall,WC123-260,28.02.2021,ADULT SOCIAL CARE,ADVANCE HEALTH CARE (UK) LTD,01/02/2021,485.73,6541-Domiciliary Care,THIRD PARTY PAYMENTS,PRIVATE CONTRACTOR,REVENUE
Walsall Council,http://opendatacommunities.org/id/metropolitan-district-council/walsall,WC123-261,28.02.2021,ADULT SOCIAL CARE,ADVANCE HEALTH CARE (UK) LTD,01/02/2021,485.73,6541-Domiciliary Care,THIRD PARTY PAYMENTS,PRIVATE CONTRACTOR,REVENUE
Walsall Council,http://opendatacommunities.org/id/metropolitan-district-council/walsall,WC123-262,28.02.2021,ADULT SOCIAL CARE,ADVANCE HEALTH CARE (UK) LTD,01/02/2021,359.80,6541-Domiciliary Care,THIRD PARTY PAYMENTS,PRIVATE CONTRACTOR,REVENUE
Walsall Council,http://opendatacommunities.org/id/metropolitan-district-council/walsall,WC123-263,28.02.2021,ADULT SOCIAL CARE,ADVANCE HEALTH CARE (UK) LTD,01/02/2021,431.76,6541-Domiciliary Care,THIRD PARTY PAYMENTS,PRIVATE CONTRACTOR,REVENUE
Walsall Council,http://opendatacommunities.org/id/metropolitan-district-council/walsall,WC123-264,28.02.2021,ADULT SOCIAL CARE,ADVANCE HEALTH CARE (UK) LTD,01/02/2021,431.76,6541-Domiciliary Care,THIRD PARTY PAYMENTS,PRIVATE CONTRACTOR,REVENUE
Walsall Council,http://opendatacommunities.org/id/metropolitan-district-council/walsall,WC123-265,28.02.2021,ADULT SOCIAL CARE,ADVANCE HEALTH CARE (UK) LTD,01/02/2021,431.76,6541-Domiciliary Care,THIRD PARTY PAYMENTS,PRIVATE CONTRACTOR,REVENUE
Walsall Council,http://opendatacommunities.org/id/metropolitan-district-council/walsall,WC123-266,28.02.2021,ADULT SOCIAL CARE,ADVANCE HEALTH CARE (UK) LTD,01/02/2021,485.73,6541-Domiciliary Care,THIRD PARTY PAYMENTS,PRIVATE CONTRACTOR,REVENUE
Walsall Council,http://opendatacommunities.org/id/metropolitan-district-council/walsall,WC123-267,28.02.2021,ADULT SOCIAL CARE,ADVANCE HEALTH CARE (UK) LTD,01/02/2021,755.58,6541-Domiciliary Care,THIRD PARTY PAYMENTS,PRIVATE CONTRACTOR,REVENUE
Walsall Council,http://opendatacommunities.org/id/metropolitan-district-council/walsall,WC123-268,28.02.2021,ADULT SOCIAL CARE,ADVANCE HEALTH CARE (UK) LTD,01/02/2021,431.76,6541-Domiciliary Care,THIRD PARTY PAYMENTS,PRIVATE CONTRACTOR,REVENUE
Walsall Council,http://opendatacommunities.org/id/metropolitan-district-council/walsall,WC123-269,28.02.2021,ADULT SOCIAL CARE,ADVANCE HEALTH CARE (UK) LTD,01/02/2021,431.76,6541-Domiciliary Care,THIRD PARTY PAYMENTS,PRIVATE CONTRACTOR,REVENUE
Walsall Council,http://opendatacommunities.org/id/metropolitan-district-council/walsall,WC123-270,28.02.2021,ADULT SOCIAL CARE,ADVANCE HEALTH CARE (UK) LTD,01/02/2021,257.00,6541-Domiciliary Care,THIRD PARTY PAYMENTS,PRIVATE CONTRACTOR,REVENUE
Walsall Council,http://opendatacommunities.org/id/metropolitan-district-council/walsall,WC123-271,28.02.2021,ADULT SOCIAL CARE,ADVANCE HEALTH CARE (UK) LTD,01/02/2021,439.47,6541-Domiciliary Care,THIRD PARTY PAYMENTS,PRIVATE CONTRACTOR,REVENUE
Walsall Council,http://opendatacommunities.org/id/metropolitan-district-council/walsall,WC123-272,28.02.2021,ADULT SOCIAL CARE,ADVANCE HEALTH CARE (UK) LTD,01/02/2021,593.88,6541-Domiciliary Care,THIRD PARTY PAYMENTS,PRIVATE CONTRACTOR,REVENUE
Walsall Council,http://opendatacommunities.org/id/metropolitan-district-council/walsall,WC123-273,28.02.2021,ADULT SOCIAL CARE,ADVANCE HEALTH CARE (UK) LTD,01/02/2021,485.73,6541-Domiciliary Care,THIRD PARTY PAYMENTS,PRIVATE CONTRACTOR,REVENUE
Walsall Council,http://opendatacommunities.org/id/metropolitan-district-council/walsall,WC123-274,28.02.2021,ADULT SOCIAL CARE,ADVANCE HEALTH CARE (UK) LTD,01/02/2021,863.52,6541-Domiciliary Care,THIRD PARTY PAYMENTS,PRIVATE CONTRACTOR,REVENUE
Walsall Council,http://opendatacommunities.org/id/metropolitan-district-council/walsall,WC123-275,28.02.2021,ADULT SOCIAL CARE,ADVANCE HEALTH CARE (UK) LTD,01/02/2021,323.82,6541-Domiciliary Care,THIRD PARTY PAYMENTS,PRIVATE CONTRACTOR,REVENUE
Walsall Council,http://opendatacommunities.org/id/metropolitan-district-council/walsall,WC123-276,28.02.2021,ADULT SOCIAL CARE,ADVANCE HEALTH CARE (UK) LTD,01/02/2021,377.79,6541-Domiciliary Care,THIRD PARTY PAYMENTS,PRIVATE CONTRACTOR,REVENUE
Walsall Council,http://opendatacommunities.org/id/metropolitan-district-council/walsall,WC123-277,28.02.2021,ADULT SOCIAL CARE,ADVANCE HEALTH CARE (UK) LTD,01/02/2021,323.82,6541-Domiciliary Care,THIRD PARTY PAYMENTS,PRIVATE CONTRACTOR,REVENUE
Walsall Council,http://opendatacommunities.org/id/metropolitan-district-council/walsall,WC123-278,28.02.2021,ADULT SOCIAL CARE,ADVANCE HEALTH CARE (UK) LTD,01/02/2021,701.61,6541-Domiciliary Care,THIRD PARTY PAYMENTS,PRIVATE CONTRACTOR,REVENUE
Walsall Council,http://opendatacommunities.org/id/metropolitan-district-council/walsall,WC123-279,28.02.2021,ADULT SOCIAL CARE,ADVANCE HEALTH CARE (UK) LTD,01/02/2021,485.73,6541-Domiciliary Care,THIRD PARTY PAYMENTS,PRIVATE CONTRACTOR,REVENUE
Walsall Council,http://opendatacommunities.org/id/metropolitan-district-council/walsall,WC123-280,28.02.2021,ADULT SOCIAL CARE,ADVANCE HEALTH CARE (UK) LTD,01/02/2021,824.97,6541-Domiciliary Care,THIRD PARTY PAYMENTS,PRIVATE CONTRACTOR,REVENUE
Walsall Council,http://opendatacommunities.org/id/metropolitan-district-council/walsall,WC123-281,28.02.2021,ADULT SOCIAL CARE,ADVANCE HEALTH CARE (UK) LTD,01/02/2021,485.73,6541-Domiciliary Care,THIRD PARTY PAYMENTS,PRIVATE CONTRACTOR,REVENUE
Walsall Council,http://opendatacommunities.org/id/metropolitan-district-council/walsall,WC123-282,28.02.2021,ADULT SOCIAL CARE,ADVANCE HEALTH CARE (UK) LTD,01/02/2021,485.73,6541-Domiciliary Care,THIRD PARTY PAYMENTS,PRIVATE CONTRACTOR,REVENUE
Walsall Council,http://opendatacommunities.org/id/metropolitan-district-council/walsall,WC123-283,28.02.2021,ADULT SOCIAL CARE,ADVANCE HEALTH CARE (UK) LTD,01/02/2021,431.76,6541-Domiciliary Care,THIRD PARTY PAYMENTS,PRIVATE CONTRACTOR,REVENUE
Walsall Council,http://opendatacommunities.org/id/metropolitan-district-council/walsall,WC123-284,28.02.2021,ADULT SOCIAL CARE,ADVANCE HEALTH CARE (UK) LTD,01/02/2021,539.70,6541-Domiciliary Care,THIRD PARTY PAYMENTS,PRIVATE CONTRACTOR,REVENUE
Walsall Council,http://opendatacommunities.org/id/metropolitan-district-council/walsall,WC123-285,28.02.2021,ADULT SOCIAL CARE,ADVANCE HEALTH CARE (UK) LTD,01/02/2021,524.28,6541-Domiciliary Care,THIRD PARTY PAYMENTS,PRIVATE CONTRACTOR,REVENUE
Walsall Council,http://opendatacommunities.org/id/metropolitan-district-council/walsall,WC123-286,28.02.2021,ADULT SOCIAL CARE,ADVANCE HEALTH CARE (UK) LTD,01/02/2021,431.76,6541-Domiciliary Care,THIRD PARTY PAYMENTS,PRIVATE CONTRACTOR,REVENUE
Walsall Council,http://opendatacommunities.org/id/metropolitan-district-council/walsall,WC123-287,28.02.2021,ADULT SOCIAL CARE,ADVANCE HEALTH CARE (UK) LTD,01/02/2021,485.73,6541-Domiciliary Care,THIRD PARTY PAYMENTS,PRIVATE CONTRACTOR,REVENUE
Walsall Council,http://opendatacommunities.org/id/metropolitan-district-council/walsall,WC123-288,28.02.2021,ADULT SOCIAL CARE,ADVANCE HEALTH CARE (UK) LTD,01/02/2021,755.58,6541-Domiciliary Care,THIRD PARTY PAYMENTS,PRIVATE CONTRACTOR,REVENUE
Walsall Council,http://opendatacommunities.org/id/metropolitan-district-council/walsall,WC123-289,28.02.2021,ADULT SOCIAL CARE,ADVANCE HEALTH CARE (UK) LTD,01/02/2021,431.76,6541-Domiciliary Care,THIRD PARTY PAYMENTS,PRIVATE CONTRACTOR,REVENUE
Walsall Council,http://opendatacommunities.org/id/metropolitan-district-council/walsall,WC123-290,28.02.2021,ADULT SOCIAL CARE,ADVANCE HEALTH CARE (UK) LTD,01/02/2021,431.76,6541-Domiciliary Care,THIRD PARTY PAYMENTS,PRIVATE CONTRACTOR,REVENUE
Walsall Council,http://opendatacommunities.org/id/metropolitan-district-council/walsall,WC123-291,28.02.2021,ADULT SOCIAL CARE,ADVANCE HEALTH CARE (UK) LTD,01/02/2021,485.73,6541-Domiciliary Care,THIRD PARTY PAYMENTS,PRIVATE CONTRACTOR,REVENUE
Walsall Council,http://opendatacommunities.org/id/metropolitan-district-council/walsall,WC123-292,28.02.2021,ADULT SOCIAL CARE,ADVANCE HEALTH CARE (UK) LTD,01/02/2021,485.73,6541-Domiciliary Care,THIRD PARTY PAYMENTS,PRIVATE CONTRACTOR,REVENUE
Walsall Council,http://opendatacommunities.org/id/metropolitan-district-council/walsall,WC123-293,28.02.2021,ADULT SOCIAL CARE,ADVANCE HEALTH CARE (UK) LTD,01/02/2021,485.73,6541-Domiciliary Care,THIRD PARTY PAYMENTS,PRIVATE CONTRACTOR,REVENUE
Walsall Council,http://opendatacommunities.org/id/metropolitan-district-council/walsall,WC123-294,28.02.2021,ADULT SOCIAL CARE,ADVANCE HEALTH CARE (UK) LTD,01/02/2021,431.76,6541-Domiciliary Care,THIRD PARTY PAYMENTS,PRIVATE CONTRACTOR,REVENUE
Walsall Council,http://opendatacommunities.org/id/metropolitan-district-council/walsall,WC123-295,28.02.2021,ADULT SOCIAL CARE,ADVANCE HEALTH CARE (UK) LTD,01/02/2021,359.80,6541-Domiciliary Care,THIRD PARTY PAYMENTS,PRIVATE CONTRACTOR,REVENUE
Walsall Council,http://opendatacommunities.org/id/metropolitan-district-council/walsall,WC123-296,28.02.2021,ADULT SOCIAL CARE,ADVANCE HEALTH CARE (UK) LTD,01/02/2021,485.80,6541-Domiciliary Care,THIRD PARTY PAYMENTS,PRIVATE CONTRACTOR,REVENUE
Walsall Council,http://opendatacommunities.org/id/metropolitan-district-council/walsall,WC123-297,28.02.2021,ADULT SOCIAL CARE,ADVANCE HEALTH CARE (UK) LTD,01/02/2021,501.15,6541-Domiciliary Care,THIRD PARTY PAYMENTS,PRIVATE CONTRACTOR,REVENUE
Walsall Council,http://opendatacommunities.org/id/metropolitan-district-council/walsall,WC123-298,28.02.2021,ADULT SOCIAL CARE,ADVANCE HEALTH CARE (UK) LTD,01/02/2021,431.76,6541-Domiciliary Care,THIRD PARTY PAYMENTS,PRIVATE CONTRACTOR,REVENUE
Walsall Council,http://opendatacommunities.org/id/metropolitan-district-council/walsall,WC123-299,28.02.2021,ADULT SOCIAL CARE,ADVANCE HEALTH CARE (UK) LTD,01/02/2021,431.76,6541-Domiciliary Care,THIRD PARTY PAYMENTS,PRIVATE CONTRACTOR,REVENUE
Walsall Council,http://opendatacommunities.org/id/metropolitan-district-council/walsall,WC123-300,28.02.2021,ADULT SOCIAL CARE,ADVANCE HEALTH CARE (UK) LTD,01/02/2021,377.79,6541-Domiciliary Care,THIRD PARTY PAYMENTS,PRIVATE CONTRACTOR,REVENUE
Walsall Council,http://opendatacommunities.org/id/metropolitan-district-council/walsall,WC123-301,28.02.2021,ADULT SOCIAL CARE,ADVANCE HEALTH CARE (UK) LTD,01/02/2021,431.76,6541-Domiciliary Care,THIRD PARTY PAYMENTS,PRIVATE CONTRACTOR,REVENUE
Walsall Council,http://opendatacommunities.org/id/metropolitan-district-council/walsall,WC123-302,28.02.2021,ADULT SOCIAL CARE,ADVANCE HEALTH CARE (UK) LTD,01/02/2021,359.80,6541-Domiciliary Care,THIRD PARTY PAYMENTS,PRIVATE CONTRACTOR,REVENUE
Walsall Council,http://opendatacommunities.org/id/metropolitan-district-council/walsall,WC123-303,28.02.2021,ADULT SOCIAL CARE,ADVANCE HEALTH CARE (UK) LTD,01/02/2021,277.56,6541-Domiciliary Care,THIRD PARTY PAYMENTS,PRIVATE CONTRACTOR,REVENUE
Walsall Council,http://opendatacommunities.org/id/metropolitan-district-council/walsall,WC123-304,28.02.2021,ADULT SOCIAL CARE,ADVANCE HEALTH CARE (UK) LTD,01/02/2021,377.79,6541-Domiciliary Care,THIRD PARTY PAYMENTS,PRIVATE CONTRACTOR,REVENUE
Walsall Council,http://opendatacommunities.org/id/metropolitan-district-council/walsall,WC123-305,28.02.2021,ADULT SOCIAL CARE,ADVANCE HEALTH CARE (UK) LTD,01/02/2021,485.73,6541-Domiciliary Care,THIRD PARTY PAYMENTS,PRIVATE CONTRACTOR,REVENUE
Walsall Council,http://opendatacommunities.org/id/metropolitan-district-council/walsall,WC123-306,28.02.2021,ADULT SOCIAL CARE,ADVANCE HEALTH CARE (UK) LTD,01/02/2021,431.76,6541-Domiciliary Care,THIRD PARTY PAYMENTS,PRIVATE CONTRACTOR,REVENUE
Walsall Council,http://opendatacommunities.org/id/metropolitan-district-council/walsall,WC123-307,28.02.2021,ADULT SOCIAL CARE,ADVANCE HEALTH CARE (UK) LTD,01/02/2021,449.75,6541-Domiciliary Care,THIRD PARTY PAYMENTS,PRIVATE CONTRACTOR,REVENUE
Walsall Council,http://opendatacommunities.org/id/metropolitan-district-council/walsall,WC123-308,28.02.2021,ADULT SOCIAL CARE,ADVANCE HEALTH CARE (UK) LTD,15/02/2021,485.73,6541-Domiciliary Care,THIRD PARTY PAYMENTS,PRIVATE CONTRACTOR,REVENUE
Walsall Council,http://opendatacommunities.org/id/metropolitan-district-council/walsall,WC123-309,28.02.2021,ADULT SOCIAL CARE,ADVANCE HEALTH CARE (UK) LTD,15/02/2021,824.97,6541-Domiciliary Care,THIRD PARTY PAYMENTS,PRIVATE CONTRACTOR,REVENUE
Walsall Council,http://opendatacommunities.org/id/metropolitan-district-council/walsall,WC123-310,28.02.2021,ADULT SOCIAL CARE,ADVANCE HEALTH CARE (UK) LTD,15/02/2021,485.73,6541-Domiciliary Care,THIRD PARTY PAYMENTS,PRIVATE CONTRACTOR,REVENUE
Walsall Council,http://opendatacommunities.org/id/metropolitan-district-council/walsall,WC123-311,28.02.2021,ADULT SOCIAL CARE,ADVANCE HEALTH CARE (UK) LTD,15/02/2021,485.73,6541-Domiciliary Care,THIRD PARTY PAYMENTS,PRIVATE CONTRACTOR,REVENUE
Walsall Council,http://opendatacommunities.org/id/metropolitan-district-council/walsall,WC123-312,28.02.2021,ADULT SOCIAL CARE,ADVANCE HEALTH CARE (UK) LTD,15/02/2021,431.76,6541-Domiciliary Care,THIRD PARTY PAYMENTS,PRIVATE CONTRACTOR,REVENUE
Walsall Council,http://opendatacommunities.org/id/metropolitan-district-council/walsall,WC123-313,28.02.2021,ADULT SOCIAL CARE,ADVANCE HEALTH CARE (UK) LTD,15/02/2021,539.70,6541-Domiciliary Care,THIRD PARTY PAYMENTS,PRIVATE CONTRACTOR,REVENUE
Walsall Council,http://opendatacommunities.org/id/metropolitan-district-council/walsall,WC123-314,28.02.2021,ADULT SOCIAL CARE,ADVANCE HEALTH CARE (UK) LTD,15/02/2021,431.76,6541-Domiciliary Care,THIRD PARTY PAYMENTS,PRIVATE CONTRACTOR,REVENUE
Walsall Council,http://opendatacommunities.org/id/metropolitan-district-council/walsall,WC123-315,28.02.2021,ADULT SOCIAL CARE,ADVANCE HEALTH CARE (UK) LTD,15/02/2021,359.80,6541-Domiciliary Care,THIRD PARTY PAYMENTS,PRIVATE CONTRACTOR,REVENUE
Walsall Council,http://opendatacommunities.org/id/metropolitan-district-council/walsall,WC123-316,28.02.2021,ADULT SOCIAL CARE,ADVANCE HEALTH CARE (UK) LTD,15/02/2021,439.47,6541-Domiciliary Care,THIRD PARTY PAYMENTS,PRIVATE CONTRACTOR,REVENUE
Walsall Council,http://opendatacommunities.org/id/metropolitan-district-council/walsall,WC123-317,28.02.2021,ADULT SOCIAL CARE,ADVANCE HEALTH CARE (UK) LTD,15/02/2021,593.88,6541-Domiciliary Care,THIRD PARTY PAYMENTS,PRIVATE CONTRACTOR,REVENUE
Walsall Council,http://opendatacommunities.org/id/metropolitan-district-council/walsall,WC123-318,28.02.2021,ADULT SOCIAL CARE,ADVANCE HEALTH CARE (UK) LTD,15/02/2021,485.73,6541-Domiciliary Care,THIRD PARTY PAYMENTS,PRIVATE CONTRACTOR,REVENUE
Walsall Council,http://opendatacommunities.org/id/metropolitan-district-council/walsall,WC123-319,28.02.2021,ADULT SOCIAL CARE,ADVANCE HEALTH CARE (UK) LTD,15/02/2021,863.52,6541-Domiciliary Care,THIRD PARTY PAYMENTS,PRIVATE CONTRACTOR,REVENUE
Walsall Council,http://opendatacommunities.org/id/metropolitan-district-council/walsall,WC123-320,28.02.2021,ADULT SOCIAL CARE,ADVANCE HEALTH CARE (UK) LTD,15/02/2021,323.82,6541-Domiciliary Care,THIRD PARTY PAYMENTS,PRIVATE CONTRACTOR,REVENUE
Walsall Council,http://opendatacommunities.org/id/metropolitan-district-council/walsall,WC123-321,28.02.2021,ADULT SOCIAL CARE,ADVANCE HEALTH CARE (UK) LTD,15/02/2021,377.79,6541-Domiciliary Care,THIRD PARTY PAYMENTS,PRIVATE CONTRACTOR,REVENUE
Walsall Council,http://opendatacommunities.org/id/metropolitan-district-council/walsall,WC123-322,28.02.2021,ADULT SOCIAL CARE,ADVANCE HEALTH CARE (UK) LTD,15/02/2021,431.76,6541-Domiciliary Care,THIRD PARTY PAYMENTS,PRIVATE CONTRACTOR,REVENUE
Walsall Council,http://opendatacommunities.org/id/metropolitan-district-council/walsall,WC123-323,28.02.2021,ADULT SOCIAL CARE,ADVANCE HEALTH CARE (UK) LTD,15/02/2021,524.28,6541-Domiciliary Care,THIRD PARTY PAYMENTS,PRIVATE CONTRACTOR,REVENUE
Walsall Council,http://opendatacommunities.org/id/metropolitan-district-council/walsall,WC123-324,28.02.2021,ADULT SOCIAL CARE,ADVANCE HEALTH CARE (UK) LTD,15/02/2021,"1,480.32",6541-Domiciliary Care,THIRD PARTY PAYMENTS,PRIVATE CONTRACTOR,REVENUE
Walsall Council,http://opendatacommunities.org/id/metropolitan-district-council/walsall,WC123-325,28.02.2021,ADULT SOCIAL CARE,ADVANCE HEALTH CARE (UK) LTD,15/02/2021,485.73,6541-Domiciliary Care,THIRD PARTY PAYMENTS,PRIVATE CONTRACTOR,REVENUE
Walsall Council,http://opendatacommunities.org/id/metropolitan-district-council/walsall,WC123-326,28.02.2021,ADULT SOCIAL CARE,ADVANCE HEALTH CARE (UK) LTD,15/02/2021,323.82,6541-Domiciliary Care,THIRD PARTY PAYMENTS,PRIVATE CONTRACTOR,REVENUE
Walsall Council,http://opendatacommunities.org/id/metropolitan-district-council/walsall,WC123-327,28.02.2021,ADULT SOCIAL CARE,ADVANCE HEALTH CARE (UK) LTD,15/02/2021,701.61,6541-Domiciliary Care,THIRD PARTY PAYMENTS,PRIVATE CONTRACTOR,REVENUE
Walsall Council,http://opendatacommunities.org/id/metropolitan-district-council/walsall,WC123-328,28.02.2021,ADULT SOCIAL CARE,ADVANCE HEALTH CARE (UK) LTD,15/02/2021,400.92,6541-Domiciliary Care,THIRD PARTY PAYMENTS,PRIVATE CONTRACTOR,REVENUE
Walsall Council,http://opendatacommunities.org/id/metropolitan-district-council/walsall,WC123-329,28.02.2021,ADULT SOCIAL CARE,ADVANCE HEALTH CARE (UK) LTD,15/02/2021,431.76,6541-Domiciliary Care,THIRD PARTY PAYMENTS,PRIVATE CONTRACTOR,REVENUE
Walsall Council,http://opendatacommunities.org/id/metropolitan-district-council/walsall,WC123-330,28.02.2021,ADULT SOCIAL CARE,ADVANCE HEALTH CARE (UK) LTD,15/02/2021,485.73,6541-Domiciliary Care,THIRD PARTY PAYMENTS,PRIVATE CONTRACTOR,REVENUE
Walsall Council,http://opendatacommunities.org/id/metropolitan-district-council/walsall,WC123-331,28.02.2021,ADULT SOCIAL CARE,ADVANCE HEALTH CARE (UK) LTD,15/02/2021,755.58,6541-Domiciliary Care,THIRD PARTY PAYMENTS,PRIVATE CONTRACTOR,REVENUE
Walsall Council,http://opendatacommunities.org/id/metropolitan-district-council/walsall,WC123-332,28.02.2021,ADULT SOCIAL CARE,ADVANCE HEALTH CARE (UK) LTD,15/02/2021,485.73,6541-Domiciliary Care,THIRD PARTY PAYMENTS,PRIVATE CONTRACTOR,REVENUE
Walsall Council,http://opendatacommunities.org/id/metropolitan-district-council/walsall,WC123-333,28.02.2021,ADULT SOCIAL CARE,ADVANCE HEALTH CARE (UK) LTD,15/02/2021,485.73,6541-Domiciliary Care,THIRD PARTY PAYMENTS,PRIVATE CONTRACTOR,REVENUE
Walsall Council,http://opendatacommunities.org/id/metropolitan-district-council/walsall,WC123-334,28.02.2021,ADULT SOCIAL CARE,ADVANCE HEALTH CARE (UK) LTD,15/02/2021,485.80,6541-Domiciliary Care,THIRD PARTY PAYMENTS,PRIVATE CONTRACTOR,REVENUE
Walsall Council,http://opendatacommunities.org/id/metropolitan-district-council/walsall,WC123-335,28.02.2021,ADULT SOCIAL CARE,ADVANCE HEALTH CARE (UK) LTD,15/02/2021,501.15,6541-Domiciliary Care,THIRD PARTY PAYMENTS,PRIVATE CONTRACTOR,REVENUE
Walsall Council,http://opendatacommunities.org/id/metropolitan-district-council/walsall,WC123-336,28.02.2021,ADULT SOCIAL CARE,ADVANCE HEALTH CARE (UK) LTD,15/02/2021,431.76,6541-Domiciliary Care,THIRD PARTY PAYMENTS,PRIVATE CONTRACTOR,REVENUE
Walsall Council,http://opendatacommunities.org/id/metropolitan-district-council/walsall,WC123-337,28.02.2021,ADULT SOCIAL CARE,ADVANCE HEALTH CARE (UK) LTD,15/02/2021,431.76,6541-Domiciliary Care,THIRD PARTY PAYMENTS,PRIVATE CONTRACTOR,REVENUE
Walsall Council,http://opendatacommunities.org/id/metropolitan-district-council/walsall,WC123-338,28.02.2021,ADULT SOCIAL CARE,ADVANCE HEALTH CARE (UK) LTD,15/02/2021,359.80,6541-Domiciliary Care,THIRD PARTY PAYMENTS,PRIVATE CONTRACTOR,REVENUE
Walsall Council,http://opendatacommunities.org/id/metropolitan-district-council/walsall,WC123-339,28.02.2021,ADULT SOCIAL CARE,ADVANCE HEALTH CARE (UK) LTD,15/02/2021,431.76,6541-Domiciliary Care,THIRD PARTY PAYMENTS,PRIVATE CONTRACTOR,REVENUE
Walsall Council,http://opendatacommunities.org/id/metropolitan-district-council/walsall,WC123-340,28.02.2021,ADULT SOCIAL CARE,ADVANCE HEALTH CARE (UK) LTD,15/02/2021,431.76,6541-Domiciliary Care,THIRD PARTY PAYMENTS,PRIVATE CONTRACTOR,REVENUE
Walsall Council,http://opendatacommunities.org/id/metropolitan-district-council/walsall,WC123-341,28.02.2021,ADULT SOCIAL CARE,ADVANCE HEALTH CARE (UK) LTD,15/02/2021,449.75,6541-Domiciliary Care,THIRD PARTY PAYMENTS,PRIVATE CONTRACTOR,REVENUE
Walsall Council,http://opendatacommunities.org/id/metropolitan-district-council/walsall,WC123-342,28.02.2021,ADULT SOCIAL CARE,ADVANCE HEALTH CARE (UK) LTD,15/02/2021,377.79,6541-Domiciliary Care,THIRD PARTY PAYMENTS,PRIVATE CONTRACTOR,REVENUE
Walsall Council,http://opendatacommunities.org/id/metropolitan-district-council/walsall,WC123-343,28.02.2021,ADULT SOCIAL CARE,ADVANCE HEALTH CARE (UK) LTD,15/02/2021,485.73,6541-Domiciliary Care,THIRD PARTY PAYMENTS,PRIVATE CONTRACTOR,REVENUE
Walsall Council,http://opendatacommunities.org/id/metropolitan-district-council/walsall,WC123-344,28.02.2021,ADULT SOCIAL CARE,ADVANCE HEALTH CARE (UK) LTD,15/02/2021,431.76,6541-Domiciliary Care,THIRD PARTY PAYMENTS,PRIVATE CONTRACTOR,REVENUE
Walsall Council,http://opendatacommunities.org/id/metropolitan-district-council/walsall,WC123-345,28.02.2021,ADULT SOCIAL CARE,ADVANCE HEALTH CARE (UK) LTD,15/02/2021,359.80,6541-Domiciliary Care,THIRD PARTY PAYMENTS,PRIVATE CONTRACTOR,REVENUE
Walsall Council,http://opendatacommunities.org/id/metropolitan-district-council/walsall,WC123-346,28.02.2021,ADULT SOCIAL CARE,ADVANCE HEALTH CARE (UK) LTD,15/02/2021,431.76,6541-Domiciliary Care,THIRD PARTY PAYMENTS,PRIVATE CONTRACTOR,REVENUE
Walsall Council,http://opendatacommunities.org/id/metropolitan-district-council/walsall,WC123-347,28.02.2021,ADULT SOCIAL CARE,ADVANCE HEALTH CARE (UK) LTD,15/02/2021,439.47,6541-Domiciliary Care,THIRD PARTY PAYMENTS,PRIVATE CONTRACTOR,REVENUE
Walsall Council,http://opendatacommunities.org/id/metropolitan-district-council/walsall,WC123-348,28.02.2021,ADULT SOCIAL CARE,ADVANCE HEALTH CARE (UK) LTD,15/02/2021,593.88,6541-Domiciliary Care,THIRD PARTY PAYMENTS,PRIVATE CONTRACTOR,REVENUE
Walsall Council,http://opendatacommunities.org/id/metropolitan-district-council/walsall,WC123-349,28.02.2021,ADULT SOCIAL CARE,ADVANCE HEALTH CARE (UK) LTD,15/02/2021,485.73,6541-Domiciliary Care,THIRD PARTY PAYMENTS,PRIVATE CONTRACTOR,REVENUE
Walsall Council,http://opendatacommunities.org/id/metropolitan-district-council/walsall,WC123-350,28.02.2021,ADULT SOCIAL CARE,ADVANCE HEALTH CARE (UK) LTD,15/02/2021,863.52,6541-Domiciliary Care,THIRD PARTY PAYMENTS,PRIVATE CONTRACTOR,REVENUE
Walsall Council,http://opendatacommunities.org/id/metropolitan-district-council/walsall,WC123-351,28.02.2021,ADULT SOCIAL CARE,ADVANCE HEALTH CARE (UK) LTD,15/02/2021,323.82,6541-Domiciliary Care,THIRD PARTY PAYMENTS,PRIVATE CONTRACTOR,REVENUE
Walsall Council,http://opendatacommunities.org/id/metropolitan-district-council/walsall,WC123-352,28.02.2021,ADULT SOCIAL CARE,ADVANCE HEALTH CARE (UK) LTD,15/02/2021,377.79,6541-Domiciliary Care,THIRD PARTY PAYMENTS,PRIVATE CONTRACTOR,REVENUE
Walsall Council,http://opendatacommunities.org/id/metropolitan-district-council/walsall,WC123-353,28.02.2021,ADULT SOCIAL CARE,ADVANCE HEALTH CARE (UK) LTD,15/02/2021,485.73,6541-Domiciliary Care,THIRD PARTY PAYMENTS,PRIVATE CONTRACTOR,REVENUE
Walsall Council,http://opendatacommunities.org/id/metropolitan-district-council/walsall,WC123-354,28.02.2021,ADULT SOCIAL CARE,ADVANCE HEALTH CARE (UK) LTD,15/02/2021,824.97,6541-Domiciliary Care,THIRD PARTY PAYMENTS,PRIVATE CONTRACTOR,REVENUE
Walsall Council,http://opendatacommunities.org/id/metropolitan-district-council/walsall,WC123-355,28.02.2021,ADULT SOCIAL CARE,ADVANCE HEALTH CARE (UK) LTD,15/02/2021,485.73,6541-Domiciliary Care,THIRD PARTY PAYMENTS,PRIVATE CONTRACTOR,REVENUE
Walsall Council,http://opendatacommunities.org/id/metropolitan-district-council/walsall,WC123-356,28.02.2021,ADULT SOCIAL CARE,ADVANCE HEALTH CARE (UK) LTD,15/02/2021,485.73,6541-Domiciliary Care,THIRD PARTY PAYMENTS,PRIVATE CONTRACTOR,REVENUE
Walsall Council,http://opendatacommunities.org/id/metropolitan-district-council/walsall,WC123-357,28.02.2021,ADULT SOCIAL CARE,ADVANCE HEALTH CARE (UK) LTD,15/02/2021,431.76,6541-Domiciliary Care,THIRD PARTY PAYMENTS,PRIVATE CONTRACTOR,REVENUE
Walsall Council,http://opendatacommunities.org/id/metropolitan-district-council/walsall,WC123-358,28.02.2021,ADULT SOCIAL CARE,ADVANCE HEALTH CARE (UK) LTD,15/02/2021,539.70,6541-Domiciliary Care,THIRD PARTY PAYMENTS,PRIVATE CONTRACTOR,REVENUE
Walsall Council,http://opendatacommunities.org/id/metropolitan-district-council/walsall,WC123-359,28.02.2021,ADULT SOCIAL CARE,ADVANCE HEALTH CARE (UK) LTD,15/02/2021,431.76,6541-Domiciliary Care,THIRD PARTY PAYMENTS,PRIVATE CONTRACTOR,REVENUE
Walsall Council,http://opendatacommunities.org/id/metropolitan-district-council/walsall,WC123-360,28.02.2021,ADULT SOCIAL CARE,ADVANCE HEALTH CARE (UK) LTD,15/02/2021,431.76,6541-Domiciliary Care,THIRD PARTY PAYMENTS,PRIVATE CONTRACTOR,REVENUE
Walsall Council,http://opendatacommunities.org/id/metropolitan-district-council/walsall,WC123-361,28.02.2021,ADULT SOCIAL CARE,ADVANCE HEALTH CARE (UK) LTD,15/02/2021,524.28,6541-Domiciliary Care,THIRD PARTY PAYMENTS,PRIVATE CONTRACTOR,REVENUE
Walsall Council,http://opendatacommunities.org/id/metropolitan-district-council/walsall,WC123-362,28.02.2021,ADULT SOCIAL CARE,ADVANCE HEALTH CARE (UK) LTD,15/02/2021,485.73,6541-Domiciliary Care,THIRD PARTY PAYMENTS,PRIVATE CONTRACTOR,REVENUE
Walsall Council,http://opendatacommunities.org/id/metropolitan-district-council/walsall,WC123-363,28.02.2021,ADULT SOCIAL CARE,ADVANCE HEALTH CARE (UK) LTD,15/02/2021,485.80,6541-Domiciliary Care,THIRD PARTY PAYMENTS,PRIVATE CONTRACTOR,REVENUE
Walsall Council,http://opendatacommunities.org/id/metropolitan-district-council/walsall,WC123-364,28.02.2021,ADULT SOCIAL CARE,ADVANCE HEALTH CARE (UK) LTD,15/02/2021,501.15,6541-Domiciliary Care,THIRD PARTY PAYMENTS,PRIVATE CONTRACTOR,REVENUE
Walsall Council,http://opendatacommunities.org/id/metropolitan-district-council/walsall,WC123-365,28.02.2021,ADULT SOCIAL CARE,ADVANCE HEALTH CARE (UK) LTD,15/02/2021,431.76,6541-Domiciliary Care,THIRD PARTY PAYMENTS,PRIVATE CONTRACTOR,REVENUE
Walsall Council,http://opendatacommunities.org/id/metropolitan-district-council/walsall,WC123-366,28.02.2021,ADULT SOCIAL CARE,ADVANCE HEALTH CARE (UK) LTD,15/02/2021,431.76,6541-Domiciliary Care,THIRD PARTY PAYMENTS,PRIVATE CONTRACTOR,REVENUE
Walsall Council,http://opendatacommunities.org/id/metropolitan-district-council/walsall,WC123-367,28.02.2021,ADULT SOCIAL CARE,ADVANCE HEALTH CARE (UK) LTD,15/02/2021,359.80,6541-Domiciliary Care,THIRD PARTY PAYMENTS,PRIVATE CONTRACTOR,REVENUE
Walsall Council,http://opendatacommunities.org/id/metropolitan-district-council/walsall,WC123-368,28.02.2021,ADULT SOCIAL CARE,ADVANCE HEALTH CARE (UK) LTD,15/02/2021,485.73,6541-Domiciliary Care,THIRD PARTY PAYMENTS,PRIVATE CONTRACTOR,REVENUE
Walsall Council,http://opendatacommunities.org/id/metropolitan-district-council/walsall,WC123-369,28.02.2021,ADULT SOCIAL CARE,ADVANCE HEALTH CARE (UK) LTD,15/02/2021,485.73,6541-Domiciliary Care,THIRD PARTY PAYMENTS,PRIVATE CONTRACTOR,REVENUE
Walsall Council,http://opendatacommunities.org/id/metropolitan-district-council/walsall,WC123-370,28.02.2021,ADULT SOCIAL CARE,ADVANCE HEALTH CARE (UK) LTD,15/02/2021,431.76,6541-Domiciliary Care,THIRD PARTY PAYMENTS,PRIVATE CONTRACTOR,REVENUE
Walsall Council,http://opendatacommunities.org/id/metropolitan-district-council/walsall,WC123-371,28.02.2021,ADULT SOCIAL CARE,ADVANCE HEALTH CARE (UK) LTD,15/02/2021,449.75,6541-Domiciliary Care,THIRD PARTY PAYMENTS,PRIVATE CONTRACTOR,REVENUE
Walsall Council,http://opendatacommunities.org/id/metropolitan-district-council/walsall,WC123-372,28.02.2021,ADULT SOCIAL CARE,ADVANCE HEALTH CARE (UK) LTD,15/02/2021,377.79,6541-Domiciliary Care,THIRD PARTY PAYMENTS,PRIVATE CONTRACTOR,REVENUE
Walsall Council,http://opendatacommunities.org/id/metropolitan-district-council/walsall,WC123-373,28.02.2021,ADULT SOCIAL CARE,ADVANCE HEALTH CARE (UK) LTD,15/02/2021,485.73,6541-Domiciliary Care,THIRD PARTY PAYMENTS,PRIVATE CONTRACTOR,REVENUE
Walsall Council,http://opendatacommunities.org/id/metropolitan-district-council/walsall,WC123-374,28.02.2021,ADULT SOCIAL CARE,ADVANCE HEALTH CARE (UK) LTD,15/02/2021,431.76,6541-Domiciliary Care,THIRD PARTY PAYMENTS,PRIVATE CONTRACTOR,REVENUE
Walsall Council,http://opendatacommunities.org/id/metropolitan-district-council/walsall,WC123-375,28.02.2021,ADULT SOCIAL CARE,ADVANCE HEALTH CARE (UK) LTD,15/02/2021,339.24,6541-Domiciliary Care,THIRD PARTY PAYMENTS,PRIVATE CONTRACTOR,REVENUE
Walsall Council,http://opendatacommunities.org/id/metropolitan-district-council/walsall,WC123-376,28.02.2021,ADULT SOCIAL CARE,ADVANCE HEALTH CARE (UK) LTD,15/02/2021,701.61,6541-Domiciliary Care,THIRD PARTY PAYMENTS,PRIVATE CONTRACTOR,REVENUE
Walsall Council,http://opendatacommunities.org/id/metropolitan-district-council/walsall,WC123-377,28.02.2021,ADULT SOCIAL CARE,ADVANCE HEALTH CARE (UK) LTD,15/02/2021,431.76,6541-Domiciliary Care,THIRD PARTY PAYMENTS,PRIVATE CONTRACTOR,REVENUE
Walsall Council,http://opendatacommunities.org/id/metropolitan-district-council/walsall,WC123-378,28.02.2021,ADULT SOCIAL CARE,ADVANCE HEALTH CARE (UK) LTD,15/02/2021,431.76,6541-Domiciliary Care,THIRD PARTY PAYMENTS,PRIVATE CONTRACTOR,REVENUE
Walsall Council,http://opendatacommunities.org/id/metropolitan-district-council/walsall,WC123-379,28.02.2021,ADULT SOCIAL CARE,ADVANCE HEALTH CARE (UK) LTD,15/02/2021,485.73,6541-Domiciliary Care,THIRD PARTY PAYMENTS,PRIVATE CONTRACTOR,REVENUE
Walsall Council,http://opendatacommunities.org/id/metropolitan-district-council/walsall,WC123-380,28.02.2021,ADULT SOCIAL CARE,ADVANCE HEALTH CARE (UK) LTD,15/02/2021,755.58,6541-Domiciliary Care,THIRD PARTY PAYMENTS,PRIVATE CONTRACTOR,REVENUE
Walsall Council,http://opendatacommunities.org/id/metropolitan-district-council/walsall,WC123-381,28.02.2021,ADULT SOCIAL CARE,ADVANCE HEALTH CARE (UK) LTD,08/02/2021,"27,943.72",6550-Professional Services-Priv Contractor & Other Agencies,THIRD PARTY PAYMENTS,PRIVATE CONTRACTOR,REVENUE
Walsall Council,http://opendatacommunities.org/id/metropolitan-district-council/walsall,WC123-382,28.02.2021,ADULT SOCIAL CARE,ADVANCE HEALTH CARE (UK) LTD,16/02/2021,273.71,6554-Professional Services-Priv Contractor & Other Agencies,THIRD PARTY PAYMENTS,PRIVATE CONTRACTOR,REVENUE
Walsall Council,http://opendatacommunities.org/id/metropolitan-district-council/walsall,WC123-383,28.02.2021,ADULT SOCIAL CARE,ADVANCE HEALTH CARE (UK) LTD,16/02/2021,377.79,6554-Professional Services-Priv Contractor & Other Agencies,THIRD PARTY PAYMENTS,PRIVATE CONTRACTOR,REVENUE
Walsall Council,http://opendatacommunities.org/id/metropolitan-district-council/walsall,WC123-384,28.02.2021,ADULT SOCIAL CARE,ADVANCE HEALTH CARE (UK) LTD,18/02/2021,971.46,6554-Professional Services-Priv Contractor & Other Agencies,THIRD PARTY PAYMENTS,PRIVATE CONTRACTOR,REVENUE
Walsall Council,http://opendatacommunities.org/id/metropolitan-district-council/walsall,WC123-385,28.02.2021,ADULT SOCIAL CARE,ADVANCE HEALTH CARE (UK) LTD,18/02/2021,485.73,6554-Professional Services-Priv Contractor & Other Agencies,THIRD PARTY PAYMENTS,PRIVATE CONTRACTOR,REVENUE
Walsall Council,http://opendatacommunities.org/id/metropolitan-district-council/walsall,WC123-386,28.02.2021,ADULT SOCIAL CARE,ADVANCE HEALTH CARE (UK) LTD,18/02/2021,277.56,6554-Professional Services-Priv Contractor & Other Agencies,THIRD PARTY PAYMENTS,PRIVATE CONTRACTOR,REVENUE
Walsall Council,http://opendatacommunities.org/id/metropolitan-district-council/walsall,WC123-387,28.02.2021,ADULT SOCIAL CARE,ADVANCE HEALTH CARE (UK) LTD,18/02/2021,485.73,6554-Professional Services-Priv Contractor & Other Agencies,THIRD PARTY PAYMENTS,PRIVATE CONTRACTOR,REVENUE
Walsall Council,http://opendatacommunities.org/id/metropolitan-district-council/walsall,WC123-388,28.02.2021,ADULT SOCIAL CARE,ADVANCE HEALTH CARE (UK) LTD,18/02/2021,308.40,6554-Professional Services-Priv Contractor & Other Agencies,THIRD PARTY PAYMENTS,PRIVATE CONTRACTOR,REVENUE
Walsall Council,http://opendatacommunities.org/id/metropolitan-district-council/walsall,WC123-389,28.02.2021,ADULT SOCIAL CARE,ADVANCE HEALTH CARE (UK) LTD,09/02/2021,"13,333.32",6554-Other Expenses,SUPPLIES & SERVICES,EXPENSES,REVENUE
Walsall Council,http://opendatacommunities.org/id/metropolitan-district-council/walsall,WC123-390,28.02.2021,ADULT SOCIAL CARE,ADVANCE HEALTH CARE (UK) LTD,10/02/2021,817.40,6541-Domiciliary Care,THIRD PARTY PAYMENTS,PRIVATE CONTRACTOR,REVENUE
Walsall Council,http://opendatacommunities.org/id/metropolitan-district-council/walsall,WC123-391,28.02.2021,ADULT SOCIAL CARE,ADVANCE HEALTH CARE (UK) LTD,10/02/2021,"2,734.48",6541-Domiciliary Care,THIRD PARTY PAYMENTS,PRIVATE CONTRACTOR,REVENUE
Walsall Council,http://opendatacommunities.org/id/metropolitan-district-council/walsall,WC123-392,28.02.2021,ADULT SOCIAL CARE,ADVANCE HEALTH CARE (UK) LTD,10/02/2021,760.72,6541-Domiciliary Care,THIRD PARTY PAYMENTS,PRIVATE CONTRACTOR,REVENUE
Walsall Council,http://opendatacommunities.org/id/metropolitan-district-council/walsall,WC123-393,28.02.2021,ADULT SOCIAL CARE,ADVANCE HEALTH CARE (UK) LTD,10/02/2021,"1,017.72",6541-Domiciliary Care,THIRD PARTY PAYMENTS,PRIVATE CONTRACTOR,REVENUE
Walsall Council,http://opendatacommunities.org/id/metropolitan-district-council/walsall,WC123-394,28.02.2021,ADULT SOCIAL CARE,ADVANCE HEALTH CARE (UK) LTD,10/02/2021,842.96,6541-Domiciliary Care,THIRD PARTY PAYMENTS,PRIVATE CONTRACTOR,REVENUE
Walsall Council,http://opendatacommunities.org/id/metropolitan-district-council/walsall,WC123-395,28.02.2021,ADULT SOCIAL CARE,ADVANCE HEALTH CARE (UK) LTD,10/02/2021,817.40,6541-Domiciliary Care,THIRD PARTY PAYMENTS,PRIVATE CONTRACTOR,REVENUE
Walsall Council,http://opendatacommunities.org/id/metropolitan-district-council/walsall,WC123-396,28.02.2021,ADULT SOCIAL CARE,ADVANCE HEALTH CARE (UK) LTD,10/02/2021,740.16,6541-Domiciliary Care,THIRD PARTY PAYMENTS,PRIVATE CONTRACTOR,REVENUE
Walsall Council,http://opendatacommunities.org/id/metropolitan-district-council/walsall,WC123-397,28.02.2021,ADULT SOCIAL CARE,ADVANCE HEALTH CARE (UK) LTD,10/02/2021,"1,341.54",6541-Domiciliary Care,THIRD PARTY PAYMENTS,PRIVATE CONTRACTOR,REVENUE
Walsall Council,http://opendatacommunities.org/id/metropolitan-district-council/walsall,WC123-398,28.02.2021,ADULT SOCIAL CARE,ADVANCE PHARMA LTD T/A PLECK PHARMACY,04/02/2021,518.70,6420-Payment to Contractors,SUPPLIES & SERVICES,SERVICES,REVENUE
Walsall Council,http://opendatacommunities.org/id/metropolitan-district-council/walsall,WC123-399,28.02.2021,ADULT SOCIAL CARE,ADVANCE PHARMA LTD T/A PLECK PHARMACY,16/02/2021,461.18,6420-Payment to Contractors,SUPPLIES & SERVICES,SERVICES,REVENUE
Walsall Council,http://opendatacommunities.org/id/metropolitan-district-council/walsall,WC123-400,28.02.2021,ADULT SOCIAL CARE,ADVANCE PHARMA LTD T/A PLECK PHARMACY,16/02/2021,655.20,6420-Payment to Contractors,SUPPLIES & SERVICES,SERVICES,REVENUE
Walsall Council,http://opendatacommunities.org/id/metropolitan-district-council/walsall,WC123-401,28.02.2021,ADULT SOCIAL CARE,ADVANCE PHARMA LTD T/A PLECK PHARMACY,16/02/2021,791.70,6420-Payment to Contractors,SUPPLIES & SERVICES,SERVICES,REVENUE
Walsall Council,http://opendatacommunities.org/id/metropolitan-district-council/walsall,WC123-402,28.02.2021,CHILDRENS,ADVENTURELAND DAY NURSERY,09/02/2021,"2,254.35",1184-Other-Grants to Other Orgs,SUPPLIES & SERVICES,GRANTS (EXP) & SUBSCRIPTIONS,REVENUE
Walsall Council,http://opendatacommunities.org/id/metropolitan-district-council/walsall,WC123-403,28.02.2021,CHILDRENS,ADVENTURELAND DAY NURSERY,09/02/2021,"6,578.55",1184-Other-Grants to Other Orgs,SUPPLIES & SERVICES,GRANTS (EXP) & SUBSCRIPTIONS,REVENUE
Walsall Council,http://opendatacommunities.org/id/metropolitan-district-council/walsall,WC123-404,28.02.2021,CHILDRENS,ADVENTURELAND DAY NURSERY,16/02/2021,640.00,1184-Transfer Payments-Other Schoolchildren/Student Related Items,TRANSFER PAYMENTS,SCHOOLCHILDREN/STUDENTS,REVENUE
Walsall Council,http://opendatacommunities.org/id/metropolitan-district-council/walsall,WC123-405,28.02.2021,CHILDRENS,ADVENTURELAND DAY NURSERY,16/02/2021,"1,530.59",1220-Top Up Funding -Grants to Schools,SUPPLIES & SERVICES,GRANTS (EXP) & SUBSCRIPTIONS,REVENUE
Walsall Council,http://opendatacommunities.org/id/metropolitan-district-council/walsall,WC123-406,28.02.2021,ADULT SOCIAL CARE,ADVINIA CARE HOMES LTD - HAMMERWICH HALL CARE HOME,15/02/2021,"2,308.00",6541-Residential EMI,THIRD PARTY PAYMENTS,PRIVATE CONTRACTOR,REVENUE
Walsall Council,http://opendatacommunities.org/id/metropolitan-district-council/walsall,WC123-407,28.02.2021,ADULT SOCIAL CARE,ADVINIA CARE HOMES LTD - HAMMERWICH HALL CARE HOME,15/02/2021,"2,044.00",6541-Residential,THIRD PARTY PAYMENTS,PRIVATE CONTRACTOR,REVENUE
Walsall Council,http://opendatacommunities.org/id/metropolitan-district-council/walsall,WC123-408,28.02.2021,ECONOMY & ENVIRONMENT,AECOM INFRASTRUCTURE & ENVIRONMENT UK LIMITED,05/02/2021,962.07,6411-Professional Fees & Services,SUPPLIES & SERVICES,SERVICES,REVENUE
Walsall Council,http://opendatacommunities.org/id/metropolitan-district-council/walsall,WC123-409,28.02.2021,CHILDRENS,REDACTED,05/02/2021,540.00,6223-Foster Carers Maintenance Allowance,TRANSFER PAYMENTS,CHILDREN SOCIAL SERVICES CLIENT,REVENUE
Walsall Council,http://opendatacommunities.org/id/metropolitan-district-council/walsall,WC123-410,28.02.2021,CHILDRENS,REDACTED,05/02/2021,540.00,6223-Foster Carers Maintenance Allowance,TRANSFER PAYMENTS,CHILDREN SOCIAL SERVICES CLIENT,REVENUE
Walsall Council,http://opendatacommunities.org/id/metropolitan-district-council/walsall,WC123-411,28.02.2021,ADULT SOCIAL CARE,REDACTED,04/02/2021,"2,455.56",6541-Direct Payment,THIRD PARTY PAYMENTS,PRIVATE CONTRACTOR,REVENUE
Walsall Council,http://opendatacommunities.org/id/metropolitan-district-council/walsall,WC123-412,28.02.2021,ECONOMY & ENVIRONMENT,AIR MONITORS LIMITED,09/02/2021,960.00,6411-Repair & Maintenance of Furniture & Equipment,SUPPLIES & SERVICES,EQUIPMENT FURNITURE & MATERIALS,REVENUE
Walsall Council,http://opendatacommunities.org/id/metropolitan-district-council/walsall,WC123-413,28.02.2021,ECONOMY & ENVIRONMENT,AIR MONITORS LIMITED,09/02/2021,980.00,"6411-Leasing, Hire & Rental of Equipment",SUPPLIES & SERVICES,EQUIPMENT FURNITURE & MATERIALS,REVENUE
Walsall Council,http://opendatacommunities.org/id/metropolitan-district-council/walsall,WC123-414,28.02.2021,ECONOMY & ENVIRONMENT,AIR MONITORS LIMITED,09/02/2021,"1,040.00",6411-Repair & Maintenance of Furniture & Equipment,SUPPLIES & SERVICES,EQUIPMENT FURNITURE & MATERIALS,REVENUE
Walsall Council,http://opendatacommunities.org/id/metropolitan-district-council/walsall,WC123-415,28.02.2021,ECONOMY & ENVIRONMENT,AIR MONITORS LIMITED,09/02/2021,"1,450.00",6411-Repair & Maintenance of Furniture & Equipment,SUPPLIES & SERVICES,EQUIPMENT FURNITURE & MATERIALS,REVENUE
Walsall Council,http://opendatacommunities.org/id/metropolitan-district-council/walsall,WC123-416,28.02.2021,ECONOMY & ENVIRONMENT,AIR MONITORS LIMITED,09/02/2021,"1,480.00",6411-Repair & Maintenance of Furniture & Equipment,SUPPLIES & SERVICES,EQUIPMENT FURNITURE & MATERIALS,REVENUE
Walsall Council,http://opendatacommunities.org/id/metropolitan-district-council/walsall,WC123-417,28.02.2021,ECONOMY & ENVIRONMENT,AIR MONITORS LIMITED,09/02/2021,"22,700.00",6411-Repair & Maintenance of Furniture & Equipment,SUPPLIES & SERVICES,EQUIPMENT FURNITURE & MATERIALS,REVENUE
Walsall Council,http://opendatacommunities.org/id/metropolitan-district-council/walsall,WC123-418,28.02.2021,CHILDRENS,ALASDAIR CANT & ASSOCIATES LIMITED,18/02/2021,"56,018.25",6220-Professional Services-Priv Contractor & Other Agencies,THIRD PARTY PAYMENTS,PRIVATE CONTRACTOR,REVENUE
Walsall Council,http://opendatacommunities.org/id/metropolitan-district-council/walsall,WC123-419,28.02.2021,ECONOMY & ENVIRONMENT,ALCIUM SOFTWARE,22/02/2021,"4,921.50",6313-Professional Fees & Services,SUPPLIES & SERVICES,SERVICES,REVENUE
Walsall Council,http://opendatacommunities.org/id/metropolitan-district-council/walsall,WC123-420,28.02.2021,ADULT SOCIAL CARE,ALDERGROVE MANOR LTD,15/02/2021,"2,308.00",6541-Residential EMI,THIRD PARTY PAYMENTS,PRIVATE CONTRACTOR,REVENUE
Walsall Council,http://opendatacommunities.org/id/metropolitan-district-council/walsall,WC123-421,28.02.2021,ADULT SOCIAL CARE,ALDERGROVE MANOR LTD,15/02/2021,"2,225.57",6541-Residential EMI,THIRD PARTY PAYMENTS,PRIVATE CONTRACTOR,REVENUE
Walsall Council,http://opendatacommunities.org/id/metropolitan-district-council/walsall,WC123-422,28.02.2021,CHILDRENS,ALDRIDGE & BARONS LIMITED,25/02/2021,"1,488.00",6241-Hire of Vehicle with Driver,TRANSPORT,DIRECT TRANSPORT COSTS,REVENUE
Walsall Council,http://opendatacommunities.org/id/metropolitan-district-council/walsall,WC123-423,28.02.2021,CHILDRENS,ALDRIDGE & BARONS LIMITED,25/02/2021,"1,455.40",6241-Hire of Vehicle with Driver,TRANSPORT,DIRECT TRANSPORT COSTS,REVENUE
Walsall Council,http://opendatacommunities.org/id/metropolitan-district-council/walsall,WC123-424,28.02.2021,CHILDRENS,ALDRIDGE & BARONS LIMITED,25/02/2021,"2,700.00",6241-Hire of Vehicle with Driver,TRANSPORT,DIRECT TRANSPORT COSTS,REVENUE
Walsall Council,http://opendatacommunities.org/id/metropolitan-district-council/walsall,WC123-425,28.02.2021,CHILDRENS,ALDRIDGE & BARONS LIMITED,25/02/2021,"1,720.00",6241-Hire of Vehicle with Driver,TRANSPORT,DIRECT TRANSPORT COSTS,REVENUE
Walsall Council,http://opendatacommunities.org/id/metropolitan-district-council/walsall,WC123-426,28.02.2021,CHILDRENS,ALDRIDGE & BARONS LIMITED,25/02/2021,"1,988.16",6241-Hire of Vehicle with Driver,TRANSPORT,DIRECT TRANSPORT COSTS,REVENUE
Walsall Council,http://opendatacommunities.org/id/metropolitan-district-council/walsall,WC123-427,28.02.2021,CHILDRENS,ALDRIDGE & BARONS LIMITED,25/02/2021,"1,767.00",6241-Hire of Vehicle with Driver,TRANSPORT,DIRECT TRANSPORT COSTS,REVENUE
Walsall Council,http://opendatacommunities.org/id/metropolitan-district-council/walsall,WC123-428,28.02.2021,CHILDRENS,ALDRIDGE & BARONS LIMITED,25/02/2021,"1,216.00",6241-Hire of Vehicle with Driver,TRANSPORT,DIRECT TRANSPORT COSTS,REVENUE
Walsall Council,http://opendatacommunities.org/id/metropolitan-district-council/walsall,WC123-429,28.02.2021,CHILDRENS,ALDRIDGE & BARONS LIMITED,25/02/2021,"1,748.40",6241-Hire of Vehicle with Driver,TRANSPORT,DIRECT TRANSPORT COSTS,REVENUE
Walsall Council,http://opendatacommunities.org/id/metropolitan-district-council/walsall,WC123-430,28.02.2021,CHILDRENS,ALDRIDGE & BARONS LIMITED,25/02/2021,"1,428.80",6241-Hire of Vehicle with Driver,TRANSPORT,DIRECT TRANSPORT COSTS,REVENUE
Walsall Council,http://opendatacommunities.org/id/metropolitan-district-council/walsall,WC123-431,28.02.2021,CHILDRENS,ALDRIDGE & BARONS LIMITED,25/02/2021,"2,123.52",6241-Hire of Vehicle with Driver,TRANSPORT,DIRECT TRANSPORT COSTS,REVENUE
Walsall Council,http://opendatacommunities.org/id/metropolitan-district-council/walsall,WC123-432,28.02.2021,CHILDRENS,ALDRIDGE & BARONS LIMITED,25/02/2021,"1,064.00",6241-Hire of Vehicle with Driver,TRANSPORT,DIRECT TRANSPORT COSTS,REVENUE
Walsall Council,http://opendatacommunities.org/id/metropolitan-district-council/walsall,WC123-433,28.02.2021,CHILDRENS,ALDRIDGE & BARONS LIMITED,25/02/2021,618.40,6241-Hire of Vehicle with Driver,TRANSPORT,DIRECT TRANSPORT COSTS,REVENUE
Walsall Council,http://opendatacommunities.org/id/metropolitan-district-council/walsall,WC123-434,28.02.2021,CHILDRENS,ALDRIDGE & BARONS LIMITED,25/02/2021,828.00,6241-Hire of Vehicle with Driver,TRANSPORT,DIRECT TRANSPORT COSTS,REVENUE
Walsall Council,http://opendatacommunities.org/id/metropolitan-district-council/walsall,WC123-435,28.02.2021,CHILDRENS,ALDRIDGE & BARONS LIMITED,25/02/2021,"1,596.00",6241-Hire of Vehicle with Driver,TRANSPORT,DIRECT TRANSPORT COSTS,REVENUE
Walsall Council,http://opendatacommunities.org/id/metropolitan-district-council/walsall,WC123-436,28.02.2021,CHILDRENS,ALDRIDGE & BARONS LIMITED,25/02/2021,"1,555.20",6241-Hire of Vehicle with Driver,TRANSPORT,DIRECT TRANSPORT COSTS,REVENUE
Walsall Council,http://opendatacommunities.org/id/metropolitan-district-council/walsall,WC123-437,28.02.2021,CHILDRENS,ALDRIDGE & BARONS LIMITED,25/02/2021,"2,138.40",6241-Hire of Vehicle with Driver,TRANSPORT,DIRECT TRANSPORT COSTS,REVENUE
Walsall Council,http://opendatacommunities.org/id/metropolitan-district-council/walsall,WC123-438,28.02.2021,CHILDRENS,ALDRIDGE & BARONS LIMITED,25/02/2021,"2,000.00",6241-Hire of Vehicle with Driver,TRANSPORT,DIRECT TRANSPORT COSTS,REVENUE
Walsall Council,http://opendatacommunities.org/id/metropolitan-district-council/walsall,WC123-439,28.02.2021,CHILDRENS,ALDRIDGE & BARONS LIMITED,25/02/2021,"1,846.05",6241-Hire of Vehicle with Driver,TRANSPORT,DIRECT TRANSPORT COSTS,REVENUE
Walsall Council,http://opendatacommunities.org/id/metropolitan-district-council/walsall,WC123-440,28.02.2021,CHILDRENS,ALDRIDGE & BARONS LIMITED,25/02/2021,"2,462.40",6241-Hire of Vehicle with Driver,TRANSPORT,DIRECT TRANSPORT COSTS,REVENUE
Walsall Council,http://opendatacommunities.org/id/metropolitan-district-council/walsall,WC123-441,28.02.2021,CHILDRENS,ALDRIDGE & BARONS LIMITED,25/02/2021,"2,800.00",6241-Hire of Vehicle with Driver,TRANSPORT,DIRECT TRANSPORT COSTS,REVENUE
Walsall Council,http://opendatacommunities.org/id/metropolitan-district-council/walsall,WC123-442,28.02.2021,CHILDRENS,ALDRIDGE & BARONS LIMITED,25/02/2021,"1,960.00",6241-Hire of Vehicle with Driver,TRANSPORT,DIRECT TRANSPORT COSTS,REVENUE
Walsall Council,http://opendatacommunities.org/id/metropolitan-district-council/walsall,WC123-443,28.02.2021,CHILDRENS,ALDRIDGE & BARONS LIMITED,25/02/2021,"1,132.80",6241-Hire of Vehicle with Driver,TRANSPORT,DIRECT TRANSPORT COSTS,REVENUE
Walsall Council,http://opendatacommunities.org/id/metropolitan-district-council/walsall,WC123-444,28.02.2021,CHILDRENS,ALDRIDGE & BARONS LIMITED,25/02/2021,"1,312.00",6241-Hire of Vehicle with Driver,TRANSPORT,DIRECT TRANSPORT COSTS,REVENUE
Walsall Council,http://opendatacommunities.org/id/metropolitan-district-council/walsall,WC123-445,28.02.2021,CHILDRENS,ALDRIDGE & BARONS LIMITED,25/02/2021,881.60,6241-Hire of Vehicle with Driver,TRANSPORT,DIRECT TRANSPORT COSTS,REVENUE
Walsall Council,http://opendatacommunities.org/id/metropolitan-district-council/walsall,WC123-446,28.02.2021,CHILDRENS,ALDRIDGE & BARONS LIMITED,25/02/2021,"1,140.00",6241-Hire of Vehicle with Driver,TRANSPORT,DIRECT TRANSPORT COSTS,REVENUE
Walsall Council,http://opendatacommunities.org/id/metropolitan-district-council/walsall,WC123-447,28.02.2021,CHILDRENS,ALDRIDGE & BARONS LIMITED,25/02/2021,"1,216.00",6241-Hire of Vehicle with Driver,TRANSPORT,DIRECT TRANSPORT COSTS,REVENUE
Walsall Council,http://opendatacommunities.org/id/metropolitan-district-council/walsall,WC123-448,28.02.2021,CHILDRENS,ALDRIDGE & BARONS LIMITED,25/02/2021,"1,976.00",6241-Hire of Vehicle with Driver,TRANSPORT,DIRECT TRANSPORT COSTS,REVENUE
Walsall Council,http://opendatacommunities.org/id/metropolitan-district-council/walsall,WC123-449,28.02.2021,CHILDRENS,ALDRIDGE & BARONS LIMITED,25/02/2021,"1,116.00",6241-Hire of Vehicle with Driver,TRANSPORT,DIRECT TRANSPORT COSTS,REVENUE
Walsall Council,http://opendatacommunities.org/id/metropolitan-district-council/walsall,WC123-450,28.02.2021,CHILDRENS,ALDRIDGE & BARONS LIMITED,25/02/2021,"1,508.00",6241-Hire of Vehicle with Driver,TRANSPORT,DIRECT TRANSPORT COSTS,REVENUE
Walsall Council,http://opendatacommunities.org/id/metropolitan-district-council/walsall,WC123-451,28.02.2021,CHILDRENS,ALDRIDGE & BARONS LIMITED,25/02/2021,"1,908.48",6241-Hire of Vehicle with Driver,TRANSPORT,DIRECT TRANSPORT COSTS,REVENUE
Walsall Council,http://opendatacommunities.org/id/metropolitan-district-council/walsall,WC123-452,28.02.2021,CHILDRENS,ALDRIDGE & BARONS LIMITED,25/02/2021,"1,956.00",6241-Hire of Vehicle with Driver,TRANSPORT,DIRECT TRANSPORT COSTS,REVENUE
Walsall Council,http://opendatacommunities.org/id/metropolitan-district-council/walsall,WC123-453,28.02.2021,CHILDRENS,ALDRIDGE & BARONS LIMITED,25/02/2021,"1,520.00",6241-Hire of Vehicle with Driver,TRANSPORT,DIRECT TRANSPORT COSTS,REVENUE
Walsall Council,http://opendatacommunities.org/id/metropolitan-district-council/walsall,WC123-454,28.02.2021,CHILDRENS,ALDRIDGE & BARONS LIMITED,25/02/2021,912.00,6241-Hire of Vehicle with Driver,TRANSPORT,DIRECT TRANSPORT COSTS,REVENUE
Walsall Council,http://opendatacommunities.org/id/metropolitan-district-council/walsall,WC123-455,28.02.2021,CHILDRENS,ALDRIDGE & BARONS LIMITED,25/02/2021,820.80,6241-Hire of Vehicle with Driver,TRANSPORT,DIRECT TRANSPORT COSTS,REVENUE
Walsall Council,http://opendatacommunities.org/id/metropolitan-district-council/walsall,WC123-456,28.02.2021,ADULT SOCIAL CARE,ALDRIDGE SHED,04/02/2021,"1,333.33",6420-Consultant Fees,SUPPLIES & SERVICES,SERVICES,REVENUE
Walsall Council,http://opendatacommunities.org/id/metropolitan-district-council/walsall,WC123-457,28.02.2021,ADULT SOCIAL CARE,REDACTED,04/02/2021,"1,480.32",6541-Direct Payment,THIRD PARTY PAYMENTS,PRIVATE CONTRACTOR,REVENUE
Walsall Council,http://opendatacommunities.org/id/metropolitan-district-council/walsall,WC123-458,28.02.2021,ADULT SOCIAL CARE,REDACTED,04/02/2021,"1,943.20",6541-Direct Payment,THIRD PARTY PAYMENTS,PRIVATE CONTRACTOR,REVENUE
Walsall Council,http://opendatacommunities.org/id/metropolitan-district-council/walsall,WC123-459,28.02.2021,ADULT SOCIAL CARE,REDACTED,04/02/2021,947.76,6541-Direct Payment,THIRD PARTY PAYMENTS,PRIVATE CONTRACTOR,REVENUE
Walsall Council,http://opendatacommunities.org/id/metropolitan-district-council/walsall,WC123-460,28.02.2021,ADULT SOCIAL CARE,REDACTED,04/02/2021,"5,337.28",6541-Direct Payment,THIRD PARTY PAYMENTS,PRIVATE CONTRACTOR,REVENUE
Walsall Council,http://opendatacommunities.org/id/metropolitan-district-council/walsall,WC123-461,28.02.2021,ADULT SOCIAL CARE,REDACTED,03/02/2021,904.45,6541-Shared Lives,THIRD PARTY PAYMENTS,PRIVATE CONTRACTOR,REVENUE
Walsall Council,http://opendatacommunities.org/id/metropolitan-district-council/walsall,WC123-462,28.02.2021,CHILDRENS,REDACTED,05/02/2021,312.24,6223-Special Guardianship Orders,TRANSFER PAYMENTS,CHILDREN SOCIAL SERVICES CLIENT,REVENUE
Walsall Council,http://opendatacommunities.org/id/metropolitan-district-council/walsall,WC123-463,28.02.2021,ECONOMY & ENVIRONMENT,ALLIANCE TRANSPORT TECHNOLOGIES LTD,02/02/2021,604.80,6410-Professional Services-Priv Contractor & Other Agencies,THIRD PARTY PAYMENTS,PRIVATE CONTRACTOR,REVENUE
Walsall Council,http://opendatacommunities.org/id/metropolitan-district-council/walsall,WC123-464,28.02.2021,ADULT SOCIAL CARE,ALMA COURT,15/02/2021,"6,553.60",6541-Residential,THIRD PARTY PAYMENTS,PRIVATE CONTRACTOR,REVENUE
Walsall Council,http://opendatacommunities.org/id/metropolitan-district-council/walsall,WC123-465,28.02.2021,ADULT SOCIAL CARE,ALMA COURT,15/02/2021,"4,737.92",6541-Nursing EMI,THIRD PARTY PAYMENTS,PRIVATE CONTRACTOR,REVENUE
Walsall Council,http://opendatacommunities.org/id/metropolitan-district-council/walsall,WC123-466,28.02.2021,ADULT SOCIAL CARE,ALMA COURT,15/02/2021,"5,939.20",6541-Nursing EMI,THIRD PARTY PAYMENTS,PRIVATE CONTRACTOR,REVENUE
Walsall Council,http://opendatacommunities.org/id/metropolitan-district-council/walsall,WC123-467,28.02.2021,CHILDRENS,ALMOZENE NURSERY & CHILDRENS CENTRE,09/02/2021,"1,755.60",1184-Other-Grants to Other Orgs,SUPPLIES & SERVICES,GRANTS (EXP) & SUBSCRIPTIONS,REVENUE
Walsall Council,http://opendatacommunities.org/id/metropolitan-district-council/walsall,WC123-468,28.02.2021,CHILDRENS,ALMOZENE NURSERY & CHILDRENS CENTRE,09/02/2021,"3,654.75",1184-Other-Grants to Other Orgs,SUPPLIES & SERVICES,GRANTS (EXP) & SUBSCRIPTIONS,REVENUE
Walsall Council,http://opendatacommunities.org/id/metropolitan-district-council/walsall,WC123-469,28.02.2021,CHILDRENS,ALMOZENE NURSERY & CHILDRENS CENTRE,16/02/2021,"6,122.16",1220-Top Up Funding -Grants to Schools,SUPPLIES & SERVICES,GRANTS (EXP) & SUBSCRIPTIONS,REVENUE
Walsall Council,http://opendatacommunities.org/id/metropolitan-district-council/walsall,WC123-470,28.02.2021,ADULT SOCIAL CARE,ALPHA HEALTH CARE LTD,15/02/2021,"2,831.48",6541-Residential EMI,THIRD PARTY PAYMENTS,PRIVATE CONTRACTOR,REVENUE
Walsall Council,http://opendatacommunities.org/id/metropolitan-district-council/walsall,WC123-471,28.02.2021,ADULT SOCIAL CARE,ALPHA HEALTH CARE LTD,15/02/2021,"2,881.80",6541-Nursing EMI,THIRD PARTY PAYMENTS,PRIVATE CONTRACTOR,REVENUE
Walsall Council,http://opendatacommunities.org/id/metropolitan-district-council/walsall,WC123-472,28.02.2021,ADULT SOCIAL CARE,ALPHA HEALTH CARE LTD,15/02/2021,"2,696.00",6541-Nursing EMI,THIRD PARTY PAYMENTS,PRIVATE CONTRACTOR,REVENUE
Walsall Council,http://opendatacommunities.org/id/metropolitan-district-council/walsall,WC123-473,28.02.2021,ADULT SOCIAL CARE,ALPHA HEALTH CARE LTD,15/02/2021,"2,881.84",6541-Nursing EMI,THIRD PARTY PAYMENTS,PRIVATE CONTRACTOR,REVENUE
Walsall Council,http://opendatacommunities.org/id/metropolitan-district-council/walsall,WC123-474,28.02.2021,ADULT SOCIAL CARE,ALPHA HEALTH CARE LTD,15/02/2021,"2,696.00",6541-Nursing EMI,THIRD PARTY PAYMENTS,PRIVATE CONTRACTOR,REVENUE
Walsall Council,http://opendatacommunities.org/id/metropolitan-district-council/walsall,WC123-475,28.02.2021,ADULT SOCIAL CARE,ALPHA HEALTH CARE LTD,15/02/2021,"2,937.88",6541-Nursing EMI,THIRD PARTY PAYMENTS,PRIVATE CONTRACTOR,REVENUE
Walsall Council,http://opendatacommunities.org/id/metropolitan-district-council/walsall,WC123-476,28.02.2021,ADULT SOCIAL CARE,ALPHA HEALTH CARE LTD,15/02/2021,"2,308.00",6541-Residential EMI,THIRD PARTY PAYMENTS,PRIVATE CONTRACTOR,REVENUE
Walsall Council,http://opendatacommunities.org/id/metropolitan-district-council/walsall,WC123-477,28.02.2021,ADULT SOCIAL CARE,ALPHA HEALTH CARE LTD,15/02/2021,"7,000.00",6541-Nursing EMI,THIRD PARTY PAYMENTS,PRIVATE CONTRACTOR,REVENUE
Walsall Council,http://opendatacommunities.org/id/metropolitan-district-council/walsall,WC123-478,28.02.2021,ADULT SOCIAL CARE,ALPHA HEALTH CARE LTD,15/02/2021,"2,308.00",6541-Residential EMI,THIRD PARTY PAYMENTS,PRIVATE CONTRACTOR,REVENUE
Walsall Council,http://opendatacommunities.org/id/metropolitan-district-council/walsall,WC123-479,28.02.2021,ADULT SOCIAL CARE,ALPHA HEALTH CARE LTD,15/02/2021,"3,180.00",6541-Residential EMI,THIRD PARTY PAYMENTS,PRIVATE CONTRACTOR,REVENUE
Walsall Council,http://opendatacommunities.org/id/metropolitan-district-council/walsall,WC123-480,28.02.2021,ADULT SOCIAL CARE,ALPHA HEALTH CARE LTD,15/02/2021,"2,079.36",6541-Nursing EMI,THIRD PARTY PAYMENTS,PRIVATE CONTRACTOR,REVENUE
Walsall Council,http://opendatacommunities.org/id/metropolitan-district-council/walsall,WC123-481,28.02.2021,ADULT SOCIAL CARE,ALPHA HEALTH CARE LTD,15/02/2021,"2,188.80",6541-Nursing EMI,THIRD PARTY PAYMENTS,PRIVATE CONTRACTOR,REVENUE
Walsall Council,http://opendatacommunities.org/id/metropolitan-district-council/walsall,WC123-482,28.02.2021,ADULT SOCIAL CARE,ALPHA HEALTH CARE LTD,15/02/2021,"2,308.00",6541-Residential EMI,THIRD PARTY PAYMENTS,PRIVATE CONTRACTOR,REVENUE
Walsall Council,http://opendatacommunities.org/id/metropolitan-district-council/walsall,WC123-483,28.02.2021,ADULT SOCIAL CARE,ALPHA HEALTH CARE LTD,15/02/2021,"3,064.32",6541-Nursing EMI,THIRD PARTY PAYMENTS,PRIVATE CONTRACTOR,REVENUE
Walsall Council,http://opendatacommunities.org/id/metropolitan-district-council/walsall,WC123-484,28.02.2021,ADULT SOCIAL CARE,ALPHA HEALTH CARE LTD,15/02/2021,"2,308.00",6541-Residential EMI,THIRD PARTY PAYMENTS,PRIVATE CONTRACTOR,REVENUE
Walsall Council,http://opendatacommunities.org/id/metropolitan-district-council/walsall,WC123-485,28.02.2021,ADULT SOCIAL CARE,ALPHA HEALTH CARE LTD,15/02/2021,"3,600.00",6541-Nursing EMI,THIRD PARTY PAYMENTS,PRIVATE CONTRACTOR,REVENUE
Walsall Council,http://opendatacommunities.org/id/metropolitan-district-council/walsall,WC123-486,28.02.2021,ADULT SOCIAL CARE,ALPHA HEALTH CARE LTD,15/02/2021,"5,600.00",6541-Residential,THIRD PARTY PAYMENTS,PRIVATE CONTRACTOR,REVENUE
Walsall Council,http://opendatacommunities.org/id/metropolitan-district-council/walsall,WC123-487,28.02.2021,ADULT SOCIAL CARE,ALPHA HEALTH CARE LTD,15/02/2021,"7,113.60",6541-Nursing EMI,THIRD PARTY PAYMENTS,PRIVATE CONTRACTOR,REVENUE
Walsall Council,http://opendatacommunities.org/id/metropolitan-district-council/walsall,WC123-488,28.02.2021,ADULT SOCIAL CARE,ALPHA HEALTH CARE LTD,15/02/2021,454.90,6541-Nursing EMI,THIRD PARTY PAYMENTS,PRIVATE CONTRACTOR,REVENUE
Walsall Council,http://opendatacommunities.org/id/metropolitan-district-council/walsall,WC123-489,28.02.2021,ADULT SOCIAL CARE,ALPHA HEALTH CARE LTD,15/02/2021,"2,044.00",6541-Residential,THIRD PARTY PAYMENTS,PRIVATE CONTRACTOR,REVENUE
Walsall Council,http://opendatacommunities.org/id/metropolitan-district-council/walsall,WC123-490,28.02.2021,ADULT SOCIAL CARE,ALPHA HEALTH CARE LTD,15/02/2021,"3,035.72",6541-Residential EMI,THIRD PARTY PAYMENTS,PRIVATE CONTRACTOR,REVENUE
Walsall Council,http://opendatacommunities.org/id/metropolitan-district-council/walsall,WC123-491,28.02.2021,ADULT SOCIAL CARE,ALPHA HEALTH CARE LTD,15/02/2021,"2,079.36",6541-Nursing EMI,THIRD PARTY PAYMENTS,PRIVATE CONTRACTOR,REVENUE
Walsall Council,http://opendatacommunities.org/id/metropolitan-district-council/walsall,WC123-492,28.02.2021,ADULT SOCIAL CARE,ALPHA HEALTH CARE LTD,15/02/2021,427.86,6541-Nursing,THIRD PARTY PAYMENTS,PRIVATE CONTRACTOR,REVENUE
Walsall Council,http://opendatacommunities.org/id/metropolitan-district-council/walsall,WC123-493,28.02.2021,ADULT SOCIAL CARE,ALPHA HEALTH CARE LTD,15/02/2021,"2,696.00",6541-Nursing EMI,THIRD PARTY PAYMENTS,PRIVATE CONTRACTOR,REVENUE
Walsall Council,http://opendatacommunities.org/id/metropolitan-district-council/walsall,WC123-494,28.02.2021,ADULT SOCIAL CARE,ALPHA HEALTH CARE LTD,15/02/2021,"3,290.36",6541-Nursing EMI,THIRD PARTY PAYMENTS,PRIVATE CONTRACTOR,REVENUE
Walsall Council,http://opendatacommunities.org/id/metropolitan-district-council/walsall,WC123-495,28.02.2021,ADULT SOCIAL CARE,ALPHA HEALTH CARE LTD,15/02/2021,"2,937.76",6541-Nursing,THIRD PARTY PAYMENTS,PRIVATE CONTRACTOR,REVENUE
Walsall Council,http://opendatacommunities.org/id/metropolitan-district-council/walsall,WC123-496,28.02.2021,ADULT SOCIAL CARE,ALPHA HEALTH CARE LTD,15/02/2021,"3,180.00",6541-Residential,THIRD PARTY PAYMENTS,PRIVATE CONTRACTOR,REVENUE
Walsall Council,http://opendatacommunities.org/id/metropolitan-district-council/walsall,WC123-497,28.02.2021,ADULT SOCIAL CARE,ALPHA HEALTH CARE LTD,15/02/2021,"2,308.00",6541-Residential EMI,THIRD PARTY PAYMENTS,PRIVATE CONTRACTOR,REVENUE
Walsall Council,http://opendatacommunities.org/id/metropolitan-district-council/walsall,WC123-498,28.02.2021,ADULT SOCIAL CARE,ALPHA HEALTH CARE LTD,19/02/2021,"3,000.00",6554-Professional Services-Priv Contractor & Other Agencies,THIRD PARTY PAYMENTS,PRIVATE CONTRACTOR,REVENUE
Walsall Council,http://opendatacommunities.org/id/metropolitan-district-council/walsall,WC123-499,28.02.2021,ADULT SOCIAL CARE,ALPHA HEALTH CARE LTD,19/02/2021,"4,071.43",6554-Professional Services-Priv Contractor & Other Agencies,THIRD PARTY PAYMENTS,PRIVATE CONTRACTOR,REVENUE
Walsall Council,http://opendatacommunities.org/id/metropolitan-district-council/walsall,WC123-500,28.02.2021,ADULT SOCIAL CARE,ALPHA HEALTH CARE LTD,19/02/2021,"1,628.57",6554-Professional Services-Priv Contractor & Other Agencies,THIRD PARTY PAYMENTS,PRIVATE CONTRACTOR,REVENUE
Walsall Council,http://opendatacommunities.org/id/metropolitan-district-council/walsall,WC123-501,28.02.2021,ADULT SOCIAL CARE,ALPHA HEALTH CARE LTD,19/02/2021,678.57,6554-Professional Services-Priv Contractor & Other Agencies,THIRD PARTY PAYMENTS,PRIVATE CONTRACTOR,REVENUE
Walsall Council,http://opendatacommunities.org/id/metropolitan-district-council/walsall,WC123-502,28.02.2021,ADULT SOCIAL CARE,ALPHA HEALTH CARE LTD,02/02/2021,950.00,6554-Professional Services-Priv Contractor & Other Agencies,THIRD PARTY PAYMENTS,PRIVATE CONTRACTOR,REVENUE
Walsall Council,http://opendatacommunities.org/id/metropolitan-district-council/walsall,WC123-503,28.02.2021,ADULT SOCIAL CARE,ALPHA HEALTH CARE LTD,02/02/2021,"1,492.86",6554-Professional Services-Priv Contractor & Other Agencies,THIRD PARTY PAYMENTS,PRIVATE CONTRACTOR,REVENUE
Walsall Council,http://opendatacommunities.org/id/metropolitan-district-council/walsall,WC123-504,28.02.2021,ADULT SOCIAL CARE,ALPHA HEALTH CARE LTD,02/02/2021,"2,985.71",6554-Professional Services-Priv Contractor & Other Agencies,THIRD PARTY PAYMENTS,PRIVATE CONTRACTOR,REVENUE
Walsall Council,http://opendatacommunities.org/id/metropolitan-district-council/walsall,WC123-505,28.02.2021,ADULT SOCIAL CARE,ALPHA HEALTH CARE LTD,11/02/2021,"1,000.00",6554-Professional Services-Priv Contractor & Other Agencies,THIRD PARTY PAYMENTS,PRIVATE CONTRACTOR,REVENUE
Walsall Council,http://opendatacommunities.org/id/metropolitan-district-council/walsall,WC123-506,28.02.2021,ADULT SOCIAL CARE,ALPHA HEALTH CARE LTD,04/02/2021,678.57,6554-Professional Services-Priv Contractor & Other Agencies,THIRD PARTY PAYMENTS,PRIVATE CONTRACTOR,REVENUE
Walsall Council,http://opendatacommunities.org/id/metropolitan-district-council/walsall,WC123-507,28.02.2021,ADULT SOCIAL CARE,ALPHA HEALTH CARE LTD,04/02/2021,542.86,6554-Professional Services-Priv Contractor & Other Agencies,THIRD PARTY PAYMENTS,PRIVATE CONTRACTOR,REVENUE
Walsall Council,http://opendatacommunities.org/id/metropolitan-district-council/walsall,WC123-508,28.02.2021,ADULT SOCIAL CARE,ALPHA HEALTH CARE LTD,11/02/2021,542.86,6554-Professional Services-Priv Contractor & Other Agencies,THIRD PARTY PAYMENTS,PRIVATE CONTRACTOR,REVENUE
Walsall Council,http://opendatacommunities.org/id/metropolitan-district-council/walsall,WC123-509,28.02.2021,ADULT SOCIAL CARE,ALPHA HEALTH CARE LTD,11/02/2021,"3,460.00",6554-Professional Services-Priv Contractor & Other Agencies,THIRD PARTY PAYMENTS,PRIVATE CONTRACTOR,REVENUE
Walsall Council,http://opendatacommunities.org/id/metropolitan-district-council/walsall,WC123-510,28.02.2021,CHILDRENS,ALPHA TRAINING ACADEMY UK LTD,02/02/2021,"3,000.00",1187-Materials,SUPPLIES & SERVICES,EQUIPMENT FURNITURE & MATERIALS,REVENUE
Walsall Council,http://opendatacommunities.org/id/metropolitan-district-council/walsall,WC123-511,28.02.2021,CHILDRENS,ALPHA TRAINING ACADEMY UK LTD,08/02/2021,"1,500.00",1187-Materials,SUPPLIES & SERVICES,EQUIPMENT FURNITURE & MATERIALS,REVENUE
Walsall Council,http://opendatacommunities.org/id/metropolitan-district-council/walsall,WC123-512,28.02.2021,CHILDRENS,AMAH NURSERIES LIMITED T/A BANANA MOON WALSALL,09/02/2021,"7,900.20",1184-Other-Grants to Other Orgs,SUPPLIES & SERVICES,GRANTS (EXP) & SUBSCRIPTIONS,REVENUE
Walsall Council,http://opendatacommunities.org/id/metropolitan-district-council/walsall,WC123-513,28.02.2021,CHILDRENS,AMAH NURSERIES LIMITED T/A BANANA MOON WALSALL,09/02/2021,"8,771.40",1184-Other-Grants to Other Orgs,SUPPLIES & SERVICES,GRANTS (EXP) & SUBSCRIPTIONS,REVENUE
Walsall Council,http://opendatacommunities.org/id/metropolitan-district-council/walsall,WC123-514,28.02.2021,CHILDRENS,REDACTED,05/02/2021,318.08,6223-Residents Orders,TRANSFER PAYMENTS,CHILDREN SOCIAL SERVICES CLIENT,REVENUE
Walsall Council,http://opendatacommunities.org/id/metropolitan-district-council/walsall,WC123-515,28.02.2021,ADULT SOCIAL CARE,REDACTED,04/02/2021,"1,547.04",6541-Direct Payment,THIRD PARTY PAYMENTS,PRIVATE CONTRACTOR,REVENUE
Walsall Council,http://opendatacommunities.org/id/metropolitan-district-council/walsall,WC123-516,28.02.2021,ADULT SOCIAL CARE,REDACTED,04/02/2021,"1,155.00",6541-Direct Payment,THIRD PARTY PAYMENTS,PRIVATE CONTRACTOR,REVENUE
Walsall Council,http://opendatacommunities.org/id/metropolitan-district-council/walsall,WC123-517,28.02.2021,ECONOMY & ENVIRONMENT,AMEY LG LIMITED,17/02/2021,540.71,6411-Repair & Maintenance of Furniture & Equipment,SUPPLIES & SERVICES,EQUIPMENT FURNITURE & MATERIALS,REVENUE
Walsall Council,http://opendatacommunities.org/id/metropolitan-district-council/walsall,WC123-518,28.02.2021,ECONOMY & ENVIRONMENT,AMEY LG LIMITED,17/02/2021,"4,402.71",6411-Professional Fees & Services,SUPPLIES & SERVICES,SERVICES,REVENUE
Walsall Council,http://opendatacommunities.org/id/metropolitan-district-council/walsall,WC123-519,28.02.2021,ECONOMY & ENVIRONMENT,AMEY LG LIMITED,18/02/2021,"28,309.75",6411-Materials,SUPPLIES & SERVICES,EQUIPMENT FURNITURE & MATERIALS,REVENUE
Walsall Council,http://opendatacommunities.org/id/metropolitan-district-council/walsall,WC123-520,28.02.2021,ECONOMY & ENVIRONMENT,AMEY LG LIMITED,18/02/2021,921.63,6430-Repair & Maintenance of Furniture & Equipment,SUPPLIES & SERVICES,EQUIPMENT FURNITURE & MATERIALS,REVENUE
Walsall Council,http://opendatacommunities.org/id/metropolitan-district-council/walsall,WC123-521,28.02.2021,ECONOMY & ENVIRONMENT,AMEY LG LIMITED,18/02/2021,683.91,6430-Repair & Maintenance of Furniture & Equipment,SUPPLIES & SERVICES,EQUIPMENT FURNITURE & MATERIALS,REVENUE
Walsall Council,http://opendatacommunities.org/id/metropolitan-district-council/walsall,WC123-522,28.02.2021,ECONOMY & ENVIRONMENT,AMEY LG LIMITED,18/02/2021,"1,230.66",6430-Repair & Maintenance of Furniture & Equipment,SUPPLIES & SERVICES,EQUIPMENT FURNITURE & MATERIALS,REVENUE
Walsall Council,http://opendatacommunities.org/id/metropolitan-district-council/walsall,WC123-523,28.02.2021,ECONOMY & ENVIRONMENT CAPITAL,AMEY OW LTD,24/02/2021,540.81,7200-Project Fees,CAPITAL,"NEW CONSTRUCTION,CONVERSION & RENOVATION",REVENUE
Walsall Council,http://opendatacommunities.org/id/metropolitan-district-council/walsall,WC123-524,28.02.2021,ADULT SOCIAL CARE,AMG NURSING CARE SERVICES,10/02/2021,"3,487.20",6541-Community Supported Living/Supported Accommodation,THIRD PARTY PAYMENTS,PRIVATE CONTRACTOR,REVENUE
Walsall Council,http://opendatacommunities.org/id/metropolitan-district-council/walsall,WC123-525,28.02.2021,ADULT SOCIAL CARE,AMG NURSING CARE SERVICES,10/02/2021,"4,068.40",6541-Community Supported Living/Supported Accommodation,THIRD PARTY PAYMENTS,PRIVATE CONTRACTOR,REVENUE
Walsall Council,http://opendatacommunities.org/id/metropolitan-district-council/walsall,WC123-526,28.02.2021,ADULT SOCIAL CARE,AMG NURSING CARE SERVICES,10/02/2021,"3,487.20",6541-Community Supported Living/Supported Accommodation,THIRD PARTY PAYMENTS,PRIVATE CONTRACTOR,REVENUE
Walsall Council,http://opendatacommunities.org/id/metropolitan-district-council/walsall,WC123-527,28.02.2021,ADULT SOCIAL CARE,AMG NURSING CARE SERVICES,10/02/2021,"4,068.40",6541-Community Supported Living/Supported Accommodation,THIRD PARTY PAYMENTS,PRIVATE CONTRACTOR,REVENUE
Walsall Council,http://opendatacommunities.org/id/metropolitan-district-council/walsall,WC123-528,28.02.2021,ADULT SOCIAL CARE,AMG NURSING CARE SERVICES,10/02/2021,"3,923.10",6541-Community Supported Living/Supported Accommodation,THIRD PARTY PAYMENTS,PRIVATE CONTRACTOR,REVENUE
Walsall Council,http://opendatacommunities.org/id/metropolitan-district-council/walsall,WC123-529,28.02.2021,ADULT SOCIAL CARE,AMG NURSING CARE SERVICES,10/02/2021,"4,068.40",6541-Community Supported Living/Supported Accommodation,THIRD PARTY PAYMENTS,PRIVATE CONTRACTOR,REVENUE
Walsall Council,http://opendatacommunities.org/id/metropolitan-district-council/walsall,WC123-530,28.02.2021,ADULT SOCIAL CARE,AMG NURSING CARE SERVICES,10/02/2021,"4,068.40",6541-Community Supported Living/Supported Accommodation,THIRD PARTY PAYMENTS,PRIVATE CONTRACTOR,REVENUE
Walsall Council,http://opendatacommunities.org/id/metropolitan-district-council/walsall,WC123-531,28.02.2021,ADULT SOCIAL CARE,AMG NURSING CARE SERVICES,10/02/2021,"3,923.10",6541-Community Supported Living/Supported Accommodation,THIRD PARTY PAYMENTS,PRIVATE CONTRACTOR,REVENUE
Walsall Council,http://opendatacommunities.org/id/metropolitan-district-council/walsall,WC123-532,28.02.2021,ADULT SOCIAL CARE,AMG NURSING CARE SERVICES,10/02/2021,"3,487.20",6541-Community Supported Living/Supported Accommodation,THIRD PARTY PAYMENTS,PRIVATE CONTRACTOR,REVENUE
Walsall Council,http://opendatacommunities.org/id/metropolitan-district-council/walsall,WC123-533,28.02.2021,CHILDRENS,AMG NURSING CARE SERVICES,03/02/2021,"2,644.72",6220-Professional Fees & Services,SUPPLIES & SERVICES,SERVICES,REVENUE
Walsall Council,http://opendatacommunities.org/id/metropolitan-district-council/walsall,WC123-534,28.02.2021,CHILDRENS,AMG NURSING CARE SERVICES,02/02/2021,"2,644.72",6220-Professional Fees & Services,SUPPLIES & SERVICES,SERVICES,REVENUE
Walsall Council,http://opendatacommunities.org/id/metropolitan-district-council/walsall,WC123-535,28.02.2021,CHILDRENS,AMG NURSING CARE SERVICES,02/02/2021,"2,644.72",6220-Professional Fees & Services,SUPPLIES & SERVICES,SERVICES,REVENUE
Walsall Council,http://opendatacommunities.org/id/metropolitan-district-council/walsall,WC123-536,28.02.2021,CHILDRENS,AMG NURSING CARE SERVICES,02/02/2021,"2,644.72",6220-Professional Fees & Services,SUPPLIES & SERVICES,SERVICES,REVENUE
Walsall Council,http://opendatacommunities.org/id/metropolitan-district-council/walsall,WC123-537,28.02.2021,CHILDRENS,AMG NURSING CARE SERVICES,02/02/2021,"2,644.72",6220-Professional Fees & Services,SUPPLIES & SERVICES,SERVICES,REVENUE
Walsall Council,http://opendatacommunities.org/id/metropolitan-district-council/walsall,WC123-538,28.02.2021,CHILDRENS,AMG NURSING CARE SERVICES,02/02/2021,"2,644.72",6220-Professional Fees & Services,SUPPLIES & SERVICES,SERVICES,REVENUE
Walsall Council,http://opendatacommunities.org/id/metropolitan-district-council/walsall,WC123-539,28.02.2021,CHILDRENS,AMG NURSING CARE SERVICES,26/02/2021,"2,644.72",6220-Professional Fees & Services,SUPPLIES & SERVICES,SERVICES,REVENUE
Walsall Council,http://opendatacommunities.org/id/metropolitan-district-council/walsall,WC123-540,28.02.2021,CHILDRENS,AMG NURSING CARE SERVICES,26/02/2021,"2,454.50",6220-Professional Fees & Services,SUPPLIES & SERVICES,SERVICES,REVENUE
Walsall Council,http://opendatacommunities.org/id/metropolitan-district-council/walsall,WC123-541,28.02.2021,CHILDRENS,AMG NURSING CARE SERVICES,26/02/2021,"2,635.23",6220-Professional Fees & Services,SUPPLIES & SERVICES,SERVICES,REVENUE
Walsall Council,http://opendatacommunities.org/id/metropolitan-district-council/walsall,WC123-542,28.02.2021,CHILDRENS,REDACTED,05/02/2021,600.00,6223-Foster Carers Maintenance Allowance,TRANSFER PAYMENTS,CHILDREN SOCIAL SERVICES CLIENT,REVENUE
Walsall Council,http://opendatacommunities.org/id/metropolitan-district-council/walsall,WC123-543,28.02.2021,CHILDRENS,REDACTED,05/02/2021,340.00,6223-Internal Foster Carers-Carer Fees,TRANSFER PAYMENTS,CHILDREN SOCIAL SERVICES CLIENT,REVENUE
Walsall Council,http://opendatacommunities.org/id/metropolitan-district-council/walsall,WC123-544,28.02.2021,ADULT SOCIAL CARE,ANCHOR CAREHOMES LTD - HARDEN HALL,08/02/2021,"18,036.00",6550-Professional Services-Priv Contractor & Other Agencies,THIRD PARTY PAYMENTS,PRIVATE CONTRACTOR,REVENUE
Walsall Council,http://opendatacommunities.org/id/metropolitan-district-council/walsall,WC123-545,28.02.2021,ADULT SOCIAL CARE,ANCHOR CAREHOMES LTD - HARDEN HALL,15/02/2021,"2,266.12",6541-Residential,THIRD PARTY PAYMENTS,PRIVATE CONTRACTOR,REVENUE
Walsall Council,http://opendatacommunities.org/id/metropolitan-district-council/walsall,WC123-546,28.02.2021,ADULT SOCIAL CARE,ANCHOR CAREHOMES LTD - HARDEN HALL,15/02/2021,"2,332.24",6541-Residential EMI,THIRD PARTY PAYMENTS,PRIVATE CONTRACTOR,REVENUE
Walsall Council,http://opendatacommunities.org/id/metropolitan-district-council/walsall,WC123-547,28.02.2021,ADULT SOCIAL CARE,ANCHOR CAREHOMES LTD - HARDEN HALL,15/02/2021,"2,312.24",6541-Residential EMI,THIRD PARTY PAYMENTS,PRIVATE CONTRACTOR,REVENUE
Walsall Council,http://opendatacommunities.org/id/metropolitan-district-council/walsall,WC123-548,28.02.2021,ADULT SOCIAL CARE,ANCHOR CAREHOMES LTD - HARDEN HALL,15/02/2021,"2,308.00",6541-Residential EMI,THIRD PARTY PAYMENTS,PRIVATE CONTRACTOR,REVENUE
Walsall Council,http://opendatacommunities.org/id/metropolitan-district-council/walsall,WC123-549,28.02.2021,ADULT SOCIAL CARE,ANCHOR CAREHOMES LTD - HARDEN HALL,15/02/2021,"2,332.24",6541-Residential EMI,THIRD PARTY PAYMENTS,PRIVATE CONTRACTOR,REVENUE
Walsall Council,http://opendatacommunities.org/id/metropolitan-district-council/walsall,WC123-550,28.02.2021,ADULT SOCIAL CARE,ANCHOR CAREHOMES LTD - HARDEN HALL,15/02/2021,"2,308.00",6541-Residential EMI,THIRD PARTY PAYMENTS,PRIVATE CONTRACTOR,REVENUE
Walsall Council,http://opendatacommunities.org/id/metropolitan-district-council/walsall,WC123-551,28.02.2021,ADULT SOCIAL CARE,ANCHOR CAREHOMES LTD - HARDEN HALL,15/02/2021,"2,308.00",6541-Residential EMI,THIRD PARTY PAYMENTS,PRIVATE CONTRACTOR,REVENUE
Walsall Council,http://opendatacommunities.org/id/metropolitan-district-council/walsall,WC123-552,28.02.2021,ADULT SOCIAL CARE,ANCHOR CAREHOMES LTD - HARDEN HALL,15/02/2021,"2,308.00",6541-Residential EMI,THIRD PARTY PAYMENTS,PRIVATE CONTRACTOR,REVENUE
Walsall Council,http://opendatacommunities.org/id/metropolitan-district-council/walsall,WC123-553,28.02.2021,ADULT SOCIAL CARE,ANCHOR CAREHOMES LTD - HARDEN HALL,15/02/2021,"2,044.00",6541-Residential,THIRD PARTY PAYMENTS,PRIVATE CONTRACTOR,REVENUE
Walsall Council,http://opendatacommunities.org/id/metropolitan-district-council/walsall,WC123-554,28.02.2021,ADULT SOCIAL CARE,ANCHOR CAREHOMES LTD - HARDEN HALL,15/02/2021,"2,308.00",6541-Residential EMI,THIRD PARTY PAYMENTS,PRIVATE CONTRACTOR,REVENUE
Walsall Council,http://opendatacommunities.org/id/metropolitan-district-council/walsall,WC123-555,28.02.2021,ADULT SOCIAL CARE,ANCHOR CAREHOMES LTD - HARDEN HALL,15/02/2021,"2,308.00",6541-Residential EMI,THIRD PARTY PAYMENTS,PRIVATE CONTRACTOR,REVENUE
Walsall Council,http://opendatacommunities.org/id/metropolitan-district-council/walsall,WC123-556,28.02.2021,ADULT SOCIAL CARE,ANCHOR CAREHOMES LTD - HARDEN HALL,15/02/2021,"2,308.00",6541-Residential EMI,THIRD PARTY PAYMENTS,PRIVATE CONTRACTOR,REVENUE
Walsall Council,http://opendatacommunities.org/id/metropolitan-district-council/walsall,WC123-557,28.02.2021,ADULT SOCIAL CARE,ANCHOR CAREHOMES LTD - HARDEN HALL,15/02/2021,"2,044.00",6541-Residential,THIRD PARTY PAYMENTS,PRIVATE CONTRACTOR,REVENUE
Walsall Council,http://opendatacommunities.org/id/metropolitan-district-council/walsall,WC123-558,28.02.2021,ADULT SOCIAL CARE,ANCHOR CAREHOMES LTD - HARDEN HALL,15/02/2021,"2,094.96",6541-Residential,THIRD PARTY PAYMENTS,PRIVATE CONTRACTOR,REVENUE
Walsall Council,http://opendatacommunities.org/id/metropolitan-district-council/walsall,WC123-559,28.02.2021,ADULT SOCIAL CARE,ANCHOR CAREHOMES LTD - HARDEN HALL,15/02/2021,"2,332.24",6541-Residential EMI,THIRD PARTY PAYMENTS,PRIVATE CONTRACTOR,REVENUE
Walsall Council,http://opendatacommunities.org/id/metropolitan-district-council/walsall,WC123-560,28.02.2021,ADULT SOCIAL CARE,ANCHOR CAREHOMES LTD - HARDEN HALL,15/02/2021,"2,308.00",6541-Residential EMI,THIRD PARTY PAYMENTS,PRIVATE CONTRACTOR,REVENUE
Walsall Council,http://opendatacommunities.org/id/metropolitan-district-council/walsall,WC123-561,28.02.2021,ADULT SOCIAL CARE,ANCHOR CAREHOMES LTD - HARDEN HALL,15/02/2021,"2,271.48",6541-Residential EMI,THIRD PARTY PAYMENTS,PRIVATE CONTRACTOR,REVENUE
Walsall Council,http://opendatacommunities.org/id/metropolitan-district-council/walsall,WC123-562,28.02.2021,ADULT SOCIAL CARE,ANCHOR CAREHOMES LTD - HARDEN HALL,15/02/2021,"2,044.00",6541-Residential,THIRD PARTY PAYMENTS,PRIVATE CONTRACTOR,REVENUE
Walsall Council,http://opendatacommunities.org/id/metropolitan-district-council/walsall,WC123-563,28.02.2021,ADULT SOCIAL CARE,ANCHOR CAREHOMES LTD - HARDEN HALL,15/02/2021,"2,312.24",6541-Residential EMI,THIRD PARTY PAYMENTS,PRIVATE CONTRACTOR,REVENUE
Walsall Council,http://opendatacommunities.org/id/metropolitan-district-council/walsall,WC123-564,28.02.2021,ADULT SOCIAL CARE,ANCHOR CAREHOMES LTD - HARDEN HALL,15/02/2021,"2,308.00",6541-Residential EMI,THIRD PARTY PAYMENTS,PRIVATE CONTRACTOR,REVENUE
Walsall Council,http://opendatacommunities.org/id/metropolitan-district-council/walsall,WC123-565,28.02.2021,ADULT SOCIAL CARE,ANCHOR CAREHOMES LTD - HARDEN HALL,15/02/2021,"2,054.96",6541-Residential,THIRD PARTY PAYMENTS,PRIVATE CONTRACTOR,REVENUE
Walsall Council,http://opendatacommunities.org/id/metropolitan-district-council/walsall,WC123-566,28.02.2021,ADULT SOCIAL CARE,ANCHOR CAREHOMES LTD - HARDEN HALL,15/02/2021,"2,308.00",6541-Residential EMI,THIRD PARTY PAYMENTS,PRIVATE CONTRACTOR,REVENUE
Walsall Council,http://opendatacommunities.org/id/metropolitan-district-council/walsall,WC123-567,28.02.2021,ADULT SOCIAL CARE,ANCHOR CAREHOMES LTD - HARDEN HALL,15/02/2021,"2,308.00",6541-Residential EMI,THIRD PARTY PAYMENTS,PRIVATE CONTRACTOR,REVENUE
Walsall Council,http://opendatacommunities.org/id/metropolitan-district-council/walsall,WC123-568,28.02.2021,ADULT SOCIAL CARE,ANCHOR CAREHOMES LTD - HARDEN HALL,15/02/2021,"2,358.96",6541-Residential EMI,THIRD PARTY PAYMENTS,PRIVATE CONTRACTOR,REVENUE
Walsall Council,http://opendatacommunities.org/id/metropolitan-district-council/walsall,WC123-569,28.02.2021,ADULT SOCIAL CARE,ANCHOR CAREHOMES LTD - HARDEN HALL,15/02/2021,"2,308.00",6541-Residential EMI,THIRD PARTY PAYMENTS,PRIVATE CONTRACTOR,REVENUE
Walsall Council,http://opendatacommunities.org/id/metropolitan-district-council/walsall,WC123-570,28.02.2021,ADULT SOCIAL CARE,ANCHOR CAREHOMES LTD - HARDEN HALL,15/02/2021,"2,332.24",6541-Residential EMI,THIRD PARTY PAYMENTS,PRIVATE CONTRACTOR,REVENUE
Walsall Council,http://opendatacommunities.org/id/metropolitan-district-council/walsall,WC123-571,28.02.2021,ADULT SOCIAL CARE,ANCHOR CAREHOMES LTD - HARDEN HALL,15/02/2021,329.71,6541-Residential EMI,THIRD PARTY PAYMENTS,PRIVATE CONTRACTOR,REVENUE
Walsall Council,http://opendatacommunities.org/id/metropolitan-district-council/walsall,WC123-572,28.02.2021,ADULT SOCIAL CARE,ANCHOR CAREHOMES LTD - HARDEN HALL,15/02/2021,"2,044.00",6541-Residential,THIRD PARTY PAYMENTS,PRIVATE CONTRACTOR,REVENUE
Walsall Council,http://opendatacommunities.org/id/metropolitan-district-council/walsall,WC123-573,28.02.2021,ADULT SOCIAL CARE,ANCHOR CAREHOMES LTD - HARDEN HALL,15/02/2021,"2,308.00",6541-Residential EMI,THIRD PARTY PAYMENTS,PRIVATE CONTRACTOR,REVENUE
Walsall Council,http://opendatacommunities.org/id/metropolitan-district-council/walsall,WC123-574,28.02.2021,ADULT SOCIAL CARE,ANCHOR CAREHOMES LTD - HARDEN HALL,15/02/2021,"2,308.00",6541-Residential EMI,THIRD PARTY PAYMENTS,PRIVATE CONTRACTOR,REVENUE
Walsall Council,http://opendatacommunities.org/id/metropolitan-district-council/walsall,WC123-575,28.02.2021,ADULT SOCIAL CARE,ANCHOR CAREHOMES LTD - HARDEN HALL,15/02/2021,"2,044.00",6541-Residential,THIRD PARTY PAYMENTS,PRIVATE CONTRACTOR,REVENUE
Walsall Council,http://opendatacommunities.org/id/metropolitan-district-council/walsall,WC123-576,28.02.2021,ADULT SOCIAL CARE,ANCHOR CAREHOMES LTD - HARDEN HALL,15/02/2021,438.00,6541-Residential,THIRD PARTY PAYMENTS,PRIVATE CONTRACTOR,REVENUE
Walsall Council,http://opendatacommunities.org/id/metropolitan-district-council/walsall,WC123-577,28.02.2021,ADULT SOCIAL CARE,ANCHOR CAREHOMES LTD - HARDEN HALL,15/02/2021,"2,308.00",6541-Residential EMI,THIRD PARTY PAYMENTS,PRIVATE CONTRACTOR,REVENUE
Walsall Council,http://opendatacommunities.org/id/metropolitan-district-council/walsall,WC123-578,28.02.2021,ADULT SOCIAL CARE,ANCHOR CAREHOMES LTD - HARDEN HALL,15/02/2021,"2,044.00",6541-Residential,THIRD PARTY PAYMENTS,PRIVATE CONTRACTOR,REVENUE
Walsall Council,http://opendatacommunities.org/id/metropolitan-district-council/walsall,WC123-579,28.02.2021,ADULT SOCIAL CARE,ANCHOR CAREHOMES LTD - HARDEN HALL,19/02/2021,"13,802.40",6550-Professional Services-Priv Contractor & Other Agencies,THIRD PARTY PAYMENTS,PRIVATE CONTRACTOR,REVENUE
Walsall Council,http://opendatacommunities.org/id/metropolitan-district-council/walsall,WC123-580,28.02.2021,CHILDRENS,REDACTED,05/02/2021,312.24,6223-Special Guardianship Orders,TRANSFER PAYMENTS,CHILDREN SOCIAL SERVICES CLIENT,REVENUE
Walsall Council,http://opendatacommunities.org/id/metropolitan-district-council/walsall,WC123-581,28.02.2021,ADULT SOCIAL CARE,REDACTED,04/02/2021,518.00,6541-Direct Payment,THIRD PARTY PAYMENTS,PRIVATE CONTRACTOR,REVENUE
Walsall Council,http://opendatacommunities.org/id/metropolitan-district-council/walsall,WC123-582,28.02.2021,ADULT SOCIAL CARE,REDACTED,04/02/2021,"2,683.36",6541-Direct Payment,THIRD PARTY PAYMENTS,PRIVATE CONTRACTOR,REVENUE
Walsall Council,http://opendatacommunities.org/id/metropolitan-district-council/walsall,WC123-583,28.02.2021,CHILDRENS CAPITAL,ANDREWS ELECTRICAL LTD,11/02/2021,"2,000.00",7150-Site Works Contractors,CAPITAL,"NEW CONSTRUCTION,CONVERSION & RENOVATION",REVENUE
Walsall Council,http://opendatacommunities.org/id/metropolitan-district-council/walsall,WC123-584,28.02.2021,CHILDRENS CAPITAL,ANDREWS ELECTRICAL LTD,22/02/2021,"5,684.00",7150-Site Works Contractors,CAPITAL,"NEW CONSTRUCTION,CONVERSION & RENOVATION",REVENUE
Walsall Council,http://opendatacommunities.org/id/metropolitan-district-council/walsall,WC123-585,28.02.2021,CHILDRENS CAPITAL,ANDREWS ELECTRICAL LTD,26/02/2021,978.00,7155-Site Works Contractors,CAPITAL,"NEW CONSTRUCTION,CONVERSION & RENOVATION",REVENUE
Walsall Council,http://opendatacommunities.org/id/metropolitan-district-council/walsall,WC123-586,28.02.2021,CHILDRENS,ANDY GALE HOUSING CONSULTANCY,23/02/2021,"1,000.00",6314-Consultant Fees,SUPPLIES & SERVICES,SERVICES,REVENUE
Walsall Council,http://opendatacommunities.org/id/metropolitan-district-council/walsall,WC123-587,28.02.2021,CHILDRENS,REDACTED,05/02/2021,500.16,6223-Special Guardianship Orders,TRANSFER PAYMENTS,CHILDREN SOCIAL SERVICES CLIENT,REVENUE
Walsall Council,http://opendatacommunities.org/id/metropolitan-district-council/walsall,WC123-588,28.02.2021,CHILDRENS,REDACTED,05/02/2021,368.76,6223-Special Guardianship Orders,TRANSFER PAYMENTS,CHILDREN SOCIAL SERVICES CLIENT,REVENUE
Walsall Council,http://opendatacommunities.org/id/metropolitan-district-council/walsall,WC123-589,28.02.2021,CHILDRENS,REDACTED,05/02/2021,312.04,6223-Special Guardianship Orders,TRANSFER PAYMENTS,CHILDREN SOCIAL SERVICES CLIENT,REVENUE
Walsall Council,http://opendatacommunities.org/id/metropolitan-district-council/walsall,WC123-590,28.02.2021,CHILDRENS,ANGELS AND BUTTERFLIES CHILDMINDING,12/02/2021,292.38,1184-Other-Grants to Other Orgs,SUPPLIES & SERVICES,GRANTS (EXP) & SUBSCRIPTIONS,REVENUE
Walsall Council,http://opendatacommunities.org/id/metropolitan-district-council/walsall,WC123-591,28.02.2021,ECONOMY & ENVIRONMENT,REDACTED,18/02/2021,"1,000.00",6414-Professional Fees & Services,SUPPLIES & SERVICES,SERVICES,REVENUE
Walsall Council,http://opendatacommunities.org/id/metropolitan-district-council/walsall,WC123-592,28.02.2021,ADULT SOCIAL CARE,REDACTED,04/02/2021,"1,408.36",6541-Direct Payment,THIRD PARTY PAYMENTS,PRIVATE CONTRACTOR,REVENUE
Walsall Council,http://opendatacommunities.org/id/metropolitan-district-council/walsall,WC123-593,28.02.2021,ADULT SOCIAL CARE,ANSON COURT RESIDENTIAL HOME,08/02/2021,"11,022.00",6550-Professional Services-Priv Contractor & Other Agencies,THIRD PARTY PAYMENTS,PRIVATE CONTRACTOR,REVENUE
Walsall Council,http://opendatacommunities.org/id/metropolitan-district-council/walsall,WC123-594,28.02.2021,ADULT SOCIAL CARE,ANSON COURT RESIDENTIAL HOME,15/02/2021,"2,308.00",6541-Residential EMI,THIRD PARTY PAYMENTS,PRIVATE CONTRACTOR,REVENUE
Walsall Council,http://opendatacommunities.org/id/metropolitan-district-council/walsall,WC123-595,28.02.2021,ADULT SOCIAL CARE,ANSON COURT RESIDENTIAL HOME,15/02/2021,"2,308.00",6541-Residential EMI,THIRD PARTY PAYMENTS,PRIVATE CONTRACTOR,REVENUE
Walsall Council,http://opendatacommunities.org/id/metropolitan-district-council/walsall,WC123-596,28.02.2021,ADULT SOCIAL CARE,ANSON COURT RESIDENTIAL HOME,15/02/2021,"2,308.00",6541-Residential EMI,THIRD PARTY PAYMENTS,PRIVATE CONTRACTOR,REVENUE
Walsall Council,http://opendatacommunities.org/id/metropolitan-district-council/walsall,WC123-597,28.02.2021,ADULT SOCIAL CARE,ANSON COURT RESIDENTIAL HOME,15/02/2021,"2,308.00",6541-Residential EMI,THIRD PARTY PAYMENTS,PRIVATE CONTRACTOR,REVENUE
Walsall Council,http://opendatacommunities.org/id/metropolitan-district-council/walsall,WC123-598,28.02.2021,ADULT SOCIAL CARE,ANSON COURT RESIDENTIAL HOME,15/02/2021,"2,308.00",6541-Residential EMI,THIRD PARTY PAYMENTS,PRIVATE CONTRACTOR,REVENUE
Walsall Council,http://opendatacommunities.org/id/metropolitan-district-council/walsall,WC123-599,28.02.2021,ADULT SOCIAL CARE,ANSON COURT RESIDENTIAL HOME,15/02/2021,"2,164.00",6541-Residential,THIRD PARTY PAYMENTS,PRIVATE CONTRACTOR,REVENUE
Walsall Council,http://opendatacommunities.org/id/metropolitan-district-council/walsall,WC123-600,28.02.2021,ADULT SOCIAL CARE,ANSON COURT RESIDENTIAL HOME,15/02/2021,"2,308.00",6541-Residential EMI,THIRD PARTY PAYMENTS,PRIVATE CONTRACTOR,REVENUE
Walsall Council,http://opendatacommunities.org/id/metropolitan-district-council/walsall,WC123-601,28.02.2021,ADULT SOCIAL CARE,ANSON COURT RESIDENTIAL HOME,15/02/2021,"2,308.00",6541-Residential EMI,THIRD PARTY PAYMENTS,PRIVATE CONTRACTOR,REVENUE
Walsall Council,http://opendatacommunities.org/id/metropolitan-district-council/walsall,WC123-602,28.02.2021,ADULT SOCIAL CARE,ANSON COURT RESIDENTIAL HOME,15/02/2021,"2,308.00",6541-Residential EMI,THIRD PARTY PAYMENTS,PRIVATE CONTRACTOR,REVENUE
Walsall Council,http://opendatacommunities.org/id/metropolitan-district-council/walsall,WC123-603,28.02.2021,ADULT SOCIAL CARE,ANSON COURT RESIDENTIAL HOME,15/02/2021,"2,172.24",6541-Residential,THIRD PARTY PAYMENTS,PRIVATE CONTRACTOR,REVENUE
Walsall Council,http://opendatacommunities.org/id/metropolitan-district-council/walsall,WC123-604,28.02.2021,ADULT SOCIAL CARE,ANSON COURT RESIDENTIAL HOME,15/02/2021,"2,044.00",6541-Residential,THIRD PARTY PAYMENTS,PRIVATE CONTRACTOR,REVENUE
Walsall Council,http://opendatacommunities.org/id/metropolitan-district-council/walsall,WC123-605,28.02.2021,ADULT SOCIAL CARE,ANSON COURT RESIDENTIAL HOME,15/02/2021,"2,308.00",6541-Residential EMI,THIRD PARTY PAYMENTS,PRIVATE CONTRACTOR,REVENUE
Walsall Council,http://opendatacommunities.org/id/metropolitan-district-council/walsall,WC123-606,28.02.2021,ADULT SOCIAL CARE,ANSON COURT RESIDENTIAL HOME,15/02/2021,"2,308.00",6541-Residential EMI,THIRD PARTY PAYMENTS,PRIVATE CONTRACTOR,REVENUE
Walsall Council,http://opendatacommunities.org/id/metropolitan-district-council/walsall,WC123-607,28.02.2021,ADULT SOCIAL CARE,ANSON COURT RESIDENTIAL HOME,15/02/2021,"2,308.00",6541-Residential EMI,THIRD PARTY PAYMENTS,PRIVATE CONTRACTOR,REVENUE
Walsall Council,http://opendatacommunities.org/id/metropolitan-district-council/walsall,WC123-608,28.02.2021,ADULT SOCIAL CARE,ANSON COURT RESIDENTIAL HOME,19/02/2021,"8,434.80",6550-Professional Services-Priv Contractor & Other Agencies,THIRD PARTY PAYMENTS,PRIVATE CONTRACTOR,REVENUE
Walsall Council,http://opendatacommunities.org/id/metropolitan-district-council/walsall,WC123-609,28.02.2021,CHILDRENS,REDACTED,05/02/2021,333.12,6223-Special Guardianship Orders,TRANSFER PAYMENTS,CHILDREN SOCIAL SERVICES CLIENT,REVENUE
Walsall Council,http://opendatacommunities.org/id/metropolitan-district-council/walsall,WC123-610,28.02.2021,ECONOMY & ENVIRONMENT,APCOA PARKING SERVICES (UK) LTD,11/02/2021,"26,773.04",6411-Professional Services-Priv Contractor & Other Agencies,THIRD PARTY PAYMENTS,PRIVATE CONTRACTOR,REVENUE
Walsall Council,http://opendatacommunities.org/id/metropolitan-district-council/walsall,WC123-611,28.02.2021,CHILDRENS,APP CARZ,25/02/2021,880.00,6241-Hire of Vehicle with Driver,TRANSPORT,DIRECT TRANSPORT COSTS,REVENUE
Walsall Council,http://opendatacommunities.org/id/metropolitan-district-council/walsall,WC123-612,28.02.2021,CHILDRENS,APP CARZ,25/02/2021,660.00,6241-Hire of Vehicle with Driver,TRANSPORT,DIRECT TRANSPORT COSTS,REVENUE
Walsall Council,http://opendatacommunities.org/id/metropolitan-district-council/walsall,WC123-613,28.02.2021,CHILDRENS,APP CARZ,25/02/2021,440.00,6241-Hire of Vehicle with Driver,TRANSPORT,DIRECT TRANSPORT COSTS,REVENUE
Walsall Council,http://opendatacommunities.org/id/metropolitan-district-council/walsall,WC123-614,28.02.2021,CHILDRENS,APP CARZ,25/02/2021,"1,620.00",6241-Hire of Vehicle with Driver,TRANSPORT,DIRECT TRANSPORT COSTS,REVENUE
Walsall Council,http://opendatacommunities.org/id/metropolitan-district-council/walsall,WC123-615,28.02.2021,CHILDRENS,APP CARZ,25/02/2021,896.00,6241-Hire of Vehicle with Driver,TRANSPORT,DIRECT TRANSPORT COSTS,REVENUE
Walsall Council,http://opendatacommunities.org/id/metropolitan-district-council/walsall,WC123-616,28.02.2021,CHILDRENS,APP CARZ,25/02/2021,"1,280.00",6241-Hire of Vehicle with Driver,TRANSPORT,DIRECT TRANSPORT COSTS,REVENUE
Walsall Council,http://opendatacommunities.org/id/metropolitan-district-council/walsall,WC123-617,28.02.2021,CHILDRENS,APP CARZ,25/02/2021,880.00,6241-Hire of Vehicle with Driver,TRANSPORT,DIRECT TRANSPORT COSTS,REVENUE
Walsall Council,http://opendatacommunities.org/id/metropolitan-district-council/walsall,WC123-618,28.02.2021,CHILDRENS,APP CARZ,25/02/2021,598.40,6241-Hire of Vehicle with Driver,TRANSPORT,DIRECT TRANSPORT COSTS,REVENUE
Walsall Council,http://opendatacommunities.org/id/metropolitan-district-council/walsall,WC123-619,28.02.2021,CHILDRENS,APP CARZ,25/02/2021,"1,280.00",6241-Hire of Vehicle with Driver,TRANSPORT,DIRECT TRANSPORT COSTS,REVENUE
Walsall Council,http://opendatacommunities.org/id/metropolitan-district-council/walsall,WC123-620,28.02.2021,CHILDRENS,APP CARZ,25/02/2021,440.00,6241-Hire of Vehicle with Driver,TRANSPORT,DIRECT TRANSPORT COSTS,REVENUE
Walsall Council,http://opendatacommunities.org/id/metropolitan-district-council/walsall,WC123-621,28.02.2021,CHILDRENS,APP CARZ,25/02/2021,"1,203.20",6241-Hire of Vehicle with Driver,TRANSPORT,DIRECT TRANSPORT COSTS,REVENUE
Walsall Council,http://opendatacommunities.org/id/metropolitan-district-council/walsall,WC123-622,28.02.2021,ECONOMY & ENVIRONMENT,ARA COMMERCIAL LIMITED,22/02/2021,300.00,6414-Stationery & General Office Supplies,SUPPLIES & SERVICES,PRINTING STATIONERY & GENERAL OFFICE,REVENUE
Walsall Council,http://opendatacommunities.org/id/metropolitan-district-council/walsall,WC123-623,28.02.2021,ADULT SOCIAL CARE,ARBORETUM NURSING HOME.,08/02/2021,"2,980.00",6554-Professional Services-Priv Contractor & Other Agencies,THIRD PARTY PAYMENTS,PRIVATE CONTRACTOR,REVENUE
Walsall Council,http://opendatacommunities.org/id/metropolitan-district-council/walsall,WC123-624,28.02.2021,ADULT SOCIAL CARE,ARBORETUM NURSING HOME.,09/02/2021,"2,980.00",6554-Professional Services-Priv Contractor & Other Agencies,THIRD PARTY PAYMENTS,PRIVATE CONTRACTOR,REVENUE
Walsall Council,http://opendatacommunities.org/id/metropolitan-district-council/walsall,WC123-625,28.02.2021,ADULT SOCIAL CARE,ARBORETUM NURSING HOME.,22/02/2021,"11,920.00",6554-Professional Services-Priv Contractor & Other Agencies,THIRD PARTY PAYMENTS,PRIVATE CONTRACTOR,REVENUE
Walsall Council,http://opendatacommunities.org/id/metropolitan-district-council/walsall,WC123-626,28.02.2021,ADULT SOCIAL CARE,ARBORETUM NURSING HOME.,15/02/2021,"2,396.00",6541-Nursing,THIRD PARTY PAYMENTS,PRIVATE CONTRACTOR,REVENUE
Walsall Council,http://opendatacommunities.org/id/metropolitan-district-council/walsall,WC123-627,28.02.2021,ADULT SOCIAL CARE,ARBORETUM NURSING HOME.,15/02/2021,"2,396.00",6541-Nursing,THIRD PARTY PAYMENTS,PRIVATE CONTRACTOR,REVENUE
Walsall Council,http://opendatacommunities.org/id/metropolitan-district-council/walsall,WC123-628,28.02.2021,ADULT SOCIAL CARE,ARBORETUM NURSING HOME.,15/02/2021,"2,396.00",6541-Nursing,THIRD PARTY PAYMENTS,PRIVATE CONTRACTOR,REVENUE
Walsall Council,http://opendatacommunities.org/id/metropolitan-district-council/walsall,WC123-629,28.02.2021,ADULT SOCIAL CARE,ARBORETUM NURSING HOME.,15/02/2021,"2,396.00",6541-Nursing,THIRD PARTY PAYMENTS,PRIVATE CONTRACTOR,REVENUE
Walsall Council,http://opendatacommunities.org/id/metropolitan-district-council/walsall,WC123-630,28.02.2021,ADULT SOCIAL CARE,ARBORETUM NURSING HOME.,15/02/2021,"2,396.00",6541-Nursing,THIRD PARTY PAYMENTS,PRIVATE CONTRACTOR,REVENUE
Walsall Council,http://opendatacommunities.org/id/metropolitan-district-council/walsall,WC123-631,28.02.2021,ADULT SOCIAL CARE,ARBORETUM NURSING HOME.,15/02/2021,"2,396.00",6541-Nursing,THIRD PARTY PAYMENTS,PRIVATE CONTRACTOR,REVENUE
Walsall Council,http://opendatacommunities.org/id/metropolitan-district-council/walsall,WC123-632,28.02.2021,ADULT SOCIAL CARE,ARBORETUM NURSING HOME.,15/02/2021,"2,576.00",6541-Nursing,THIRD PARTY PAYMENTS,PRIVATE CONTRACTOR,REVENUE
Walsall Council,http://opendatacommunities.org/id/metropolitan-district-council/walsall,WC123-633,28.02.2021,ADULT SOCIAL CARE,ARBORETUM NURSING HOME.,15/02/2021,"2,576.00",6541-Nursing,THIRD PARTY PAYMENTS,PRIVATE CONTRACTOR,REVENUE
Walsall Council,http://opendatacommunities.org/id/metropolitan-district-council/walsall,WC123-634,28.02.2021,ADULT SOCIAL CARE,ARBORETUM NURSING HOME.,15/02/2021,"2,396.00",6541-Nursing,THIRD PARTY PAYMENTS,PRIVATE CONTRACTOR,REVENUE
Walsall Council,http://opendatacommunities.org/id/metropolitan-district-council/walsall,WC123-635,28.02.2021,ADULT SOCIAL CARE,ARBORETUM NURSING HOME.,15/02/2021,"2,396.00",6541-Nursing,THIRD PARTY PAYMENTS,PRIVATE CONTRACTOR,REVENUE
Walsall Council,http://opendatacommunities.org/id/metropolitan-district-council/walsall,WC123-636,28.02.2021,ADULT SOCIAL CARE,ARBORETUM NURSING HOME.,15/02/2021,"-9,568.00",6541-Nursing,THIRD PARTY PAYMENTS,PRIVATE CONTRACTOR,REVENUE
Walsall Council,http://opendatacommunities.org/id/metropolitan-district-council/walsall,WC123-637,28.02.2021,ADULT SOCIAL CARE,ARBORETUM NURSING HOME.,15/02/2021,"2,552.00",6541-Nursing,THIRD PARTY PAYMENTS,PRIVATE CONTRACTOR,REVENUE
Walsall Council,http://opendatacommunities.org/id/metropolitan-district-council/walsall,WC123-638,28.02.2021,ADULT SOCIAL CARE,ARBORETUM NURSING HOME.,15/02/2021,920.00,6541-Nursing,THIRD PARTY PAYMENTS,PRIVATE CONTRACTOR,REVENUE
Walsall Council,http://opendatacommunities.org/id/metropolitan-district-council/walsall,WC123-639,28.02.2021,ADULT SOCIAL CARE,ARBORETUM NURSING HOME.,15/02/2021,"2,396.00",6541-Nursing,THIRD PARTY PAYMENTS,PRIVATE CONTRACTOR,REVENUE
Walsall Council,http://opendatacommunities.org/id/metropolitan-district-council/walsall,WC123-640,28.02.2021,ADULT SOCIAL CARE,ARBORETUM NURSING HOME.,15/02/2021,"2,396.00",6541-Nursing,THIRD PARTY PAYMENTS,PRIVATE CONTRACTOR,REVENUE
Walsall Council,http://opendatacommunities.org/id/metropolitan-district-council/walsall,WC123-641,28.02.2021,ADULT SOCIAL CARE,ARBORETUM NURSING HOME.,15/02/2021,368.00,6541-Nursing,THIRD PARTY PAYMENTS,PRIVATE CONTRACTOR,REVENUE
Walsall Council,http://opendatacommunities.org/id/metropolitan-district-council/walsall,WC123-642,28.02.2021,ADULT SOCIAL CARE,ARBORETUM NURSING HOME.,15/02/2021,"2,396.00",6541-Nursing,THIRD PARTY PAYMENTS,PRIVATE CONTRACTOR,REVENUE
Walsall Council,http://opendatacommunities.org/id/metropolitan-district-council/walsall,WC123-643,28.02.2021,ADULT SOCIAL CARE,ARBORETUM NURSING HOME.,15/02/2021,"1,196.00",6541-Nursing,THIRD PARTY PAYMENTS,PRIVATE CONTRACTOR,REVENUE
Walsall Council,http://opendatacommunities.org/id/metropolitan-district-council/walsall,WC123-644,28.02.2021,ADULT SOCIAL CARE,ARBORETUM NURSING HOME.,08/02/2021,"18,036.00",6550-Professional Services-Priv Contractor & Other Agencies,THIRD PARTY PAYMENTS,PRIVATE CONTRACTOR,REVENUE
Walsall Council,http://opendatacommunities.org/id/metropolitan-district-council/walsall,WC123-645,28.02.2021,ADULT SOCIAL CARE,ARBORETUM NURSING HOME.,02/02/2021,"-1,578.57",6554-Professional Services-Priv Contractor & Other Agencies,THIRD PARTY PAYMENTS,PRIVATE CONTRACTOR,REVENUE
Walsall Council,http://opendatacommunities.org/id/metropolitan-district-council/walsall,WC123-646,28.02.2021,ADULT SOCIAL CARE,ARBORETUM NURSING HOME.,09/02/2021,"-1,809.29",6554-Professional Services-Priv Contractor & Other Agencies,THIRD PARTY PAYMENTS,PRIVATE CONTRACTOR,REVENUE
Walsall Council,http://opendatacommunities.org/id/metropolitan-district-council/walsall,WC123-647,28.02.2021,ADULT SOCIAL CARE,ARBORETUM NURSING HOME.,19/02/2021,"13,802.40",6550-Professional Services-Priv Contractor & Other Agencies,THIRD PARTY PAYMENTS,PRIVATE CONTRACTOR,REVENUE
Walsall Council,http://opendatacommunities.org/id/metropolitan-district-council/walsall,WC123-648,28.02.2021,ECONOMY & ENVIRONMENT,ARCADIS,12/02/2021,"-3,000.00",6313-Professional Fees & Services,SUPPLIES & SERVICES,SERVICES,REVENUE
Walsall Council,http://opendatacommunities.org/id/metropolitan-district-council/walsall,WC123-649,28.02.2021,ECONOMY & ENVIRONMENT,ARCADIS,12/02/2021,"3,000.00",6313-Professional Fees & Services,SUPPLIES & SERVICES,SERVICES,REVENUE
Walsall Council,http://opendatacommunities.org/id/metropolitan-district-council/walsall,WC123-650,28.02.2021,RESOURCES AND TRANSFORMATION,ARCADIS,12/02/2021,"30,000.00",7300-Consultants Fees,CAPITAL,"NEW CONSTRUCTION,CONVERSION & RENOVATION",REVENUE
Walsall Council,http://opendatacommunities.org/id/metropolitan-district-council/walsall,WC123-651,28.02.2021,RESOURCES AND TRANSFORMATION,ARCADIS,18/02/2021,"-30,000.00",7300-Consultants Fees,CAPITAL,"NEW CONSTRUCTION,CONVERSION & RENOVATION",REVENUE
Walsall Council,http://opendatacommunities.org/id/metropolitan-district-council/walsall,WC123-652,28.02.2021,RESOURCES AND TRANSFORMATION,ARCADIS,18/02/2021,"1,000.00",7300-Consultants Fees,CAPITAL,"NEW CONSTRUCTION,CONVERSION & RENOVATION",REVENUE
Walsall Council,http://opendatacommunities.org/id/metropolitan-district-council/walsall,WC123-653,28.02.2021,RESOURCES AND TRANSFORMATION,ARCADIS,18/02/2021,"2,450.00",7300-Consultants Fees,CAPITAL,"NEW CONSTRUCTION,CONVERSION & RENOVATION",REVENUE
Walsall Council,http://opendatacommunities.org/id/metropolitan-district-council/walsall,WC123-654,28.02.2021,RESOURCES AND TRANSFORMATION,ARCADIS,18/02/2021,"26,550.00",7300-Consultants Fees,CAPITAL,"NEW CONSTRUCTION,CONVERSION & RENOVATION",REVENUE
Walsall Council,http://opendatacommunities.org/id/metropolitan-district-council/walsall,WC123-655,28.02.2021,RESOURCES AND TRANSFORMATION,ARCADIS,18/02/2021,"30,000.00",7300-Consultants Fees,CAPITAL,"NEW CONSTRUCTION,CONVERSION & RENOVATION",REVENUE
Walsall Council,http://opendatacommunities.org/id/metropolitan-district-council/walsall,WC123-656,28.02.2021,RESOURCES AND TRANSFORMATION,ARCADIS,18/02/2021,"10,000.00",7300-Consultants Fees,CAPITAL,"NEW CONSTRUCTION,CONVERSION & RENOVATION",REVENUE
Walsall Council,http://opendatacommunities.org/id/metropolitan-district-council/walsall,WC123-657,28.02.2021,ECONOMY & ENVIRONMENT,ARCADIS,18/02/2021,"-17,050.00",6313-Consultant Fees,SUPPLIES & SERVICES,SERVICES,REVENUE
Walsall Council,http://opendatacommunities.org/id/metropolitan-district-council/walsall,WC123-658,28.02.2021,ECONOMY & ENVIRONMENT,ARCADIS,18/02/2021,"-17,050.00",6313-Consultant Fees,SUPPLIES & SERVICES,SERVICES,REVENUE
Walsall Council,http://opendatacommunities.org/id/metropolitan-district-council/walsall,WC123-659,28.02.2021,ECONOMY & ENVIRONMENT,ARCADIS,18/02/2021,"2,800.00",6313-Consultant Fees,SUPPLIES & SERVICES,SERVICES,REVENUE
Walsall Council,http://opendatacommunities.org/id/metropolitan-district-council/walsall,WC123-660,28.02.2021,ECONOMY & ENVIRONMENT,ARCADIS,18/02/2021,"2,800.00",6313-Consultant Fees,SUPPLIES & SERVICES,SERVICES,REVENUE
Walsall Council,http://opendatacommunities.org/id/metropolitan-district-council/walsall,WC123-661,28.02.2021,ECONOMY & ENVIRONMENT,ARCADIS,18/02/2021,"14,250.00",6313-Consultant Fees,SUPPLIES & SERVICES,SERVICES,REVENUE
Walsall Council,http://opendatacommunities.org/id/metropolitan-district-council/walsall,WC123-662,28.02.2021,ECONOMY & ENVIRONMENT,ARCADIS,18/02/2021,"14,250.00",6313-Consultant Fees,SUPPLIES & SERVICES,SERVICES,REVENUE
Walsall Council,http://opendatacommunities.org/id/metropolitan-district-council/walsall,WC123-663,28.02.2021,ECONOMY & ENVIRONMENT,ARCADIS,18/02/2021,"17,050.00",6313-Consultant Fees,SUPPLIES & SERVICES,SERVICES,REVENUE
Walsall Council,http://opendatacommunities.org/id/metropolitan-district-council/walsall,WC123-664,28.02.2021,ECONOMY & ENVIRONMENT,ARCADIS,18/02/2021,"17,050.00",6313-Consultant Fees,SUPPLIES & SERVICES,SERVICES,REVENUE
Walsall Council,http://opendatacommunities.org/id/metropolitan-district-council/walsall,WC123-665,28.02.2021,ECONOMY & ENVIRONMENT,ARCADIS,18/02/2021,"-17,050.00",6313-Consultant Fees,SUPPLIES & SERVICES,SERVICES,REVENUE
Walsall Council,http://opendatacommunities.org/id/metropolitan-district-council/walsall,WC123-666,28.02.2021,ECONOMY & ENVIRONMENT,ARCADIS,18/02/2021,"-17,050.00",6313-Consultant Fees,SUPPLIES & SERVICES,SERVICES,REVENUE
Walsall Council,http://opendatacommunities.org/id/metropolitan-district-council/walsall,WC123-667,28.02.2021,ECONOMY & ENVIRONMENT,ARCADIS,18/02/2021,"2,800.00",6313-Consultant Fees,SUPPLIES & SERVICES,SERVICES,REVENUE
Walsall Council,http://opendatacommunities.org/id/metropolitan-district-council/walsall,WC123-668,28.02.2021,ECONOMY & ENVIRONMENT,ARCADIS,18/02/2021,"2,800.00",6313-Consultant Fees,SUPPLIES & SERVICES,SERVICES,REVENUE
Walsall Council,http://opendatacommunities.org/id/metropolitan-district-council/walsall,WC123-669,28.02.2021,ECONOMY & ENVIRONMENT,ARCADIS,18/02/2021,"14,250.00",6313-Consultant Fees,SUPPLIES & SERVICES,SERVICES,REVENUE
Walsall Council,http://opendatacommunities.org/id/metropolitan-district-council/walsall,WC123-670,28.02.2021,ECONOMY & ENVIRONMENT,ARCADIS,18/02/2021,"14,250.00",6313-Consultant Fees,SUPPLIES & SERVICES,SERVICES,REVENUE
Walsall Council,http://opendatacommunities.org/id/metropolitan-district-council/walsall,WC123-671,28.02.2021,ECONOMY & ENVIRONMENT,ARCADIS,18/02/2021,"17,050.00",6313-Consultant Fees,SUPPLIES & SERVICES,SERVICES,REVENUE
Walsall Council,http://opendatacommunities.org/id/metropolitan-district-council/walsall,WC123-672,28.02.2021,ECONOMY & ENVIRONMENT,ARCADIS,18/02/2021,"17,050.00",6313-Consultant Fees,SUPPLIES & SERVICES,SERVICES,REVENUE
Walsall Council,http://opendatacommunities.org/id/metropolitan-district-council/walsall,WC123-673,28.02.2021,ECONOMY & ENVIRONMENT,ARCHWAY TCS LTD,25/02/2021,306.14,6410-Vehicle Wash Plant Materials,SUPPLIES & SERVICES,EQUIPMENT FURNITURE & MATERIALS,REVENUE
Walsall Council,http://opendatacommunities.org/id/metropolitan-district-council/walsall,WC123-674,28.02.2021,ECONOMY & ENVIRONMENT,ARD EUROPE LTD,03/02/2021,"2,000.00",6414-Outwork Print & Design,SUPPLIES & SERVICES,PRINTING STATIONERY & GENERAL OFFICE,REVENUE
Walsall Council,http://opendatacommunities.org/id/metropolitan-district-council/walsall,WC123-675,28.02.2021,CHILDRENS CAPITAL,ASBESTOS ABATEMENT SERVICES,17/02/2021,"1,400.00",7150-Site Works Contractors,CAPITAL,"NEW CONSTRUCTION,CONVERSION & RENOVATION",REVENUE
Walsall Council,http://opendatacommunities.org/id/metropolitan-district-council/walsall,WC123-676,28.02.2021,ADULT SOCIAL CARE,ASDA PHARMACY,19/02/2021,504.00,6420-Payment to Contractors,SUPPLIES & SERVICES,SERVICES,REVENUE
Walsall Council,http://opendatacommunities.org/id/metropolitan-district-council/walsall,WC123-677,28.02.2021,ECONOMY & ENVIRONMENT,ASDAN LIMITED,01/02/2021,385.00,6430-Consultant Fees,SUPPLIES & SERVICES,SERVICES,REVENUE
Walsall Council,http://opendatacommunities.org/id/metropolitan-district-council/walsall,WC123-678,28.02.2021,ADULT SOCIAL CARE,ASH GRANGE CARE HOME,15/02/2021,"2,044.00",6541-Residential,THIRD PARTY PAYMENTS,PRIVATE CONTRACTOR,REVENUE
Walsall Council,http://opendatacommunities.org/id/metropolitan-district-council/walsall,WC123-679,28.02.2021,ADULT SOCIAL CARE,ASH GRANGE CARE HOME,15/02/2021,"2,396.00",6541-Nursing,THIRD PARTY PAYMENTS,PRIVATE CONTRACTOR,REVENUE
Walsall Council,http://opendatacommunities.org/id/metropolitan-district-council/walsall,WC123-680,28.02.2021,ADULT SOCIAL CARE,ASH GRANGE CARE HOME,15/02/2021,"2,396.00",6541-Nursing,THIRD PARTY PAYMENTS,PRIVATE CONTRACTOR,REVENUE
Walsall Council,http://opendatacommunities.org/id/metropolitan-district-council/walsall,WC123-681,28.02.2021,ADULT SOCIAL CARE,ASH GRANGE CARE HOME,15/02/2021,"2,696.00",6541-Nursing EMI,THIRD PARTY PAYMENTS,PRIVATE CONTRACTOR,REVENUE
Walsall Council,http://opendatacommunities.org/id/metropolitan-district-council/walsall,WC123-682,28.02.2021,ADULT SOCIAL CARE,ASH GRANGE CARE HOME,15/02/2021,"2,581.16",6541-Residential,THIRD PARTY PAYMENTS,PRIVATE CONTRACTOR,REVENUE
Walsall Council,http://opendatacommunities.org/id/metropolitan-district-council/walsall,WC123-683,28.02.2021,ADULT SOCIAL CARE,ASH GRANGE CARE HOME,15/02/2021,"2,396.00",6541-Nursing,THIRD PARTY PAYMENTS,PRIVATE CONTRACTOR,REVENUE
Walsall Council,http://opendatacommunities.org/id/metropolitan-district-council/walsall,WC123-684,28.02.2021,ADULT SOCIAL CARE,ASH GRANGE CARE HOME,15/02/2021,"2,423.72",6541-Nursing,THIRD PARTY PAYMENTS,PRIVATE CONTRACTOR,REVENUE
Walsall Council,http://opendatacommunities.org/id/metropolitan-district-council/walsall,WC123-685,28.02.2021,ADULT SOCIAL CARE,ASH GRANGE CARE HOME,15/02/2021,"2,044.00",6541-Residential,THIRD PARTY PAYMENTS,PRIVATE CONTRACTOR,REVENUE
Walsall Council,http://opendatacommunities.org/id/metropolitan-district-council/walsall,WC123-686,28.02.2021,ADULT SOCIAL CARE,ASH GRANGE CARE HOME,15/02/2021,"2,396.00",6541-Nursing,THIRD PARTY PAYMENTS,PRIVATE CONTRACTOR,REVENUE
Walsall Council,http://opendatacommunities.org/id/metropolitan-district-council/walsall,WC123-687,28.02.2021,ADULT SOCIAL CARE,ASH GRANGE CARE HOME,15/02/2021,"2,396.00",6541-Nursing,THIRD PARTY PAYMENTS,PRIVATE CONTRACTOR,REVENUE
Walsall Council,http://opendatacommunities.org/id/metropolitan-district-council/walsall,WC123-688,28.02.2021,ADULT SOCIAL CARE,ASH GRANGE CARE HOME,15/02/2021,"-6,246.71",6541-Nursing,THIRD PARTY PAYMENTS,PRIVATE CONTRACTOR,REVENUE
Walsall Council,http://opendatacommunities.org/id/metropolitan-district-council/walsall,WC123-689,28.02.2021,ADULT SOCIAL CARE,ASH GRANGE CARE HOME,15/02/2021,"2,396.00",6541-Nursing,THIRD PARTY PAYMENTS,PRIVATE CONTRACTOR,REVENUE
Walsall Council,http://opendatacommunities.org/id/metropolitan-district-council/walsall,WC123-690,28.02.2021,ADULT SOCIAL CARE,ASH GRANGE CARE HOME,15/02/2021,"2,396.00",6541-Nursing,THIRD PARTY PAYMENTS,PRIVATE CONTRACTOR,REVENUE
Walsall Council,http://opendatacommunities.org/id/metropolitan-district-council/walsall,WC123-691,28.02.2021,ADULT SOCIAL CARE,ASH GRANGE CARE HOME,15/02/2021,"2,396.00",6541-Nursing,THIRD PARTY PAYMENTS,PRIVATE CONTRACTOR,REVENUE
Walsall Council,http://opendatacommunities.org/id/metropolitan-district-council/walsall,WC123-692,28.02.2021,ADULT SOCIAL CARE,ASH GRANGE CARE HOME,15/02/2021,"2,796.00",6541-Nursing,THIRD PARTY PAYMENTS,PRIVATE CONTRACTOR,REVENUE
Walsall Council,http://opendatacommunities.org/id/metropolitan-district-council/walsall,WC123-693,28.02.2021,ADULT SOCIAL CARE,ASH GRANGE CARE HOME,15/02/2021,"2,696.00",6541-Nursing EMI,THIRD PARTY PAYMENTS,PRIVATE CONTRACTOR,REVENUE
Walsall Council,http://opendatacommunities.org/id/metropolitan-district-council/walsall,WC123-694,28.02.2021,ADULT SOCIAL CARE,ASH GRANGE CARE HOME,15/02/2021,"2,774.96",6541-Nursing,THIRD PARTY PAYMENTS,PRIVATE CONTRACTOR,REVENUE
Walsall Council,http://opendatacommunities.org/id/metropolitan-district-council/walsall,WC123-695,28.02.2021,ADULT SOCIAL CARE,ASH GRANGE CARE HOME,15/02/2021,"2,396.00",6541-Nursing,THIRD PARTY PAYMENTS,PRIVATE CONTRACTOR,REVENUE
Walsall Council,http://opendatacommunities.org/id/metropolitan-district-council/walsall,WC123-696,28.02.2021,ADULT SOCIAL CARE,ASH GRANGE CARE HOME,15/02/2021,"2,396.00",6541-Nursing,THIRD PARTY PAYMENTS,PRIVATE CONTRACTOR,REVENUE
Walsall Council,http://opendatacommunities.org/id/metropolitan-district-council/walsall,WC123-697,28.02.2021,ADULT SOCIAL CARE,ASH GRANGE CARE HOME,15/02/2021,"2,696.00",6541-Nursing EMI,THIRD PARTY PAYMENTS,PRIVATE CONTRACTOR,REVENUE
Walsall Council,http://opendatacommunities.org/id/metropolitan-district-council/walsall,WC123-698,28.02.2021,ADULT SOCIAL CARE,ASH GRANGE CARE HOME,15/02/2021,"2,396.00",6541-Nursing,THIRD PARTY PAYMENTS,PRIVATE CONTRACTOR,REVENUE
Walsall Council,http://opendatacommunities.org/id/metropolitan-district-council/walsall,WC123-699,28.02.2021,ADULT SOCIAL CARE,ASH GRANGE CARE HOME,08/02/2021,"14,028.00",6550-Professional Services-Priv Contractor & Other Agencies,THIRD PARTY PAYMENTS,PRIVATE CONTRACTOR,REVENUE
Walsall Council,http://opendatacommunities.org/id/metropolitan-district-council/walsall,WC123-700,28.02.2021,ADULT SOCIAL CARE,ASH GRANGE CARE HOME,19/02/2021,"4,792.90",6550-Professional Fees & Services,SUPPLIES & SERVICES,SERVICES,REVENUE
Walsall Council,http://opendatacommunities.org/id/metropolitan-district-council/walsall,WC123-701,28.02.2021,ADULT SOCIAL CARE,ASH GRANGE CARE HOME,19/02/2021,"4,106.66",6550-Professional Fees & Services,SUPPLIES & SERVICES,SERVICES,REVENUE
Walsall Council,http://opendatacommunities.org/id/metropolitan-district-council/walsall,WC123-702,28.02.2021,ADULT SOCIAL CARE,ASH GRANGE CARE HOME,19/02/2021,"3,875.07",6550-Professional Fees & Services,SUPPLIES & SERVICES,SERVICES,REVENUE
Walsall Council,http://opendatacommunities.org/id/metropolitan-district-council/walsall,WC123-703,28.02.2021,ADULT SOCIAL CARE,ASH GRANGE CARE HOME,19/02/2021,"10,735.20",6550-Professional Services-Priv Contractor & Other Agencies,THIRD PARTY PAYMENTS,PRIVATE CONTRACTOR,REVENUE
Walsall Council,http://opendatacommunities.org/id/metropolitan-district-council/walsall,WC123-704,28.02.2021,ECONOMY & ENVIRONMENT,ASHDOWN SUPPLIES,03/02/2021,336.00,6413-Plaques Memorials-Materials,SUPPLIES & SERVICES,EQUIPMENT FURNITURE & MATERIALS,REVENUE
Walsall Council,http://opendatacommunities.org/id/metropolitan-district-council/walsall,WC123-705,28.02.2021,ECONOMY & ENVIRONMENT,ASHDOWN SUPPLIES,03/02/2021,336.00,6413-Plaques Memorials-Materials,SUPPLIES & SERVICES,EQUIPMENT FURNITURE & MATERIALS,REVENUE
Walsall Council,http://opendatacommunities.org/id/metropolitan-district-council/walsall,WC123-706,28.02.2021,ADULT SOCIAL CARE,REDACTED,04/02/2021,"1,423.64",6541-Direct Payment,THIRD PARTY PAYMENTS,PRIVATE CONTRACTOR,REVENUE
Walsall Council,http://opendatacommunities.org/id/metropolitan-district-council/walsall,WC123-707,28.02.2021,ECONOMY & ENVIRONMENT,ASKEWS AND HOLTS LIBRARY SERVICES LTD,05/02/2021,"1,341.18",6414-Library Books,SUPPLIES & SERVICES,EQUIPMENT FURNITURE & MATERIALS,REVENUE
Walsall Council,http://opendatacommunities.org/id/metropolitan-district-council/walsall,WC123-708,28.02.2021,ADULT SOCIAL CARE,REDACTED,04/02/2021,743.24,6541-Direct Payment,THIRD PARTY PAYMENTS,PRIVATE CONTRACTOR,REVENUE
Walsall Council,http://opendatacommunities.org/id/metropolitan-district-council/walsall,WC123-709,28.02.2021,ADULT SOCIAL CARE,ASPECTS CARE LTD,15/02/2021,345.40,6541-Community Supported Living/Supported Accommodation,THIRD PARTY PAYMENTS,PRIVATE CONTRACTOR,REVENUE
Walsall Council,http://opendatacommunities.org/id/metropolitan-district-council/walsall,WC123-710,28.02.2021,ADULT SOCIAL CARE,ASPECTS CARE LTD,15/02/2021,417.04,6541-Community Supported Living/Supported Accommodation,THIRD PARTY PAYMENTS,PRIVATE CONTRACTOR,REVENUE
Walsall Council,http://opendatacommunities.org/id/metropolitan-district-council/walsall,WC123-711,28.02.2021,ADULT SOCIAL CARE,ASPECTS CARE LTD,15/02/2021,503.44,6541-Community Supported Living/Supported Accommodation,THIRD PARTY PAYMENTS,PRIVATE CONTRACTOR,REVENUE
Walsall Council,http://opendatacommunities.org/id/metropolitan-district-council/walsall,WC123-712,28.02.2021,ADULT SOCIAL CARE,ASPECTS CARE LTD,15/02/2021,503.44,6541-Community Supported Living/Supported Accommodation,THIRD PARTY PAYMENTS,PRIVATE CONTRACTOR,REVENUE
Walsall Council,http://opendatacommunities.org/id/metropolitan-district-council/walsall,WC123-713,28.02.2021,ADULT SOCIAL CARE,ASPECTS CARE LTD,15/02/2021,791.04,6541-Community Supported Living/Supported Accommodation,THIRD PARTY PAYMENTS,PRIVATE CONTRACTOR,REVENUE
Walsall Council,http://opendatacommunities.org/id/metropolitan-district-council/walsall,WC123-714,28.02.2021,ADULT SOCIAL CARE,ASPECTS CARE LTD,15/02/2021,316.36,6541-Community Supported Living/Supported Accommodation,THIRD PARTY PAYMENTS,PRIVATE CONTRACTOR,REVENUE
Walsall Council,http://opendatacommunities.org/id/metropolitan-district-council/walsall,WC123-715,28.02.2021,ADULT SOCIAL CARE,ASPECTS CARE LTD,15/02/2021,"1,078.64",6541-Community Supported Living/Supported Accommodation,THIRD PARTY PAYMENTS,PRIVATE CONTRACTOR,REVENUE
Walsall Council,http://opendatacommunities.org/id/metropolitan-district-council/walsall,WC123-716,28.02.2021,ADULT SOCIAL CARE,ASPECTS CARE LTD,15/02/2021,517.68,6541-Community Supported Living/Supported Accommodation,THIRD PARTY PAYMENTS,PRIVATE CONTRACTOR,REVENUE
Walsall Council,http://opendatacommunities.org/id/metropolitan-district-council/walsall,WC123-717,28.02.2021,ADULT SOCIAL CARE,ASPECTS CARE LTD,15/02/2021,560.96,6541-Community Supported Living/Supported Accommodation,THIRD PARTY PAYMENTS,PRIVATE CONTRACTOR,REVENUE
Walsall Council,http://opendatacommunities.org/id/metropolitan-district-council/walsall,WC123-718,28.02.2021,ADULT SOCIAL CARE,ASPECTS CARE LTD,15/02/2021,517.68,6541-Community Supported Living/Supported Accommodation,THIRD PARTY PAYMENTS,PRIVATE CONTRACTOR,REVENUE
Walsall Council,http://opendatacommunities.org/id/metropolitan-district-council/walsall,WC123-719,28.02.2021,ADULT SOCIAL CARE,ASPECTS CARE LTD,15/02/2021,460.44,6541-Community Supported Living/Supported Accommodation,THIRD PARTY PAYMENTS,PRIVATE CONTRACTOR,REVENUE
Walsall Council,http://opendatacommunities.org/id/metropolitan-district-council/walsall,WC123-720,28.02.2021,ADULT SOCIAL CARE,ASPECTS CARE LTD,15/02/2021,791.04,6541-Community Supported Living/Supported Accommodation,THIRD PARTY PAYMENTS,PRIVATE CONTRACTOR,REVENUE
Walsall Council,http://opendatacommunities.org/id/metropolitan-district-council/walsall,WC123-721,28.02.2021,CHILDRENS,ASPIRATIONS SUPPORT LIVING LTD,17/02/2021,988.90,6223-Accommodation and Related Costs-Assistance to S/S Clients,TRANSFER PAYMENTS,ADULT SOCIAL SERVICES CLIENT,REVENUE
Walsall Council,http://opendatacommunities.org/id/metropolitan-district-council/walsall,WC123-722,28.02.2021,CHILDRENS,ASPIRATIONS SUPPORT LIVING LTD,17/02/2021,978.90,6223-Accommodation and Related Costs-Assistance to S/S Clients,TRANSFER PAYMENTS,ADULT SOCIAL SERVICES CLIENT,REVENUE
Walsall Council,http://opendatacommunities.org/id/metropolitan-district-council/walsall,WC123-723,28.02.2021,CHILDRENS,ASPIRATIONS SUPPORT LIVING LTD,17/02/2021,978.90,6223-Accommodation and Related Costs-Assistance to S/S Clients,TRANSFER PAYMENTS,ADULT SOCIAL SERVICES CLIENT,REVENUE
Walsall Council,http://opendatacommunities.org/id/metropolitan-district-council/walsall,WC123-724,28.02.2021,CHILDRENS,ASPIRATIONS SUPPORT LIVING LTD,17/02/2021,978.90,6223-Accommodation and Related Costs-Assistance to S/S Clients,TRANSFER PAYMENTS,ADULT SOCIAL SERVICES CLIENT,REVENUE
Walsall Council,http://opendatacommunities.org/id/metropolitan-district-council/walsall,WC123-725,28.02.2021,CHILDRENS,ASPIRATIONS SUPPORT LIVING LTD,17/02/2021,978.90,6223-Accommodation and Related Costs-Assistance to S/S Clients,TRANSFER PAYMENTS,ADULT SOCIAL SERVICES CLIENT,REVENUE
Walsall Council,http://opendatacommunities.org/id/metropolitan-district-council/walsall,WC123-726,28.02.2021,CHILDRENS,ASPIRATIONS SUPPORT LIVING LTD,17/02/2021,978.90,6223-Accommodation and Related Costs-Assistance to S/S Clients,TRANSFER PAYMENTS,ADULT SOCIAL SERVICES CLIENT,REVENUE
Walsall Council,http://opendatacommunities.org/id/metropolitan-district-council/walsall,WC123-727,28.02.2021,CHILDRENS,ASPIRATIONS SUPPORT LIVING LTD,17/02/2021,978.90,6223-Accommodation and Related Costs-Assistance to S/S Clients,TRANSFER PAYMENTS,ADULT SOCIAL SERVICES CLIENT,REVENUE
Walsall Council,http://opendatacommunities.org/id/metropolitan-district-council/walsall,WC123-728,28.02.2021,CHILDRENS,ASPIRATIONS SUPPORT LIVING LTD,17/02/2021,978.90,6223-Accommodation and Related Costs-Assistance to S/S Clients,TRANSFER PAYMENTS,ADULT SOCIAL SERVICES CLIENT,REVENUE
Walsall Council,http://opendatacommunities.org/id/metropolitan-district-council/walsall,WC123-729,28.02.2021,CHILDRENS,ASPIRATIONS SUPPORT LIVING LTD,18/02/2021,978.90,6223-Accommodation and Related Costs-Assistance to S/S Clients,TRANSFER PAYMENTS,ADULT SOCIAL SERVICES CLIENT,REVENUE
Walsall Council,http://opendatacommunities.org/id/metropolitan-district-council/walsall,WC123-730,28.02.2021,CHILDRENS,ASPIRATIONS SUPPORT LIVING LTD,18/02/2021,978.90,6223-Accommodation and Related Costs-Assistance to S/S Clients,TRANSFER PAYMENTS,ADULT SOCIAL SERVICES CLIENT,REVENUE
Walsall Council,http://opendatacommunities.org/id/metropolitan-district-council/walsall,WC123-731,28.02.2021,RESOURCES AND TRANSFORMATION,ASTUN TECHNOLOGY LIMITED,01/02/2021,"1,250.00",6623-Computer Equipment,SUPPLIES & SERVICES,COMMUNICATIONS & COMPUTING,REVENUE
Walsall Council,http://opendatacommunities.org/id/metropolitan-district-council/walsall,WC123-732,28.02.2021,RESOURCES AND TRANSFORMATION,ASTUN TECHNOLOGY LIMITED,01/02/2021,"1,700.00",6623-Computer Equipment,SUPPLIES & SERVICES,COMMUNICATIONS & COMPUTING,REVENUE
Walsall Council,http://opendatacommunities.org/id/metropolitan-district-council/walsall,WC123-733,28.02.2021,RESOURCES AND TRANSFORMATION,ASTUN TECHNOLOGY LIMITED,01/02/2021,"19,000.00",6623-Computer Equipment,SUPPLIES & SERVICES,COMMUNICATIONS & COMPUTING,REVENUE
Walsall Council,http://opendatacommunities.org/id/metropolitan-district-council/walsall,WC123-734,28.02.2021,ECONOMY & ENVIRONMENT,ATHWAL NEWS LTD,03/02/2021,272.47,6414-Library Books,SUPPLIES & SERVICES,EQUIPMENT FURNITURE & MATERIALS,REVENUE
Walsall Council,http://opendatacommunities.org/id/metropolitan-district-council/walsall,WC123-735,28.02.2021,ADULT SOCIAL CARE,AURORA GRAPHICS & DISPLAYS LTD,09/02/2021,380.00,6623-Outwork Print & Design,SUPPLIES & SERVICES,PRINTING STATIONERY & GENERAL OFFICE,REVENUE
Walsall Council,http://opendatacommunities.org/id/metropolitan-district-council/walsall,WC123-736,28.02.2021,ADULT SOCIAL CARE,AURORA GRAPHICS & DISPLAYS LTD,04/02/2021,297.00,6623-Outwork Print & Design,SUPPLIES & SERVICES,PRINTING STATIONERY & GENERAL OFFICE,REVENUE
Walsall Council,http://opendatacommunities.org/id/metropolitan-district-council/walsall,WC123-737,28.02.2021,ADULT SOCIAL CARE,AURORA GRAPHICS & DISPLAYS LTD,04/02/2021,"1,969.00",6623-Outwork Print & Design,SUPPLIES & SERVICES,PRINTING STATIONERY & GENERAL OFFICE,REVENUE
Walsall Council,http://opendatacommunities.org/id/metropolitan-district-council/walsall,WC123-738,28.02.2021,ADULT SOCIAL CARE,AURORA GRAPHICS & DISPLAYS LTD,24/02/2021,973.00,6623-Outwork Print & Design,SUPPLIES & SERVICES,PRINTING STATIONERY & GENERAL OFFICE,REVENUE
Walsall Council,http://opendatacommunities.org/id/metropolitan-district-council/walsall,WC123-739,28.02.2021,ADULT SOCIAL CARE,AUTISM WEST MIDLANDS,15/02/2021,"7,344.60",6541-Residential,THIRD PARTY PAYMENTS,PRIVATE CONTRACTOR,REVENUE
Walsall Council,http://opendatacommunities.org/id/metropolitan-district-council/walsall,WC123-740,28.02.2021,ADULT SOCIAL CARE,AUTISM WEST MIDLANDS,15/02/2021,"5,675.88",6541-Residential,THIRD PARTY PAYMENTS,PRIVATE CONTRACTOR,REVENUE
Walsall Council,http://opendatacommunities.org/id/metropolitan-district-council/walsall,WC123-741,28.02.2021,ADULT SOCIAL CARE,AVERY HOMES NELSON LIMITED,08/02/2021,"19,706.00",6550-Professional Services-Priv Contractor & Other Agencies,THIRD PARTY PAYMENTS,PRIVATE CONTRACTOR,REVENUE
Walsall Council,http://opendatacommunities.org/id/metropolitan-district-council/walsall,WC123-742,28.02.2021,ADULT SOCIAL CARE,AVERY HOMES NELSON LIMITED,15/02/2021,"2,044.00",6541-Residential,THIRD PARTY PAYMENTS,PRIVATE CONTRACTOR,REVENUE
Walsall Council,http://opendatacommunities.org/id/metropolitan-district-council/walsall,WC123-743,28.02.2021,ADULT SOCIAL CARE,AVERY HOMES NELSON LIMITED,15/02/2021,"2,044.00",6541-Residential,THIRD PARTY PAYMENTS,PRIVATE CONTRACTOR,REVENUE
Walsall Council,http://opendatacommunities.org/id/metropolitan-district-council/walsall,WC123-744,28.02.2021,ADULT SOCIAL CARE,AVERY HOMES NELSON LIMITED,19/02/2021,"15,080.40",6550-Professional Services-Priv Contractor & Other Agencies,THIRD PARTY PAYMENTS,PRIVATE CONTRACTOR,REVENUE
Walsall Council,http://opendatacommunities.org/id/metropolitan-district-council/walsall,WC123-745,28.02.2021,ADULT SOCIAL CARE,REDACTED,04/02/2021,"3,360.40",6541-Direct Payment,THIRD PARTY PAYMENTS,PRIVATE CONTRACTOR,REVENUE
Walsall Council,http://opendatacommunities.org/id/metropolitan-district-council/walsall,WC123-746,28.02.2021,CHILDRENS CAPITAL,AZTEC CONSTRUCTION (MIDLANDS) LTD,08/02/2021,"3,963.33",7300-Private Grants,CAPITAL,CAPITAL GRANTS,CAPITAL GRANTS
Walsall Council,http://opendatacommunities.org/id/metropolitan-district-council/walsall,WC123-747,28.02.2021,CHILDRENS,BACHES SOLICITORS,22/02/2021,453.15,6220-External Legal Fees,SUPPLIES & SERVICES,SERVICES,REVENUE
Walsall Council,http://opendatacommunities.org/id/metropolitan-district-council/walsall,WC123-748,28.02.2021,CHILDRENS,BACHES SOLICITORS,23/02/2021,430.00,6220-External Legal Fees,SUPPLIES & SERVICES,SERVICES,REVENUE
Walsall Council,http://opendatacommunities.org/id/metropolitan-district-council/walsall,WC123-749,28.02.2021,CHILDRENS,BACHES SOLICITORS,23/02/2021,"1,101.06",6220-External Legal Fees,SUPPLIES & SERVICES,SERVICES,REVENUE
Walsall Council,http://opendatacommunities.org/id/metropolitan-district-council/walsall,WC123-750,28.02.2021,ECONOMY & ENVIRONMENT,BAHIA PROPERTIES,22/02/2021,"1,250.00",6410-Rents,PREMISES,RENTS,REVENUE
Walsall Council,http://opendatacommunities.org/id/metropolitan-district-council/walsall,WC123-751,28.02.2021,ECONOMY & ENVIRONMENT,BAHIA PROPERTIES,22/02/2021,"1,250.00",6410-Rents,PREMISES,RENTS,REVENUE
Walsall Council,http://opendatacommunities.org/id/metropolitan-district-council/walsall,WC123-752,28.02.2021,ECONOMY & ENVIRONMENT,BAKER HALL PARTNERSHIP,02/02/2021,"1,544.50",6413-Professional Fees & Services,SUPPLIES & SERVICES,SERVICES,REVENUE
Walsall Council,http://opendatacommunities.org/id/metropolitan-district-council/walsall,WC123-753,28.02.2021,CHILDRENS,BAKER ROSS LTD,24/02/2021,"1,078.25",6220-Materials,SUPPLIES & SERVICES,EQUIPMENT FURNITURE & MATERIALS,REVENUE
Walsall Council,http://opendatacommunities.org/id/metropolitan-district-council/walsall,WC123-754,28.02.2021,ADULT SOCIAL CARE,REDACTED,04/02/2021,372.00,6541-Direct Payment,THIRD PARTY PAYMENTS,PRIVATE CONTRACTOR,REVENUE
Walsall Council,http://opendatacommunities.org/id/metropolitan-district-council/walsall,WC123-755,28.02.2021,ADULT SOCIAL CARE,REDACTED,04/02/2021,"3,771.16",6541-Direct Payment,THIRD PARTY PAYMENTS,PRIVATE CONTRACTOR,REVENUE
Walsall Council,http://opendatacommunities.org/id/metropolitan-district-council/walsall,WC123-756,28.02.2021,CHILDRENS,BALTIMORE CONSULTING LTD,16/02/2021,"1,550.00",6241-Professional Fees & Services,SUPPLIES & SERVICES,SERVICES,REVENUE
Walsall Council,http://opendatacommunities.org/id/metropolitan-district-council/walsall,WC123-757,28.02.2021,CHILDRENS,BANYA FAMILY PLACEMENT AGENCY LTD,19/02/2021,"4,588.60",6223-Independent Foster Care-Oth Agency Provision,THIRD PARTY PAYMENTS,PRIVATE CONTRACTOR,REVENUE
Walsall Council,http://opendatacommunities.org/id/metropolitan-district-council/walsall,WC123-758,28.02.2021,CHILDRENS,REDACTED,05/02/2021,600.00,6223-Foster Carers Maintenance Allowance,TRANSFER PAYMENTS,CHILDREN SOCIAL SERVICES CLIENT,REVENUE
Walsall Council,http://opendatacommunities.org/id/metropolitan-district-council/walsall,WC123-759,28.02.2021,CHILDRENS,REDACTED,05/02/2021,340.00,6223-Internal Foster Carers-Carer Fees,TRANSFER PAYMENTS,CHILDREN SOCIAL SERVICES CLIENT,REVENUE
Walsall Council,http://opendatacommunities.org/id/metropolitan-district-council/walsall,WC123-760,28.02.2021,CHILDRENS,BARNARDOS SERVICES LTD,16/02/2021,250.00,6211-External Training,INDIRECT EMPLOYEES,EXTERNAL TRAINING,REVENUE
Walsall Council,http://opendatacommunities.org/id/metropolitan-district-council/walsall,WC123-761,28.02.2021,CHILDRENS,BASE 25,09/02/2021,502.00,6241-Professional Fees & Services,SUPPLIES & SERVICES,SERVICES,REVENUE
Walsall Council,http://opendatacommunities.org/id/metropolitan-district-council/walsall,WC123-762,28.02.2021,ECONOMY & ENVIRONMENT,BASE 25,09/02/2021,"5,000.00",6430-Consultant Fees,SUPPLIES & SERVICES,SERVICES,REVENUE
Walsall Council,http://opendatacommunities.org/id/metropolitan-district-council/walsall,WC123-763,28.02.2021,ECONOMY & ENVIRONMENT,BAT FABRICATIONS LTD,08/02/2021,-420.00,6410-Operational Maintenance,PREMISES,REPAIRS & MAINTENANCE,REVENUE
Walsall Council,http://opendatacommunities.org/id/metropolitan-district-council/walsall,WC123-764,28.02.2021,ECONOMY & ENVIRONMENT,BAT FABRICATIONS LTD,08/02/2021,420.00,6410-Operational Maintenance,PREMISES,REPAIRS & MAINTENANCE,REVENUE
Walsall Council,http://opendatacommunities.org/id/metropolitan-district-council/walsall,WC123-765,28.02.2021,ECONOMY & ENVIRONMENT,BAT FABRICATIONS LTD,08/02/2021,585.00,6410-Operational Maintenance,PREMISES,REPAIRS & MAINTENANCE,REVENUE
Walsall Council,http://opendatacommunities.org/id/metropolitan-district-council/walsall,WC123-766,28.02.2021,CHILDRENS CAPITAL,BAT FABRICATIONS LTD,15/02/2021,400.00,7150-Site Works Contractors,CAPITAL,"NEW CONSTRUCTION,CONVERSION & RENOVATION",REVENUE
Walsall Council,http://opendatacommunities.org/id/metropolitan-district-council/walsall,WC123-767,28.02.2021,CHILDRENS CAPITAL,BAT FABRICATIONS LTD,15/02/2021,"1,980.00",7150-Site Works Contractors,CAPITAL,"NEW CONSTRUCTION,CONVERSION & RENOVATION",REVENUE
Walsall Council,http://opendatacommunities.org/id/metropolitan-district-council/walsall,WC123-768,28.02.2021,CHILDRENS,BAY MEDIA LTD,24/02/2021,"2,000.00",6223-Advertising-Foster Carer,INDIRECT EMPLOYEES,ADVERTISING FOSTER CARE,REVENUE
Walsall Council,http://opendatacommunities.org/id/metropolitan-district-council/walsall,WC123-769,28.02.2021,CHILDRENS,BEACON CHILDCARE LTD,19/02/2021,"12,200.00",6223-External Residential Care-Oth Agency Provision,THIRD PARTY PAYMENTS,PRIVATE CONTRACTOR,REVENUE
Walsall Council,http://opendatacommunities.org/id/metropolitan-district-council/walsall,WC123-770,28.02.2021,CHILDRENS,BECKIE'S CHILDMINDING,12/02/2021,438.90,1184-Other-Grants to Other Orgs,SUPPLIES & SERVICES,GRANTS (EXP) & SUBSCRIPTIONS,REVENUE
Walsall Council,http://opendatacommunities.org/id/metropolitan-district-council/walsall,WC123-771,28.02.2021,CHILDRENS,BECKYS CHILDMINDING SERVICE,12/02/2021,438.90,1184-Other-Grants to Other Orgs,SUPPLIES & SERVICES,GRANTS (EXP) & SUBSCRIPTIONS,REVENUE
Walsall Council,http://opendatacommunities.org/id/metropolitan-district-council/walsall,WC123-772,28.02.2021,CHILDRENS,BECKYS CHILDMINDING SERVICE,12/02/2021,548.21,1184-Other-Grants to Other Orgs,SUPPLIES & SERVICES,GRANTS (EXP) & SUBSCRIPTIONS,REVENUE
Walsall Council,http://opendatacommunities.org/id/metropolitan-district-council/walsall,WC123-773,28.02.2021,ADULT SOCIAL CARE,BEECHWOODCOURT LTD  T/A BEECHWOOD COLLEGE,10/02/2021,"59,120.54",6541-Residential,THIRD PARTY PAYMENTS,PRIVATE CONTRACTOR,REVENUE
Walsall Council,http://opendatacommunities.org/id/metropolitan-district-council/walsall,WC123-774,28.02.2021,ADULT SOCIAL CARE,BELVIDERE COURT,15/02/2021,"2,396.00",6541-Nursing,THIRD PARTY PAYMENTS,PRIVATE CONTRACTOR,REVENUE
Walsall Council,http://opendatacommunities.org/id/metropolitan-district-council/walsall,WC123-775,28.02.2021,ADULT SOCIAL CARE,BELVIDERE COURT,15/02/2021,"2,867.20",6541-Residential,THIRD PARTY PAYMENTS,PRIVATE CONTRACTOR,REVENUE
Walsall Council,http://opendatacommunities.org/id/metropolitan-district-council/walsall,WC123-776,28.02.2021,ADULT SOCIAL CARE,BELVIDERE COURT,02/02/2021,"-2,139.29",6554-Professional Services-Priv Contractor & Other Agencies,THIRD PARTY PAYMENTS,PRIVATE CONTRACTOR,REVENUE
Walsall Council,http://opendatacommunities.org/id/metropolitan-district-council/walsall,WC123-777,28.02.2021,ADULT SOCIAL CARE,BELVIDERE COURT,02/02/2021,-656.86,6554-Professional Services-Priv Contractor & Other Agencies,THIRD PARTY PAYMENTS,PRIVATE CONTRACTOR,REVENUE
Walsall Council,http://opendatacommunities.org/id/metropolitan-district-council/walsall,WC123-778,28.02.2021,ADULT SOCIAL CARE,BENEDON HEALTHCARE LTD,15/02/2021,"1,381.44",6541-Community Supported Living/Supported Accommodation,THIRD PARTY PAYMENTS,PRIVATE CONTRACTOR,REVENUE
Walsall Council,http://opendatacommunities.org/id/metropolitan-district-council/walsall,WC123-779,28.02.2021,ADULT SOCIAL CARE,BENEDON HEALTHCARE LTD,15/02/2021,"5,842.36",6541-Community Supported Living/Supported Accommodation,THIRD PARTY PAYMENTS,PRIVATE CONTRACTOR,REVENUE
Walsall Council,http://opendatacommunities.org/id/metropolitan-district-council/walsall,WC123-780,28.02.2021,ADULT SOCIAL CARE,REDACTED,04/02/2021,"2,689.32",6541-Direct Payment,THIRD PARTY PAYMENTS,PRIVATE CONTRACTOR,REVENUE
Walsall Council,http://opendatacommunities.org/id/metropolitan-district-council/walsall,WC123-781,28.02.2021,ADULT SOCIAL CARE,BENTLEY COURT PRIORY,15/02/2021,"2,696.00",6541-Nursing EMI,THIRD PARTY PAYMENTS,PRIVATE CONTRACTOR,REVENUE
Walsall Council,http://opendatacommunities.org/id/metropolitan-district-council/walsall,WC123-782,28.02.2021,ADULT SOCIAL CARE,BENTLEY COURT PRIORY,15/02/2021,"2,696.00",6541-Nursing EMI,THIRD PARTY PAYMENTS,PRIVATE CONTRACTOR,REVENUE
Walsall Council,http://opendatacommunities.org/id/metropolitan-district-council/walsall,WC123-783,28.02.2021,ADULT SOCIAL CARE,BENTLEY COURT PRIORY,15/02/2021,"2,396.00",6541-Nursing,THIRD PARTY PAYMENTS,PRIVATE CONTRACTOR,REVENUE
Walsall Council,http://opendatacommunities.org/id/metropolitan-district-council/walsall,WC123-784,28.02.2021,ADULT SOCIAL CARE,BENTLEY COURT PRIORY,15/02/2021,"2,696.00",6541-Nursing EMI,THIRD PARTY PAYMENTS,PRIVATE CONTRACTOR,REVENUE
Walsall Council,http://opendatacommunities.org/id/metropolitan-district-council/walsall,WC123-785,28.02.2021,ADULT SOCIAL CARE,BENTLEY COURT PRIORY,15/02/2021,"2,396.00",6541-Nursing,THIRD PARTY PAYMENTS,PRIVATE CONTRACTOR,REVENUE
Walsall Council,http://opendatacommunities.org/id/metropolitan-district-council/walsall,WC123-786,28.02.2021,CHILDRENS,REDACTED,12/02/2021,426.39,1184-Other-Grants to Other Orgs,SUPPLIES & SERVICES,GRANTS (EXP) & SUBSCRIPTIONS,REVENUE
Walsall Council,http://opendatacommunities.org/id/metropolitan-district-council/walsall,WC123-787,28.02.2021,HOLDING ACCOUNTS,BERRYMANS LACE MAWER LLP,01/02/2021,"1,404.00",2877-Insurance Payment Claims,SUPPLIES & SERVICES,INSURANCE,REVENUE
Walsall Council,http://opendatacommunities.org/id/metropolitan-district-council/walsall,WC123-788,28.02.2021,HOLDING ACCOUNTS,BERRYMANS LACE MAWER LLP,01/02/2021,253.00,2877-Insurance Payment Claims,SUPPLIES & SERVICES,INSURANCE,REVENUE
Walsall Council,http://opendatacommunities.org/id/metropolitan-district-council/walsall,WC123-789,28.02.2021,HOLDING ACCOUNTS,BERRYMANS LACE MAWER LLP,18/02/2021,"1,378.00",2877-Insurance Payment Claims,SUPPLIES & SERVICES,INSURANCE,REVENUE
Walsall Council,http://opendatacommunities.org/id/metropolitan-district-council/walsall,WC123-790,28.02.2021,HOLDING ACCOUNTS,BERRYMANS LACE MAWER LLP,18/02/2021,"1,184.50",2877-Insurance Payment Claims,SUPPLIES & SERVICES,INSURANCE,REVENUE
Walsall Council,http://opendatacommunities.org/id/metropolitan-district-council/walsall,WC123-791,28.02.2021,ADULT SOCIAL CARE,REDACTED,04/02/2021,"1,912.08",6541-Direct Payment,THIRD PARTY PAYMENTS,PRIVATE CONTRACTOR,REVENUE
Walsall Council,http://opendatacommunities.org/id/metropolitan-district-council/walsall,WC123-792,28.02.2021,ECONOMY & ENVIRONMENT,BESCOT STADIUM SUNDAY MARKET LTD,18/02/2021,"2,600.00",6410-Professional Services-Priv Contractor & Other Agencies,THIRD PARTY PAYMENTS,PRIVATE CONTRACTOR,REVENUE
Walsall Council,http://opendatacommunities.org/id/metropolitan-district-council/walsall,WC123-793,28.02.2021,ECONOMY & ENVIRONMENT,BESCOT STADIUM SUNDAY MARKET LTD,23/02/2021,"2,600.00",6410-Professional Services-Priv Contractor & Other Agencies,THIRD PARTY PAYMENTS,PRIVATE CONTRACTOR,REVENUE
Walsall Council,http://opendatacommunities.org/id/metropolitan-district-council/walsall,WC123-794,28.02.2021,ADULT SOCIAL CARE,BESS CARE LIMITED,22/02/2021,-647.72,6554-Professional Services-Priv Contractor & Other Agencies,THIRD PARTY PAYMENTS,PRIVATE CONTRACTOR,REVENUE
Walsall Council,http://opendatacommunities.org/id/metropolitan-district-council/walsall,WC123-795,28.02.2021,ADULT SOCIAL CARE,BESS CARE LIMITED,22/02/2021,-586.04,6554-Professional Services-Priv Contractor & Other Agencies,THIRD PARTY PAYMENTS,PRIVATE CONTRACTOR,REVENUE
Walsall Council,http://opendatacommunities.org/id/metropolitan-district-council/walsall,WC123-796,28.02.2021,ADULT SOCIAL CARE,BESS CARE LIMITED,22/02/2021,-613.03,6554-Professional Services-Priv Contractor & Other Agencies,THIRD PARTY PAYMENTS,PRIVATE CONTRACTOR,REVENUE
Walsall Council,http://opendatacommunities.org/id/metropolitan-district-council/walsall,WC123-797,28.02.2021,ADULT SOCIAL CARE,BESS CARE LIMITED,22/02/2021,-613.03,6554-Professional Services-Priv Contractor & Other Agencies,THIRD PARTY PAYMENTS,PRIVATE CONTRACTOR,REVENUE
Walsall Council,http://opendatacommunities.org/id/metropolitan-district-council/walsall,WC123-798,28.02.2021,ADULT SOCIAL CARE,BESS CARE LIMITED,10/02/2021,350.88,6541-Domiciliary Care,THIRD PARTY PAYMENTS,PRIVATE CONTRACTOR,REVENUE
Walsall Council,http://opendatacommunities.org/id/metropolitan-district-council/walsall,WC123-799,28.02.2021,ADULT SOCIAL CARE,BESS CARE LIMITED,10/02/2021,609.27,6541-Domiciliary Care,THIRD PARTY PAYMENTS,PRIVATE CONTRACTOR,REVENUE
Walsall Council,http://opendatacommunities.org/id/metropolitan-district-council/walsall,WC123-800,28.02.2021,ADULT SOCIAL CARE,BESS CARE LIMITED,05/02/2021,304.61,6554-Professional Services-Priv Contractor & Other Agencies,THIRD PARTY PAYMENTS,PRIVATE CONTRACTOR,REVENUE
Walsall Council,http://opendatacommunities.org/id/metropolitan-district-council/walsall,WC123-801,28.02.2021,ADULT SOCIAL CARE,BESS CARE LIMITED,05/02/2021,443.41,6554-Professional Services-Priv Contractor & Other Agencies,THIRD PARTY PAYMENTS,PRIVATE CONTRACTOR,REVENUE
Walsall Council,http://opendatacommunities.org/id/metropolitan-district-council/walsall,WC123-802,28.02.2021,ADULT SOCIAL CARE,BESS CARE LIMITED,22/02/2021,-443.41,6554-Professional Services-Priv Contractor & Other Agencies,THIRD PARTY PAYMENTS,PRIVATE CONTRACTOR,REVENUE
Walsall Council,http://opendatacommunities.org/id/metropolitan-district-council/walsall,WC123-803,28.02.2021,ADULT SOCIAL CARE,BESS CARE LIMITED,10/02/2021,350.88,6541-Domiciliary Care,THIRD PARTY PAYMENTS,PRIVATE CONTRACTOR,REVENUE
Walsall Council,http://opendatacommunities.org/id/metropolitan-district-council/walsall,WC123-804,28.02.2021,ADULT SOCIAL CARE,BESS CARE LIMITED,10/02/2021,659.42,6541-Domiciliary Care,THIRD PARTY PAYMENTS,PRIVATE CONTRACTOR,REVENUE
Walsall Council,http://opendatacommunities.org/id/metropolitan-district-council/walsall,WC123-805,28.02.2021,ADULT SOCIAL CARE,BESS CARE LIMITED,11/02/2021,316.18,6554-Professional Services-Priv Contractor & Other Agencies,THIRD PARTY PAYMENTS,PRIVATE CONTRACTOR,REVENUE
Walsall Council,http://opendatacommunities.org/id/metropolitan-district-council/walsall,WC123-806,28.02.2021,ADULT SOCIAL CARE,BESS CARE LIMITED,10/02/2021,258.30,6541-Domiciliary Care,THIRD PARTY PAYMENTS,PRIVATE CONTRACTOR,REVENUE
Walsall Council,http://opendatacommunities.org/id/metropolitan-district-council/walsall,WC123-807,28.02.2021,ADULT SOCIAL CARE,BESS CARE LIMITED,10/02/2021,350.88,6541-Domiciliary Care,THIRD PARTY PAYMENTS,PRIVATE CONTRACTOR,REVENUE
Walsall Council,http://opendatacommunities.org/id/metropolitan-district-council/walsall,WC123-808,28.02.2021,ADULT SOCIAL CARE,BESS CARE LIMITED,10/02/2021,636.28,6541-Domiciliary Care,THIRD PARTY PAYMENTS,PRIVATE CONTRACTOR,REVENUE
